{"text_format":"1","workbook":"xlsx","n_sheets":2,"sheets":["Synthèse RPS","Calculs"],"not_rendered":{"charts":5,"images":2,"macros":1,"external_links":1,"defined_names":1,"comments":1,"pivot_tables":0},"unopened":[],"bounds":{"document_bytes":16777216,"sheet_cells":100000,"rows_first":2000,"rows_last":500,"rows_between":2000,"halvings":0,"cell_chars":16384,"cell_head_chars":4096},"cells_cut":0,"cells_raw":0,"read":"whole","date_system":"1900"}

{"sheet":"Synthèse RPS","index":0,"n_rows":100,"n_cols":183,"rows_kept":100,"cut":false,"hidden":false,"merged":[[17,22,18,24],[19,22,20,24],[17,25,18,26],[19,167,19,168],[20,167,20,168],[21,167,21,168],[2,51,2,53],[3,51,3,53],[4,51,4,53],[6,51,6,53],[7,51,8,53],[7,42,8,50],[3,42,3,50],[4,42,4,50],[0,167,0,172],[2,167,2,168],[3,167,3,168],[4,167,4,168],[5,167,5,168],[6,167,6,168],[7,167,7,168],[8,167,8,168],[9,167,9,168],[27,167,27,168],[28,167,28,168],[10,167,10,168],[15,167,15,172],[26,167,26,168],[11,167,11,168],[12,167,12,168],[18,167,18,168],[57,33,57,34],[48,34,48,37],[49,34,49,37],[50,34,50,37],[9,42,10,50],[9,51,10,53],[9,39,10,40],[11,27,11,40],[56,47,56,49],[36,46,37,46],[21,28,21,31],[21,32,21,33],[40,28,41,40],[56,27,56,32],[22,28,22,31],[23,28,23,31],[0,1,3,12],[2,28,2,40],[4,1,7,12],[19,14,21,16],[19,17,20,18],[19,19,20,21],[2,15,3,18],[2,21,3,26],[9,1,14,12],[21,17,21,18],[21,19,21,21],[20,28,20,31],[15,35,17,40],[19,32,19,33],[20,32,20,33],[18,35,18,40],[7,34,8,36],[15,1,18,12],[15,15,16,26],[6,15,7,16],[8,15,9,16],[21,22,21,24],[19,25,20,26],[21,25,21,26],[57,45,57,50],[49,8,49,11],[50,8,50,11],[51,8,51,11],[34,8,34,9],[35,8,35,9],[37,28,38,40],[34,46,35,46],[34,43,35,45],[36,43,37,45],[48,28,48,32],[51,28,52,32],[49,28,50,32],[45,28,47,32],[54,28,54,32],[55,0,57,13],[57,27,57,32],[44,0,44,1],[40,3,40,4],[41,3,41,4],[42,3,42,4],[49,12,49,13],[50,12,50,13],[51,12,51,13],[10,15,11,16],[17,17,18,18],[17,19,18,21],[22,14,24,16],[22,17,23,18],[10,17,11,18],[56,14,57,19],[48,23,51,26],[48,17,49,20],[48,14,49,16],[50,14,51,16],[52,14,53,16],[54,14,55,16],[27,17,27,18],[25,14,27,16],[25,17,26,18],[25,19,26,21],[27,19,27,21],[22,22,23,24],[24,22,24,24],[25,22,26,24],[22,25,23,26],[24,25,24,26],[22,19,23,21],[25,43,27,46],[29,43,29,46],[25,48,26,51],[27,48,28,51],[29,48,29,51],[7,39,8,40],[5,34,6,36],[5,39,6,40],[56,33,56,34],[9,34,10,36],[20,35,20,39],[21,35,21,39],[22,35,22,39],[22,43,23,46],[30,46,31,46],[13,41,15,53],[17,43,18,46],[19,43,21,46],[17,48,19,51],[20,48,23,51],[22,32,22,33],[23,32,23,33],[30,48,30,50],[31,48,32,50],[36,167,36,172],[38,167,38,168],[39,167,39,168],[40,167,40,168],[33,48,33,50],[34,48,35,50],[34,51,35,51],[36,48,37,50],[36,51,37,51],[31,167,31,168],[32,167,32,168],[33,167,33,168],[34,167,34,168],[41,167,41,168],[50,17,51,20],[52,17,53,20],[54,17,55,20],[30,8,32,13],[33,8,33,9],[41,42,51,53],[31,51,32,51],[32,46,33,46],[42,167,42,168],[44,167,44,168],[45,167,45,168],[46,167,46,168],[47,167,47,168],[48,167,48,168],[37,8,39,13],[32,15,39,18],[51,34,51,37],[30,43,31,45],[32,43,33,45],[52,12,52,13],[53,12,53,13],[28,14,28,26],[32,1,34,5],[35,0,35,1],[36,0,36,1],[37,0,37,1],[38,0,38,1],[39,0,39,1],[35,3,35,4],[36,3,36,4],[37,3,37,4],[38,3,38,4],[39,3,39,4],[40,0,40,1],[41,0,41,1],[42,0,42,1],[43,0,43,1],[44,3,44,4],[52,8,52,11],[53,8,53,11],[25,1,25,3],[26,1,26,3],[27,1,27,3],[28,1,28,3],[29,1,29,3],[24,17,24,18],[24,19,24,21],[27,8,27,9],[30,15,31,26],[27,22,27,24],[25,25,26,26],[27,25,27,26],[45,35,46,40],[40,14,41,26],[24,4,24,5],[25,4,25,5],[26,4,26,5],[27,4,27,5],[28,4,28,5],[29,4,29,5],[30,28,30,40],[28,28,28,40],[32,28,32,40],[31,28,31,40],[45,15,47,21],[24,28,26,33],[52,45,55,53],[4,15,5,18],[6,17,7,18],[8,17,9,18],[43,3,43,4],[46,1,48,5],[46,8,48,13],[22,1,23,2],[45,23,47,26],[3,37,4,40],[5,37,6,38],[7,37,8,38],[9,37,10,38],[4,28,4,31],[8,28,9,29],[8,30,9,31],[5,28,7,29],[5,30,7,31],[15,28,17,33],[18,28,18,33],[23,35,24,40],[19,39,19,40],[29,29,29,31],[29,32,29,33]]}
[null,"SYNTHÈSE DES INDICATEURS RELATIFS \nAUX RISQUES PSYCHOSOCIAUX - BILAN SOCIAL 2018",null,null,null,null,null,null,null,null,null,null,null,null,null,null,null,null,null,null,null,null,null,null,null,null,null,null,null,null,null,null,null,null,null,null,null,null,null,null,null,null,null,null,null,null,null,null,null,null,null,null,null,null,null,null,null,null,null,null,null,null,null,null,null,null,null,null,null,null,null,null,null,null,null,null,null,null,null,null,null,null,null,null,null,null,null,null,null,null,null,null,null,null,null,null,null,null,null,null,null,null,null,null,null,null,null,null,null,null,null,null,null,null,null,null,null,null,null,null,null,null,null,null,null,null,null,null,null,null,null,null,null,null,null,null,null,null,null,null,null,null,null,null,null,null,null,null,null,null,null,null,null,null,null,null,null,null,null,null,null,null,null,null,null,null,null,"Filière",null,null,null,null,null,"Cadre d'emploi F","Fonctionnaires","Non titulaires","tt agent","Rang","Rang 2","%","Cadre","Catégorie","tt agent"]
[null,null,null,null,null,null,null,null,null,null,null,null,null,null,null,null,null,null,null,null,null,null,null,null,null,null,null,null,null,null,null,null,null,null,null,null,null,null,null,null,null,null,null,null,null,null,null,null,null,null,null,null,null,null,null,null,null,null,null,null,null,null,null,null,null,null,null,null,null,null,null,null,null,null,null,null,null,null,null,null,null,null,null,null,null,null,null,null,null,null,null,null,null,null,null,null,null,null,null,null,null,null,null,null,null,null,null,null,null,null,null,null,null,null,null,null,null,null,null,null,null,null,null,null,null,null,null,null,null,null,null,null,null,null,null,null,null,null,null,null,null,null,null,null,null,null,null,null,null,null,null,null,null,null,null,null,null,null,null,null,null,null,null,null,null,null,null,null,null,null,null,null,null,"Administrateurs",{"$f":"'[1]IND 1.1.1'!$I$23","v":0},{"$f":"'[1]IND 1.2.1'!$K15","v":0},{"$f":"FS2+FT2","v":0},{"$f":"RANK(FU2,$FU$1:$FU$60,0)+COUNTIF(FU$1:FU2,FU2)-1","v":1},{"$f":"FV2","v":1},{"$f":"$FU2/SUM($FU$2:$FU$60)","v":{"$error":"#DIV/0!"}},{"$f":"FR2","v":"Administrateurs"},"A",{"$f":"FU2","v":0}]
[null,null,null,null,null,null,null,null,null,null,null,null,null,null,"Æ",{"$f":"IF(E28=0,\"Aucun agent sur emploi permanent\",IF(E28<2,\"L'agent employé a entre \"&$R$11-2.5&\" et  \"&$R$11+2.5,\"En moyenne, les agents de la collectivité ont \"&ROUND($R$11,0)&\" ans\"))","v":"Aucun agent sur emploi permanent"},null,null,null,null,"Æ","Pyramide des âges des agents permaments",null,null,null,null,null,"Æ ","Variation des effectifs entre le 31 décembre 2017 et le 31 décembre 2018",null,null,null,null,null,null,null,null,null,null,null,null,null,null,null,null,null,null,null,null,null,null,2018,null,null,null,null,null,null,null,null,null,null,null,null,null,null,null,null,null,null,null,null,null,null,null,null,null,null,null,null,null,null,null,null,null,null,null,null,null,null,null,null,null,null,null,null,null,null,null,null,null,null,null,null,null,null,null,null,null,null,null,null,null,null,null,null,null,null,null,null,null,null,null,null,null,null,null,null,null,null,null,null,null,null,null,null,null,null,null,null,null,null,null,null,null,null,null,null,null,null,null,null,null,null,null,null,null,null,null,null,null,"Numéro","Région","Colonne2",null,null,null,"Filière",null,"Titulaire","Contractuel","Tous",null,"Attachés",{"$f":"'[1]IND 1.1.1'!$I$30","v":0},{"$f":"'[1]IND 1.2.1'!$K16","v":0},{"$f":"FS3+FT3","v":0},{"$f":"RANK(FU3,$FU$1:$FU$60,0)+COUNTIF(FU$1:FU3,FU3)-1","v":2},{"$f":"FV3","v":2},{"$error":"#DIV/0!"},{"$f":"FR3","v":"Attachés"},"A",{"$f":"FU3","v":0}]
[null,null,null,null,null,null,null,null,null,null,null,null,null,null,null,null,null,null,null,null,null,null,null,null,null,null,null,null,null,null,null,null,null,null,null,null,null,"Variation",null,null,null,null,"Nombre de décisions d'accords de temps partiel thérapeutique recensées sur l'année 2018",null,null,null,null,null,null,null,null,{"$f":"'[1]IND 4.2.3'!$C$28","v":0},null,null,null,null,null,null,null,null,null,null,null,null,null,null,null,null,null,null,null,null,null,null,null,null,null,null,null,null,null,null,null,null,null,null,null,null,null,null,null,null,null,null,null,null,null,null,null,null,null,null,null,null,null,null,null,null,null,null,null,null,null,null,null,null,null,null,null,null,null,null,null,null,null,null,null,null,null,null,null,null,null,null,null,null,null,null,null,null,null,null,null,null,null,null,null,null,null,null,null,null,null,null,null,null,null,null,null,null,null,67,"Alsace","Centre de Gestion du Bas-Rhin",null,null,null,"Administrative",null,{"$f":"SUM($FS$2:$FS$6)","v":0},{"$f":"SUM($FT$2:$FT$6)","v":0},{"$f":"$FN$4+$FO$4","v":0},null,"Secrétaires de mairie",{"$f":"'[1]IND 1.1.1'!$I$33","v":0},{"$f":"'[1]IND 1.2.1'!$K17","v":0},0,{"$f":"RANK(FU4,$FU$1:$FU$60,0)+COUNTIF(FU$1:FU4,FU4)-1","v":3},3,{"$error":"#DIV/0!"},"Secrétaires de mairie","A",0]
[null,{"$f":"'[1]Page de garde'!$A$3","v":0},null,null,null,null,null,null,null,null,null,null,null,null,null,"Âge moyen",null,null,null,null,null,null,null,null,null,null,null,null,"Emplois permanents",null,null,null,null,null,null,null,null,null,null,null,null,null,"Nombre de décisions d'aménagement d'horaire ou d'aménagement de poste de travail",null,null,null,null,null,null,null,null,{"$f":"'[1]IND 4.2.3'!$C$29","v":0},null,null,null,null,null,null,null,null,null,null,null,null,null,null,null,null,null,null,null,null,null,null,null,null,null,null,null,null,null,null,null,null,null,null,null,null,null,null,null,null,null,null,null,null,null,null,null,null,null,null,null,null,null,null,null,null,null,null,null,null,null,null,null,null,null,null,null,null,null,null,null,null,null,null,null,null,null,null,null,null,null,null,null,null,null,null,null,null,null,null,null,null,null,null,null,null,null,null,null,null,null,null,null,null,null,null,null,null,null,68,"Alsace","Centre de Gestion du Haut-Rhin",null,null,null,"Technique",null,{"$f":"SUM($FS$7:$FS$12)","v":0},{"$f":"SUM($FT$7:$FT$12)","v":0},{"$f":"$FN$5+$FO$5","v":0},null,"Rédacteurs",{"$f":"'[1]IND 1.1.1'!$I$40","v":0},{"$f":"'[1]IND 1.2.1'!$K18","v":0},0,{"$f":"RANK(FU5,$FU$1:$FU$60,0)+COUNTIF(FU$1:FU5,FU5)-1","v":4},4,{"$error":"#DIV/0!"},"Rédacteurs","B",0]
[null,null,null,null,null,null,null,null,null,null,null,null,null,null,null,null,null,null,null,null,null,null,null,null,null,null,null,null,"Effectif physique théorique au 31/12/2017*",null,"Effectif physique au 31/12/2018",null,null,null,"Nombre de titulaires",null,null,{"$f":"IF(AN6=\" \",\" \",IF(AN6>0%,\"æ\",IF(AN6<0,\"è\",\"â\")))","v":"â"},null,{"$f":"IF(AC71=0,0%,(AE71-AC71)/AC71)","v":0},null,null,null,null,null,null,null,null,null,null,null,null,null,null,null,null,null,null,null,null,null,null,null,null,null,null,null,null,null,null,null,null,null,null,null,null,null,null,null,null,null,null,null,null,null,null,null,null,null,null,null,null,null,null,null,null,null,null,null,null,null,null,null,null,null,null,null,null,null,null,null,null,null,null,null,null,null,null,null,null,null,null,null,null,null,null,null,null,null,null,null,null,null,null,null,null,null,null,null,null,null,null,null,null,null,null,null,null,null,null,null,null,null,null,null,null,null,null,null,null,null,24,"Aquitaine","Centre de Gestion de la Dordogne",null,null,null,"Culturelle",null,{"$f":"SUM($FS$13:$FS$21)","v":0},{"$f":"SUM($FT$13:$FT$21)","v":0},{"$f":"$FN$6+$FO$6","v":0},null,"Adjoints administratifs",{"$f":"'[1]IND 1.1.1'!$I$47","v":0},{"$f":"'[1]IND 1.2.1'!$K19","v":0},0,{"$f":"RANK(FU6,$FU$1:$FU$60,0)+COUNTIF(FU$1:FU6,FU6)-1","v":5},5,{"$error":"#DIV/0!"},"Adjoints administratifs","C",0]
[null,null,null,null,null,null,null,null,null,null,null,null,null,null,null,"Fonctionnaires",null,{"$f":"IF(Calculs!H35=0,\" \",IF(E26<2,\"de \"&Calculs!H36-2.5&\" à \"&Calculs!H36+2.5,Calculs!H36))","v":" "},null,null,null,null,null,null,null,null,null,null,null,null,null,null,null,null,null,null,null,null,null,null,null,null,null,null,null,null,null,null,null,null,null,2018,null,null,null,null,null,null,null,null,null,null,null,null,null,null,null,null,null,null,null,null,null,null,null,null,null,null,null,null,null,null,null,null,null,null,null,null,null,null,null,null,null,null,null,null,null,null,null,null,null,null,null,null,null,null,null,null,null,null,null,null,null,null,null,null,null,null,null,null,null,null,null,null,null,null,null,null,null,null,null,null,null,null,null,null,null,null,null,null,null,null,null,null,null,null,null,null,null,null,null,null,null,null,null,null,null,null,null,null,null,33,"Aquitaine","Centre de Gestion de la Gironde",null,null,null,"Sportive",null,{"$f":"SUM($FS$22:$FS$24)","v":0},{"$f":"SUM($FT$22:$FT$24)","v":0},{"$f":"$FN$7+$FO$7","v":0},null,"Ingénieurs en chef",{"$f":"'[1]IND 1.1.1'!$I$56","v":0},{"$f":"'[1]IND 1.2.1'!$K22","v":0},0,{"$f":"RANK(FU7,$FU$1:$FU$60,0)+COUNTIF(FU$1:FU7,FU7)-1","v":6},6,{"$error":"#DIV/0!"},"Ingénieurs en chef","A",0]
[null,null,null,null,null,null,null,null,null,null,null,null,null,null,null,null,null,null,null,null,null,null,null,null,null,null,null,null,null,null,null,null,null,null,"Nombre de contractuels sur emploi permanent ",null,null,{"$f":"IF(AN8=\" \",\" \",IF(AN8>0%,\"æ\",IF(AN8<0,\"è\",\"â\")))","v":"â"},null,{"$f":"IF(AC72=0,0%,(AE72-AC72)/AC72)","v":0},null,null,"Nombre de demandes de reclassements au cours de l'année suite à une inaptitude liée à un accident du travail  ou à une maladie professionnelle",null,null,null,null,null,null,null,null,{"$f":"'[1]IND 4.2.3'!$C$10","v":0},null,null,null,null,null,null,null,null,null,null,null,null,null,null,null,null,null,null,null,null,null,null,null,null,null,null,null,null,null,null,null,null,null,null,null,null,null,null,null,null,null,null,null,null,null,null,null,null,null,null,null,null,null,null,null,null,null,null,null,null,null,null,null,null,null,null,null,null,null,null,null,null,null,null,null,null,null,null,null,null,null,null,null,null,null,null,null,null,null,null,null,null,null,null,null,null,null,null,null,null,null,null,null,null,null,null,null,null,null,40,"Aquitaine","Centre de Gestion des Landes",null,null,null,"Médico-sociale",null,{"$f":"SUM($FS$25:$FS$44)","v":0},{"$f":"SUM($FT$25:$FT$44)","v":0},{"$f":"$FN$8+$FO$8","v":0},null,"Ingénieurs",{"$f":"'[1]IND 1.1.1'!$I$62","v":0},{"$f":"'[1]IND 1.2.1'!$K23","v":0},0,{"$f":"RANK(FU8,$FU$1:$FU$60,0)+COUNTIF(FU$1:FU8,FU8)-1","v":7},7,{"$error":"#DIV/0!"},"Ingénieurs","A",0]
[null,null,null,null,null,null,null,null,null,null,null,null,null,null,null,"Contractuels sur emploi permanent",null,{"$f":"IF(Calculs!I35=0,\" \",IF(E27<2,\"de \"&Calculs!I36-2.5&\" à \"&Calculs!I36+2.5,Calculs!I36))","v":" "},null,null,null,null,null,null,null,null,null,null,{"$f":"IF(AC73 < 2, TEXT(AC73, \"# ##0\") & \" agent\",TEXT(AC73, \"# ##0\") & \" agents\")","v":"0 agent"},null,{"$f":"IF(AE73 < 2, TEXT(AE73, \"# ##0\") & \" agent\",TEXT(AE73, \"# ##0\") & \" agents\")","v":"0 agent"},null,null,null,null,null,null,null,null,null,null,null,null,null,null,null,null,null,null,null,null,null,null,null,null,null,null,null,null,null,null,null,null,null,null,null,null,null,null,null,null,null,null,null,null,null,null,null,null,null,null,null,null,null,null,null,null,null,null,null,null,null,null,null,null,null,null,null,null,null,null,null,null,null,null,null,null,null,null,null,null,null,null,null,null,null,null,null,null,null,null,null,null,null,null,null,null,null,null,null,null,null,null,null,null,null,null,null,null,null,null,null,null,null,null,null,null,null,null,null,null,null,null,null,null,null,null,null,null,null,null,47,"Aquitaine","Centre de Gestion du Lot-et-Garonne",null,null,null,"Police",null,{"$f":"SUM($FS$45:$FS$48)","v":0},{"$f":"SUM($FT$45:$FT$48)","v":0},{"$f":"$FN$9+$FO$9","v":0},null,"Techniciens",{"$f":"'[1]IND 1.1.1'!$I$69","v":0},{"$f":"'[1]IND 1.2.1'!$K24","v":0},0,{"$f":"RANK(FU9,$FU$1:$FU$60,0)+COUNTIF(FU$1:FU9,FU9)-1","v":8},8,{"$error":"#DIV/0!"},"Techniciens","B",0]
[null,"L'accord-cadre relatif à la prévention des risques psychosociaux (RPS) dans la fonction publique du 22 octobre 2013 prévoit que chaque employeur public doit élaborer un plan d’évaluation et de prévention des RPS. Cette synthèse reprend les principaux indicateurs quantitatifs relatifs aux RPS préconisés par la Direction Générale de l’Administration et de la Fonction Publique* et présents dans le Bilan Social 2017. Les 4 indicateurs obligatoires et suivis au niveau national sont présentés en dernière page.         *DGAFP, Livret 5 : Indicateurs des risques psychosociaux",null,null,null,null,null,null,null,null,null,null,null,null,null,null,null,null,null,null,null,null,null,null,null,null,null,null,null,null,null,null,null,null,"Ensemble des agents sur emploi permanent",null,null,{"$f":"IF(AN10=\" \",\" \",IF(AN10>0%,\"æ\",IF(AN10<0,\"è\",\"â\")))","v":{"$error":"#DIV/0!"}},null,{"$f":"(AE73-AC73)/AC73","v":{"$error":"#DIV/0!"}},null,null,"Nombre de décisions de reclassements au cours de l'année suite à une inaptitude liée à un accident du travail ou à une maladie professionnelle",null,null,null,null,null,null,null,null,{"$f":"'[1]IND 4.2.3'!$C$12","v":0},null,null,null,null,null,null,null,null,null,null,null,null,null,null,null,null,null,null,null,null,null,null,null,null,null,null,null,null,null,null,null,null,null,null,null,null,null,null,null,null,null,null,null,null,null,null,null,null,null,null,null,null,null,null,null,null,null,null,null,null,null,null,null,null,null,null,null,null,null,null,null,null,null,null,null,null,null,null,null,null,null,null,null,null,null,null,null,null,null,null,null,null,null,null,null,null,null,null,null,null,null,null,null,null,null,null,null,null,null,64,"Aquitaine","Centre de Gestion des Pyrénées-Atlantiques",null,null,null,"Incendie",null,{"$f":"SUM($FS$49:$FS$56)","v":0},{"$f":"SUM($FT$49:$FT$56)","v":0},{"$f":"$FN$10+$FO$10","v":0},null,"Agents de maîtrise",{"$f":"'[1]IND 1.1.1'!$I$74","v":0},{"$f":"'[1]IND 1.2.1'!$K25","v":0},0,{"$f":"RANK(FU10,$FU$1:$FU$60,0)+COUNTIF(FU$1:FU10,FU10)-1","v":9},9,{"$error":"#DIV/0!"},"Agents de maîtrise","C",0]
[null,null,null,null,null,null,null,null,null,null,null,null,null,null,null,"Ensemble agents sur emploi permanent",null,{"$f":"IF(Calculs!K35=0,\" \",IF(E28<2,\"de \"&Calculs!K36-2.5&\" à \"&Calculs!K36+2.5,Calculs!K36))","v":" "},null,null,null,null,null,null,null,null,null,null,null,null,null,null,null,null,null,null,null,null,null,null,null,null,null,null,null,null,null,null,null,null,null,null,null,null,null,null,null,null,null,null,null,null,null,null,null,null,null,null,null,null,null,null,null,null,null,null,null,null,null,null,null,null,null,null,null,null,null,null,null,null,null,null,null,null,null,null,null,null,null,null,null,null,null,null,null,null,null,null,null,null,null,null,null,null,null,null,null,null,null,null,null,null,null,null,null,null,null,null,null,null,null,null,null,null,null,null,null,null,null,null,null,null,null,null,null,null,null,null,null,null,null,null,null,null,null,null,null,null,null,null,null,3,"Auvergne","Centre de Gestion de l'Allier",null,null,null,"Animation",null,{"$f":"SUM($FS$57:$FS$58)","v":0},{"$f":"SUM($FT$57:$FT$58)","v":0},{"$f":"$FN$11+$FO$11","v":0},null,"Adjoints techniques",{"$f":"'[1]IND 1.1.1'!$I$81","v":0},{"$f":"'[1]IND 1.2.1'!$K26","v":0},0,{"$f":"RANK(FU11,$FU$1:$FU$60,0)+COUNTIF(FU$1:FU11,FU11)-1","v":10},10,{"$error":"#DIV/0!"},"Adjoints techniques","C",0]
[null,null,null,null,null,null,null,null,null,null,null,null,null,null,null,null,null,null,null,null,null,null,null,null,null,null,null,"* Ne sont pas pris en compte : réintégrations, mises à disposition, disponibilité, congés parentaux, décharges de service - mandats syndicaux et congés formation",null,null,null,null,null,null,null,null,null,null,null,null,null,null,null,null,null,null,null,null,null,null,null,null,null,null,null,null,null,null,null,null,null,null,null,null,null,null,null,null,null,null,null,null,null,null,null,null,null,null,null,null,null,null,null,null,null,null,null,null,null,null,null,null,null,null,null,null,null,null,null,null,null,null,null,null,null,null,null,null,null,null,null,null,null,null,null,null,null,null,null,null,null,null,null,null,null,null,null,null,null,null,null,null,null,null,null,null,null,null,null,null,null,null,null,null,null,null,null,null,null,null,null,null,null,null,null,null,null,null,null,null,null,15,"Auvergne","Centre de Gestion du Cantal",null,null,null,"Mayotte",null,{"$f":"SUM($FS$59:$FS$60)","v":0},{"$f":"SUM($FT$59:$FT$60)","v":0},{"$f":"$FN$12+$FO$12","v":0},null,"Adjoints techniques des établissements d'enseignement",{"$f":"'[1]IND 1.1.1'!$I$88","v":0},{"$f":"'[1]IND 1.2.1'!$K27","v":0},0,{"$f":"RANK(FU12,$FU$1:$FU$60,0)+COUNTIF(FU$1:FU12,FU12)-1","v":11},11,{"$error":"#DIV/0!"},"Adjoints techniques des établissements d'enseignement","C",0]
[null,null,null,null,null,null,null,null,null,null,null,null,null,null,null,null,null,null,null,null,null,null,null,null,null,null,null,null,null,null,null,null,null,null,null,null,null,null,null,null,null,null,null,null,null,null,null,null,null,null,null,null,null,null,null,null,null,null,null,null,null,null,null,null,null,null,null,null,null,null,null,null,null,null,null,null,null,null,null,null,null,null,null,null,null,null,null,null,null,null,null,null,null,null,null,null,null,null,null,null,null,null,null,null,null,null,null,null,null,null,null,null,null,null,null,null,null,null,null,null,null,null,null,null,null,null,null,null,null,null,null,null,null,null,null,null,null,null,null,null,null,null,null,null,null,null,null,null,null,null,null,null,null,null,null,null,null,null,null,null,null,43,"Auvergne","Centre de Gestion de la Haute-Loire",null,null,null,"Total",null,{"$f":"SUM($FN$4:$FN$12)","v":0},{"$f":"SUM($FO$4:$FO$12)","v":0},{"$f":"$FN$13+$FO$13","v":0},null,"Conservateurs du patrimoine",{"$f":"'[1]IND 1.1.1'!$I$96","v":0},{"$f":"'[1]IND 1.2.1'!$K30","v":0},0,{"$f":"RANK(FU13,$FU$1:$FU$60,0)+COUNTIF(FU$1:FU13,FU13)-1","v":12},12,{"$error":"#DIV/0!"},"Conservateurs du patrimoine","A",0]
[null,null,null,null,null,null,null,null,null,null,null,null,null,null,null,null,null,null,null,null,null,null,null,null,null,null,null,null,null,null,null,null,null,null,null,null,null,null,null,null,null,"Les 4 indicateurs suivis au niveau national par le Conseil commun de la Fonction Publique\nAnnée 2018",null,null,null,null,null,null,null,null,null,null,null,null,null,null,null,null,null,null,null,null,null,null,null,null,null,null,null,null,null,null,null,null,null,null,null,null,null,null,null,null,null,null,null,null,null,null,null,null,null,null,null,null,null,null,null,null,null,null,null,null,null,null,null,null,null,null,null,null,null,null,null,null,null,null,null,null,null,null,null,null,null,null,null,null,null,null,null,null,null,null,null,null,null,null,null,null,null,null,null,null,null,null,null,null,null,null,null,null,null,null,null,null,null,null,null,null,null,null,null,63,"Auvergne","Centre de Gestion du Puy-de-Dôme",null,null,null,null,null,null,null,null,null,"Conservateurs des bibliothèques",{"$f":"'[1]IND 1.1.1'!$I$101","v":0},{"$f":"'[1]IND 1.2.1'!$K31","v":0},0,{"$f":"RANK(FU14,$FU$1:$FU$60,0)+COUNTIF(FU$1:FU14,FU14)-1","v":13},13,{"$error":"#DIV/0!"},"Conservateurs des bibliothèques","A",0]
[null,null,null,null,null,null,null,null,null,null,null,null,null,null,null,null,null,null,null,null,null,null,null,null,null,null,null,null,null,null,null,null,null,null,null,null,null,null,null,null,null,null,null,null,null,null,null,null,null,null,null,null,null,null,null,null,null,null,null,null,null,null,null,null,null,null,null,null,null,null,null,null,null,null,null,null,null,null,null,null,null,null,null,null,null,null,null,null,null,null,null,null,null,null,null,null,null,null,null,null,null,null,null,null,null,null,null,null,null,null,null,null,null,null,null,null,null,null,null,null,null,null,null,null,null,null,null,null,null,null,null,null,null,null,null,null,null,null,null,null,null,null,null,null,null,null,null,null,null,null,null,null,null,null,null,null,null,null,null,null,null,14,"Basse-Normandie","Centre de Gestion du Calvados",null,null,null,null,null,null,null,null,null,"Attachés de conservation du patrimoine",{"$f":"'[1]IND 1.1.1'!$I$106","v":0},{"$f":"'[1]IND 1.2.1'!$K32","v":0},0,{"$f":"RANK(FU15,$FU$1:$FU$60,0)+COUNTIF(FU$1:FU15,FU15)-1","v":14},14,{"$error":"#DIV/0!"},"Attachés de conservation du patrimoine","A",0]
[null,{"$f":"\"Cette synthèse sur les risques psychosociaux reprend les principaux indicateurs pour l'année 2018. Elle a été réalisée par le \" &VLOOKUP(VALUE('[1]Page de garde'!$F$8),FF4:FH99,3,FALSE)&\" par extraction des données du Rapport sur l'État de la Collectivité 2018 transmis en 2018 par la collectivité.\"","v":{"$error":"#N/A"}},null,null,null,null,null,null,null,null,null,null,null,null,"Æ","Taux d'absentéisme des agents de la collectivité selon le statut",null,null,null,null,null,null,null,null,null,null,null,"Æ ",{"$f":"IF(AG21+AG22=0,\"Aucun accident de travail\",IF(E30>100,\"Le taux de fréquence* des accidents de travail est de \"&ROUND((AG21+AG22)/E30*100,2)&\" pour 100 agents\",IF((AG21+AG22)<2,\"Un accident de travail en 2018\",(AG21+AG22)&\" accidents de travail en 2018\")))","v":"Aucun accident de travail"},null,null,null,null,null,{"$f":"IF(AJ16=\" \",\" \",\"Æ\")","v":"Æ"},"Les principaux cadres d'emplois concernés par les accidents de travail***",null,null,null,null,null,null,null,null,null,null,null,null,null,null,null,null,null,null,null,null,null,null,null,null,null,null,null,null,null,null,null,null,null,null,null,null,null,null,null,null,null,null,null,null,null,null,null,null,null,null,null,null,null,null,null,null,null,null,null,null,null,null,null,null,null,null,null,null,null,null,null,null,null,null,null,null,null,null,null,null,null,null,null,null,null,null,null,null,null,null,null,null,null,null,null,null,null,null,null,null,null,null,null,null,null,null,null,null,null,null,null,null,null,null,null,null,null,null,null,null,null,null,null,null,null,61,"Basse-Normandie","Centre de Gestion de l'Orne",null,null,null,"STATUT et SEXE",null,null,null,null,null,"Bibliothécaires",{"$f":"'[1]IND 1.1.1'!$I$111","v":0},{"$f":"'[1]IND 1.2.1'!$K33","v":0},0,{"$f":"RANK(FU16,$FU$1:$FU$60,0)+COUNTIF(FU$1:FU16,FU16)-1","v":15},15,{"$error":"#DIV/0!"},"Bibliothécaires","A",0]
[null,null,null,null,null,null,null,null,null,null,null,null,null,null,null,null,null,null,null,null,null,null,null,null,null,null,null,null,null,null,null,null,null,null,null,null,null,null,null,null,null,null,null,null,null,null,null,null,null,null,null,null,null,null,null,null,null,null,null,null,null,null,null,null,null,null,null,null,null,null,null,null,null,null,null,null,null,null,null,null,null,null,null,null,null,null,null,null,null,null,null,null,null,null,null,null,null,null,null,null,null,null,null,null,null,null,null,null,null,null,null,null,null,null,null,null,null,null,null,null,null,null,null,null,null,null,null,null,null,null,null,null,null,null,null,null,null,null,null,null,null,null,null,null,null,null,null,null,null,null,null,null,null,null,null,null,null,null,null,null,null,21,"Bourgogne","Centre de Gestion de la Côte d'Or",null,null,null,null,null,null,null,null,null,"Directeurs d'établissements d'enseignement artistique",{"$f":"'[1]IND 1.1.1'!$I$117","v":0},{"$f":"'[1]IND 1.2.1'!$K34","v":0},0,{"$f":"RANK(FU17,$FU$1:$FU$60,0)+COUNTIF(FU$1:FU17,FU17)-1","v":16},16,{"$error":"#DIV/0!"},"Directeurs d'établissements d'enseignement artistique","A",0]
[null,null,null,null,null,null,null,null,null,null,null,null,null,null,null,null,null,"Fonctionnaires",null,"Contractuels permanents",null,null,"Ensemble \nagents permanents",null,null,"Contractuels non permanents",null,null,null,null,null,null,null,null,null,null,null,null,null,null,null,null,null,"Taux de rotation des agents (1)",null,null,null,null,"Taux de visite sur demande\nau médecin de prévention",null,null,null,null,null,null,null,null,null,null,null,null,null,null,null,null,null,null,null,null,null,null,null,null,null,null,null,null,null,null,null,null,null,null,null,null,null,null,null,null,null,null,null,null,null,null,null,null,null,null,null,null,null,null,null,null,null,null,null,null,null,null,null,null,null,null,null,null,null,null,null,null,null,null,null,null,null,null,null,null,null,null,null,null,null,null,null,null,null,null,null,null,null,null,null,null,null,null,null,null,null,null,null,null,null,null,null,null,null,null,null,null,58,"Bourgogne","Centre de Gestion de la Nièvre",null,null,null,null,null,"Hommes","Femmes","Total",null,"Professeurs d'enseignement artistique",{"$f":"'[1]IND 1.1.1'!$I$122","v":0},{"$f":"'[1]IND 1.2.1'!$K35","v":0},0,{"$f":"RANK(FU18,$FU$1:$FU$60,0)+COUNTIF(FU$1:FU18,FU18)-1","v":17},17,{"$error":"#DIV/0!"},"Professeurs d'enseignement artistique","A",0]
[null,null,null,null,null,null,null,null,null,null,null,null,null,null,null,null,null,null,null,null,null,null,null,null,null,null,null,null,{"$f":"IF(AC16=\" \",\" \",\"* taux de fréquence = nombre d'accidents de travail/effectif total\")","v":"* taux de fréquence = nombre d'accidents de travail/effectif total"},null,null,null,null,null,null,"% d'accidents / total des accidents",null,null,null,null,null,null,null,null,null,null,null,null,null,null,null,null,null,null,null,null,null,null,null,null,null,null,null,null,null,null,null,null,null,null,null,null,null,null,null,null,null,null,null,null,null,null,null,null,null,null,null,null,null,null,null,null,null,null,null,null,null,null,null,null,null,null,null,null,null,null,null,null,null,null,null,null,null,null,null,null,null,null,null,null,null,null,null,null,null,null,null,null,null,null,null,null,null,null,null,null,null,null,null,null,null,null,null,null,null,null,null,null,null,null,null,null,null,null,null,null,null,null,null,null,null,71,"Bourgogne","Centre de Gestion de Saône-et-Loire",null,null,null,"Contractuels sur emploi non permanent",null,{"$f":"'[1]IND 1.3.1'!$D$38","v":0},{"$f":"'[1]IND 1.3.1'!$E$38","v":0},{"$f":"$FN$19+$FO$19","v":0},null,"Assistants de conservation du patrimoine et des bibliothèque",{"$f":"'[1]IND 1.1.1'!$I$129","v":0},{"$f":"'[1]IND 1.2.1'!$K36","v":0},0,{"$f":"RANK(FU19,$FU$1:$FU$60,0)+COUNTIF(FU$1:FU19,FU19)-1","v":18},18,{"$error":"#DIV/0!"},"Assistants de conservation du patrimoine et des bibliothèque","B",0]
[null,null,null,null,null,null,null,null,null,null,null,null,null,null,"Taux d'absentéisme « compressible » (maladies ordinaires et accidents de travail)",null,null,{"$f":"IF(Calculs!L50=0,\"-\",Calculs!L50)","v":"-"},null,{"$f":"IF(Calculs!L51=0,\"-\",Calculs!L51)","v":"-"},null,null,{"$f":"IF(Calculs!L53=0,\"-\",Calculs!L53)","v":"-"},null,null,{"$f":"IF(Calculs!L52=0,\"-\",Calculs!L52)","v":"-"},null,null,null,null,null,null,"Nombre",null,null,null,null,null,null,"%",null,null,null,"(1)Formule du taux rotation: ((somme du  nombre d'arrivées et du nombre de départs d'agents au cours de l'année)/2)/effectif des agents pemanents moyen de l'année n",null,null,null,null,null,null,null,null,null,null,null,null,null,null,null,null,null,null,null,null,null,null,null,null,null,null,null,null,null,null,null,null,null,null,null,null,null,null,null,null,null,null,null,null,null,null,null,null,null,null,null,null,null,null,null,null,null,null,null,null,null,null,null,null,null,null,null,null,null,null,null,null,null,null,null,null,null,null,null,null,null,null,null,null,null,null,null,null,null,null,null,null,null,null,null,null,null,null,null,null,null,null,null,null,null,null,null,null,null,null,null,null,null,null,null,null,null,89,"Bourgogne","Centre de Gestion de l'Yonne",null,null,null,"Contractuels sur emploi permanent",null,{"$f":"'[1]IND 1.2.1'!$Q$96+'[1]IND 1.2.1'!$R$96","v":0},{"$f":"'[1]IND 1.2.1'!$S$96+'[1]IND 1.2.1'!$T$96","v":0},{"$f":"$FN$20+$FO$20","v":0},null,"Assistants d'enseignement artistique",{"$f":"'[1]IND 1.1.1'!$I$136","v":0},{"$f":"'[1]IND 1.2.1'!$K37","v":0},0,{"$f":"RANK(FU20,$FU$1:$FU$60,0)+COUNTIF(FU$1:FU20,FU20)-1","v":19},19,{"$error":"#DIV/0!"},"Assistants d'enseignement artistique","B",0]
[null,null,null,null,null,null,null,null,null,null,null,null,null,null,null,null,null,null,null,null,null,null,null,null,null,null,null,null,"Accidents de service",null,null,null,{"$f":"'[1]IND 4.2.1'!$C$102+'[1]IND 4.2.1'!$D$102","v":0},null,null,{"$f":"IF(AO21=0,\" \",VLOOKUP(1,Calculs!$CA$11:$CC$70,3,FALSE))","v":" "},null,null,null,null,{"$f":"IF(Calculs!BZ71=\"0\",0,VLOOKUP(1,Calculs!$CA$11:$CB$70,2,FALSE))","v":0},null,null,null,null,null,null,null,{"$f":"IF(Calculs!I117=0,\"Au sein de la collectivité, il n'y a pas eu de visite sur demande auprès du médecin prévention\",\"Au sein de la collectivité, le nombre de visite sur demande auprès du médecin de prévention est de \"&ROUND(Calculs!I117,1)&\" pour 100 agents permanents\")","v":{"$error":"#DIV/0!"}},null,null,null,null,null,null,null,null,null,null,null,null,null,null,null,null,null,null,null,null,null,null,null,null,null,null,null,null,null,null,null,null,null,null,null,null,null,null,null,null,null,null,null,null,null,null,null,null,null,null,null,null,null,null,null,null,null,null,null,null,null,null,null,null,null,null,null,null,null,null,null,null,null,null,null,null,null,null,null,null,null,null,null,null,null,null,null,null,null,null,null,null,null,null,null,null,null,null,null,null,null,null,null,null,null,null,null,null,null,null,null,null,22,"Bretagne","Centre de Gestion des Côtes d'Armor",null,null,null,"Fonctionnaires",null,{"$f":"'[1]IND 1.1.1'!$G$382","v":0},{"$f":"'[1]IND 1.1.1'!$H$382","v":0},{"$f":"$FN$21+$FO$21","v":0},null,"Adjoints territoriaux du patrimoine",{"$f":"'[1]IND 1.1.1'!$I$143","v":0},{"$f":"'[1]IND 1.2.1'!$K38","v":0},0,{"$f":"RANK(FU21,$FU$1:$FU$60,0)+COUNTIF(FU$1:FU21,FU21)-1","v":20},20,{"$error":"#DIV/0!"},"Adjoints territoriaux du patrimoine","C",0]
[null,null,null,null,null,null,null,null,null,null,null,null,null,null,null,null,null,{"$f":"R20","v":"-"},null,{"$f":"T20","v":"-"},null,null,{"$f":"W20","v":"-"},null,null,{"$f":"Z20","v":"-"},null,null,"Accidents de trajet",null,null,null,{"$f":"'[1]IND 4.2.1'!$G$102+'[1]IND 4.2.1'!$H$102","v":0},null,null,{"$f":"IF(AO22=0,\" \",VLOOKUP(2,Calculs!$CA$11:$CC$70,3,FALSE))","v":" "},null,null,null,null,{"$f":"IF(Calculs!BZ71=\"0\",0,VLOOKUP(2,Calculs!$CA$11:$CB$70,2,FALSE))","v":0},null,null,null,null,null,null,null,null,null,null,null,null,null,null,null,null,null,null,null,null,null,null,null,null,null,null,null,null,null,null,null,null,null,null,null,null,null,null,null,null,null,null,null,null,null,null,null,null,null,null,null,null,null,null,null,null,null,null,null,null,null,null,null,null,null,null,null,null,null,null,null,null,null,null,null,null,null,null,null,null,null,null,null,null,null,null,null,null,null,null,null,null,null,null,null,null,null,null,null,null,null,null,null,null,null,null,null,null,null,null,null,null,null,null,null,null,null,null,null,null,29,"Bretagne","Centre de Gestion du Finistère",null,null,null,"Total",null,{"$f":"$FN$19+$FN$20+$FN$21","v":0},{"$f":"$FO$19+$FO$20+$FO$21","v":0},{"$f":"$FP$19+$FP$20+$FP$21","v":0},null,"Conseillers des APS",{"$f":"'[1]IND 1.1.1'!$I$151","v":0},{"$f":"'[1]IND 1.2.1'!$K41","v":0},0,{"$f":"RANK(FU22,$FU$1:$FU$60,0)+COUNTIF(FU$1:FU22,FU22)-1","v":21},21,{"$error":"#DIV/0!"},"Conseillers des APS","A",0]
["Æ","Typologie des agents",null,null,null,null,null,null,null,null,null,null,null,null,"Taux d'absentéisme \nmédical* (toutes absences\n pour motif médical)",null,null,{"$f":"IF(Calculs!L57=0,\"-\",Calculs!L57)","v":"-"},null,{"$f":"IF(Calculs!L58=0,\"-\",Calculs!L58)","v":"-"},null,null,{"$f":"IF(Calculs!L60=0,\"-\",Calculs!L60)","v":"-"},null,null,{"$f":"IF(Calculs!L59=0,\"-\",Calculs!L59)","v":"-"},null,null,"Maladies professionnelles",null,null,null,{"$f":"'[1]IND 4.2.2'!$C$93+'[1]IND 4.2.2'!$D$93+'[1]IND 4.2.2'!$E$93+'[1]IND 4.2.2'!$F$93","v":0},null,null,{"$f":"IF(AO23=0,\" \",VLOOKUP(3,Calculs!$CA$11:$CC$70,3,FALSE))","v":" "},null,null,null,null,{"$f":"IF(Calculs!BZ71=\"0\",0,VLOOKUP(3,Calculs!$CA$11:$CB$70,2,FALSE))","v":0},null,null,{"$f":"IF(Calculs!N65=0,\"Il n'y a pas eu de mouvement au sein de la collectivité\",\" Le taux de rotation s'élève à \"&ROUND(Calculs!N65*100,1)&\" %\")","v":{"$error":"#DIV/0!"}},null,null,null,null,null,null,null,null,null,null,null,null,null,null,null,null,null,null,null,null,null,null,null,null,null,null,null,null,null,null,null,null,null,null,null,null,null,null,null,null,null,null,null,null,null,null,null,null,null,null,null,null,null,null,null,null,null,null,null,null,null,null,null,null,null,null,null,null,null,null,null,null,null,null,null,null,null,null,null,null,null,null,null,null,null,null,null,null,null,null,null,null,null,null,null,null,null,null,null,null,null,null,null,null,null,null,null,null,null,null,null,null,null,null,null,null,null,35,"Bretagne","Centre de Gestion d'Ille-et-Vilaine",null,null,null,null,null,null,null,null,null,"Educateurs des APS",{"$f":"'[1]IND 1.1.1'!$I$158","v":0},{"$f":"'[1]IND 1.2.1'!$K42","v":0},0,{"$f":"RANK(FU23,$FU$1:$FU$60,0)+COUNTIF(FU$1:FU23,FU23)-1","v":22},22,{"$error":"#DIV/0!"},"Educateurs des APS","B",0]
[null,null,null,null,null,null,null,null,null,null,null,null,null,null,null,null,null,null,null,null,null,null,null,null,null,null,null,null,"ATI** au cours de l'année",null,null,null,{"$f":"SUM([1]!Valeur_424)","v":0},null,null,"***Les accidents de travail comprennent les accidents de service et de trajet",null,null,null,null,null,null,null,null,null,null,null,null,null,null,null,null,null,null,null,null,null,null,null,null,null,null,null,null,null,null,null,null,null,null,null,null,null,null,null,null,null,null,null,null,null,null,null,null,null,null,null,null,null,null,null,null,null,null,null,null,null,null,null,null,null,null,null,null,null,null,null,null,null,null,null,null,null,null,null,null,null,null,null,null,null,null,null,null,null,null,null,null,null,null,null,null,null,null,null,null,null,null,null,null,null,null,null,null,null,null,null,null,null,null,null,null,null,null,null,null,null,null,null,null,null,56,"Bretagne","Centre de Gestion du Morbihan",null,null,null,null,null,null,null,null,null,"Opérateurs des APS",{"$f":"'[1]IND 1.1.1'!$I$164","v":0},{"$f":"'[1]IND 1.2.1'!$K43","v":0},0,{"$f":"RANK(FU24,$FU$1:$FU$60,0)+COUNTIF(FU$1:FU24,FU24)-1","v":23},23,{"$error":"#DIV/0!"},"Opérateurs des APS","C",0]
[null,null,null,null,"Effectif",null,null,null,null,null,null,null,null,null,null,null,null,{"$f":"R23","v":"-"},null,{"$f":"T23","v":"-"},null,null,{"$f":"W23","v":"-"},null,null,{"$f":"Z23","v":"-"},null,null,"**Allocations Temporaires d'Invalidité (ATI) attribuées au cours de l'année",null,null,null,null,null,null,null,null,null,null,null,null,null,null,null,null,null,null,null,null,null,null,null,null,null,null,null,null,null,null,null,null,null,null,null,null,null,null,null,null,null,null,null,null,null,null,null,null,null,null,null,null,null,null,null,null,null,null,null,null,null,null,null,null,null,null,null,null,null,null,null,null,null,null,null,null,null,null,null,null,null,null,null,null,null,null,null,null,null,null,null,null,null,null,null,null,null,null,null,null,null,null,null,null,null,null,null,null,null,null,null,null,null,null,null,null,null,null,null,null,null,null,null,null,null,null,null,null,null,null,null,null,18,"Centre","Centre de Gestion du Cher",null,null,null,null,null,null,null,null,null,"Conseillers socio-éducatifs",{"$f":"'[1]IND 1.1.1'!$I$172","v":0},{"$f":"'[1]IND 1.2.1'!$K46","v":0},0,{"$f":"RANK(FU25,$FU$1:$FU$60,0)+COUNTIF(FU$1:FU25,FU25)-1","v":24},24,{"$error":"#DIV/0!"},"Conseillers socio-éducatifs","A",0]
[null,"Titulaires",null,null,{"$f":"'[1]IND 1.1.1'!$I$382","v":0},null,null,null,null,null,null,null,null,null,"Taux d'absentéisme \nGlobal (toutes absences y compris maternité, paternité et autre**)",null,null,{"$f":"IF(Calculs!C59=0,\"-\",Calculs!C59)","v":"-"},null,{"$f":"IF(Calculs!E59=0,\"-\",Calculs!E59)","v":"-"},null,null,{"$f":"IF(Calculs!I59=0,\"-\",Calculs!I59)","v":"-"},null,null,{"$f":"IF(Calculs!G59=0,\"-\",Calculs!G59)","v":"-"},null,null,null,null,null,null,null,null,null,null,null,null,null,null,null,null,null,"Nombre d'actes de violences \nphysiques envers le personnel",null,null,null,null,"Absentéisme pour raisons de santé (2)",null,null,null,null,null,null,null,null,null,null,null,null,null,null,null,null,null,null,null,null,null,null,null,null,null,null,null,null,null,null,null,null,null,null,null,null,null,null,null,null,null,null,null,null,null,null,null,null,null,null,null,null,null,null,null,null,null,null,null,null,null,null,null,null,null,null,null,null,null,null,null,null,null,null,null,null,null,null,null,null,null,null,null,null,null,null,null,null,null,null,null,null,null,null,null,null,null,null,null,null,null,null,null,null,null,null,null,null,null,null,null,null,28,"Centre","Centre de Gestion d'Eure-et-Loir",null,null,null,null,null,"Temps complet","Temps non complet","Total",null,"Assistants socio-éducatifs",{"$f":"'[1]IND 1.1.1'!$I$177","v":0},{"$f":"'[1]IND 1.2.1'!$K47","v":0},0,{"$f":"RANK(FU26,$FU$1:$FU$60,0)+COUNTIF(FU$1:FU26,FU26)-1","v":25},25,{"$error":"#DIV/0!"},"Assistants socio-éducatifs","B",0]
[null,"Contractuels permanents",null,null,{"$f":"'[1]IND 1.2.1'!$K$96","v":0},null,null,null,null,null,null,null,null,null,null,null,null,null,null,null,null,null,null,null,null,null,null,null,null,null,null,null,null,null,null,null,null,null,null,null,null,null,null,null,null,null,null,null,null,null,null,null,null,null,null,null,null,null,null,null,null,null,null,null,null,null,null,null,null,null,null,null,null,null,null,null,null,null,null,null,null,null,null,null,null,null,null,null,null,null,null,null,null,null,null,null,null,null,null,null,null,null,null,null,null,null,null,null,null,null,null,null,null,null,null,null,null,null,null,null,null,null,null,null,null,null,null,null,null,null,null,null,null,null,null,null,null,null,null,null,null,null,null,null,null,null,null,null,null,null,null,null,null,null,null,null,null,null,null,null,null,36,"Centre","Centre de Gestion de l'Indre",null,null,null,{"$f":"IF(B19=0,\" \",\"Contractuels\")","v":" "},null,{"$f":"'[1]IND 1.2.1'!$L$96","v":0},{"$f":"'[1]IND 1.2.1'!$M$96","v":0},{"$f":"FN27+FO27","v":0},null,"Educateurs de jeunes enfants",{"$f":"'[1]IND 1.1.1'!$I$182","v":0},{"$f":"'[1]IND 1.2.1'!$K48","v":0},0,{"$f":"RANK(FU27,$FU$1:$FU$60,0)+COUNTIF(FU$1:FU27,FU27)-1","v":26},26,{"$error":"#DIV/0!"},"Educateurs de jeunes enfants","B",0]
[null,"Ensemble des agents permanents",null,null,{"$f":"E26+E27","v":0},null,null,null,null,null,null,null,null,null,null,null,null,{"$f":"R26","v":"-"},null,{"$f":"T26","v":"-"},null,null,{"$f":"W26","v":"-"},null,null,{"$f":"Z26","v":"-"},null,null,null,null,null,null,null,null,null,null,null,null,null,null,null,null,null,null,null,null,null,null,"(2) Formule de calcul: nombre de jours d'arrêts pour maladie/nombre total d'agents permanents",null,null,null,null,null,null,null,null,null,null,null,null,null,null,null,null,null,null,null,null,null,null,null,null,null,null,null,null,null,null,null,null,null,null,null,null,null,null,null,null,null,null,null,null,null,null,null,null,null,null,null,null,null,null,null,null,null,null,null,null,null,null,null,null,null,null,null,null,null,null,null,null,null,null,null,null,null,null,null,null,null,null,null,null,null,null,null,null,null,null,null,null,null,null,null,null,null,null,null,null,null,null,null,null,null,null,null,null,null,null,null,null,37,"Centre","Centre de Gestion d'Indre-et-Loire",null,null,null,{"$f":"IF(B18=0,\" \",\"Fonctionnaires\")","v":" "},null,{"$f":"'[1]IND 1.1.1'!$B$382","v":0},{"$f":"'[1]IND 1.1.1'!$F$382","v":0},{"$f":"FN28+FO28","v":0},null,"Moniteurs-éducateurs et intervenants familiaux",{"$f":"'[1]IND 1.1.1'!$I$187","v":0},{"$f":"'[1]IND 1.2.1'!$K49","v":0},0,{"$f":"RANK(FU28,$FU$1:$FU$60,0)+COUNTIF(FU$1:FU28,FU28)-1","v":27},27,{"$error":"#DIV/0!"},"Moniteurs-éducateurs et intervenants familiaux","B",0]
[null,"Contractuels non permanents",null,null,{"$f":"'[1]IND 1.3.1'!$F$38","v":0},null,null,null,null,null,null,null,null,null,"Taux d'absentéisme : nombre de jours d'absence / (nombre total d'agents x 365)",null,null,null,null,null,null,null,null,null,null,null,null,"a",{"$f":"IF('[1]IND 4.1.4-4.1.7'!$F$9=\"oui\",\"La collectivité dispose d'un document unique d'évaluation des risques professionnels\",IF('[1]IND 4.1.4-4.1.7'!$F$9=\"non\",\"La collectivité ne dispose pas de document unique d'évaluation des risques professionnels\",IF('[1]IND 4.1.4-4.1.7'!$F$9=\"en cours\",\"La collectivité est en cours de réalisation d'un document unique d'évaluation des risques professionnels\",IF('[1]IND 4.1.4-4.1.7'!$F$9=\"(vide)\",\"La collectivité n'a pas précisé dans le bilan social si elle dispose ou non d'un document unique\",\" \"))))","v":"La collectivité n'a pas précisé dans le bilan social si elle dispose ou non d'un document unique"},null,null,null,null,null,null,null,null,null,null,null,null,null,null,null,null,null,null,null,null,null,null,null,null,null,null,null,null,null,null,null,null,null,null,null,null,null,null,null,null,null,null,null,null,null,null,null,null,null,null,null,null,null,null,null,null,null,null,null,null,null,null,null,null,null,null,null,null,null,null,null,null,null,null,null,null,null,null,null,null,null,null,null,null,null,null,null,null,null,null,null,null,null,null,null,null,null,null,null,null,null,null,null,null,null,null,null,null,null,null,null,null,null,null,null,null,null,null,null,null,null,null,null,null,null,null,null,null,null,null,null,null,41,"Centre","Centre de Gestion du Loir-et-Cher",null,null,null,"Total",null,{"$f":"$FN$27+$FN$28","v":0},{"$f":"$FO$27+$FO$28","v":0},{"$f":"$FP$27+$FP$28","v":0},null,"ASEM",{"$f":"'[1]IND 1.1.1'!$I$192","v":0},{"$f":"'[1]IND 1.2.1'!$K50","v":0},0,{"$f":"RANK(FU29,$FU$1:$FU$60,0)+COUNTIF(FU$1:FU29,FU29)-1","v":28},28,{"$error":"#DIV/0!"},"ASEM","C",0]
[null,"Ensemble des agents ",null,null,{"$f":"E26+E27+E29","v":0},null,null,null,null,null,null,null,null,null,null,null,null,null,null,null,null,null,null,null,null,null,null,null,null,{"$f":"IF(AG30=\"\",\"\",\"Dernière mise à jour :\")","v":""},null,null,{"$f":"IF('[1]IND 4.1.4-4.1.7'!$F$12=0,\"\",'[1]IND 4.1.4-4.1.7'!$F$12)","v":""},null,null,null,null,null,null,null,null,null,null,"Nombre d'actes de violences physiques",null,null,null,null,"Nombre moyen de jours d'arrêt",null,null,null,null,null,null,null,null,null,null,null,null,null,null,null,null,null,null,null,null,null,null,null,null,null,null,null,null,null,null,null,null,null,null,null,null,null,null,null,null,null,null,null,null,null,null,null,null,null,null,null,null,null,null,null,null,null,null,null,null,null,null,null,null,null,null,null,null,null,null,null,null,null,null,null,null,null,null,null,null,null,null,null,null,null,null,null,null,null,null,null,null,null,null,null,null,null,null,null,null,null,null,null,null,null,null,null,null,null,null,null,null,45,"Centre","Centre de Gestion du Loiret",null,null,null,null,null,null,null,null,null,"Agents sociaux",{"$f":"'[1]IND 1.1.1'!$I$199","v":0},{"$f":"'[1]IND 1.2.1'!$K51","v":0},0,{"$f":"RANK(FU30,$FU$1:$FU$60,0)+COUNTIF(FU$1:FU30,FU30)-1","v":29},29,{"$error":"#DIV/0!"},"Agents sociaux","C",0]
[null,"*Équivalent Temps Plein Rémunéré",null,null,null,null,null,"Æ",{"$f":"TEXT(FP43,\"0,0\") & \" agents en Equivalent Temps Plein Rémunéré (ETPR) en 2018\"","v":"0,0 agents en Equivalent Temps Plein Rémunéré (ETPR) en 2018"},null,null,null,null,null,"Æ","Nombre moyen de jours d'absence par agent présent au 31/12/2018",null,null,null,null,null,null,null,null,null,null,null,{"$f":"IF(AK32=\" \",\" \",\"a\")","v":"a"},{"$f":"IF('[1]IND 4.1.4-4.1.7'!$F$19=\"oui\",\"La collectivité dispose d'un plan de prévention des risques psychosociaux\",IF('[1]IND 4.1.4-4.1.7'!$F$19=\"non\",\"La collectivité ne dispose pas d'un plan de prévention des risques psychosociaux\",IF('[1]IND 4.1.4-4.1.7'!$F$19=\"en cours\",\"Un plan de prévention des risques psychosociaux est en cours de réalisation dans la collectivité\",IF('[1]IND 4.1.4-4.1.7'!$F$19=\"(vide)\",\"La collectivité n'a pas renseigné si elle dispose d'un plan de prévention des risques psychosociaux\",\" \"))))","v":"La collectivité n'a pas renseigné si elle dispose d'un plan de prévention des risques psychosociaux"},null,null,null,null,null,null,null,null,null,null,null,null,null,null,"Émanant du personnel avec arrêt de travail",null,null,{"$f":"AS62+AT62","v":0},null,"Congés pour maladie ordinaire",null,null,{"$f":"IFERROR((Calculs!H50/Calculs!H60),0)","v":0},null,null,null,null,null,null,null,null,null,null,null,null,null,null,null,null,null,null,null,null,null,null,null,null,null,null,null,null,null,null,null,null,null,null,null,null,null,null,null,null,null,null,null,null,null,null,null,null,null,null,null,null,null,null,null,null,null,null,null,null,null,null,null,null,null,null,null,null,null,null,null,null,null,null,null,null,null,null,null,null,null,null,null,null,null,null,null,null,null,null,null,null,null,null,null,null,null,null,null,null,null,null,null,null,null,null,null,null,null,8,"Champagne","Centre de Gestion des Ardennes",null,null,null,null,null,null,null,null,null,"Médecins",{"$f":"'[1]IND 1.1.1'!$I$208","v":0},{"$f":"'[1]IND 1.2.1'!$K54","v":0},0,{"$f":"RANK(FU31,$FU$1:$FU$60,0)+COUNTIF(FU$1:FU31,FU31)-1","v":30},30,{"$error":"#DIV/0!"},"Médecins","A",0]
[null,null,null,null,null,null,null,null,null,null,null,null,null,null,null,null,null,null,null,null,null,null,null,null,null,null,null,"a",{"$f":"IF('[1]IND 4.1.4-4.1.7'!$F$31=\"oui\",\"La collectivité s'est engagée dans d'autres démarches de prévention\",IF('[1]IND 4.1.4-4.1.7'!$F$31=\"non\",\"La collectivité ne s'est pas engagée dans d'autres démarches de prévention\",IF('[1]IND 4.1.4-4.1.7'!$F$31=\"en cours\",\"La collectivité est en train de mettre en place d'autres démarches de prévention des risques\",IF('[1]IND 4.1.4-4.1.7'!$F$31=\"(vide)\",\"La collectivité n'a pas précisé si elle s'est engagée ou non dans d'autres démarche de prévention des risques\",\" \"))))","v":"La collectivité n'a pas précisé si elle s'est engagée ou non dans d'autres démarche de prévention des risques"},null,null,null,null,null,null,null,null,null,null,null,null,null,null,null,null,null,null,null,"Congés pour longue maladie et congés longue durée",null,null,{"$f":"IFERROR(((Calculs!H53+Calculs!H54)/Calculs!H60),0)","v":0},null,null,null,null,null,null,null,null,null,null,null,null,null,null,null,null,null,null,null,null,null,null,null,null,null,null,null,null,null,null,null,null,null,null,null,null,null,null,null,null,null,null,null,null,null,null,null,null,null,null,null,null,null,null,null,null,null,null,null,null,null,null,null,null,null,null,null,null,null,null,null,null,null,null,null,null,null,null,null,null,null,null,null,null,null,null,null,null,null,null,null,null,null,null,null,null,null,null,null,null,null,null,null,null,null,null,null,null,null,10,"Champagne","Centre de Gestion de l'Aube",null,null,null,"Emploi aidé",null,{"$f":"'[1]IND 1.3.1'!$F$26+'[1]IND 1.3.1'!$F$27+'[1]IND 1.3.1'!$F$28","v":0},null,null,null,"Psychologues",{"$f":"'[1]IND 1.1.1'!$I$213","v":0},{"$f":"'[1]IND 1.2.1'!$K55","v":0},0,{"$f":"RANK(FU32,$FU$1:$FU$60,0)+COUNTIF(FU$1:FU32,FU32)-1","v":31},31,{"$error":"#DIV/0!"},"Psychologues","A",0]
["Æ","Répartition des agents selon la filière (agents sur emploi permanent)",null,null,null,null,null,null,null,null,null,null,null,null,null,"Jours moyens d'absence « compressibles » \n(maladies ordinaires et accidents de travail) \n\nJours moyens d'absence pour motif médical* (toutes absences pour motif médical) \n\nJours moyens d'absence Global (toutes absences y compris maternité, paternité et autre**)",null,null,null,null,null,null,null,null,null,null,null,"a",{"$f":"IF('[1]IND 4.1.4-4.1.7'!$F$29=\"oui\",\"La collectivité a mis en place une démarche de prévention des troubles musculo-squelettiques\",IF('[1]IND 4.1.4-4.1.7'!$F$29=\"non\",\"La collectivité n'a pas mis en place une démarche de prévention des troubles musculo-squelettiques\",IF('[1]IND 4.1.4-4.1.7'!$F$29=\"en cours\",\" Une démarche de prévention des troubles musculo-squelettiques est en cours dans la collectivité\",IF('[1]IND 4.1.4-4.1.7'!$F$29=\"(vide)\",\"La collectivité n'a pas renseigné si elle a mis en place une démarche de prévention des troubles musculo-squelettiques\",\" \"))))","v":"La collectivité n'a pas renseigné si elle a mis en place une démarche de prévention des troubles musculo-squelettiques"},null,null,null,null,null,null,null,null,null,null,null,null,null,null,"Émanant du personnel sans arrêt de travail",null,null,{"$f":"'[1]IND 4.3.1'!$B$13+'[1]IND 4.3.1'!$C$13","v":0},null,null,null,null,null,null,null,null,null,null,null,null,null,null,null,null,null,null,null,null,null,null,null,null,null,null,null,null,null,null,null,null,null,null,null,null,null,null,null,null,null,null,null,null,null,null,null,null,null,null,null,null,null,null,null,null,null,null,null,null,null,null,null,null,null,null,null,null,null,null,null,null,null,null,null,null,null,null,null,null,null,null,null,null,null,null,null,null,null,null,null,null,null,null,null,null,null,null,null,null,null,null,null,null,null,null,null,null,null,null,null,null,null,null,51,"Champagne","Centre de Gestion de la Marne",null,null,null,"CDI",null,{"$f":"'[1]IND 1.2.1'!$Q$96+'[1]IND 1.2.1'!$S$96","v":0},null,null,null,"Sages-femmes",{"$f":"'[1]IND 1.1.1'!$I$218","v":0},{"$f":"'[1]IND 1.2.1'!$K56","v":0},0,{"$f":"RANK(FU33,$FU$1:$FU$60,0)+COUNTIF(FU$1:FU33,FU33)-1","v":32},32,{"$error":"#DIV/0!"},"Sages-femmes","A",0]
[null,null,null,null,null,null,null,null,{"$f":"\"> \" & TEXT(FP42,\"0,0\")","v":"> 0,0"},null,{"$f":"IF(FP42<2,\"fonctionnaire\",\"fonctionnaires\")","v":"fonctionnaire"},null,null,null,null,null,null,null,null,null,null,null,null,null,null,null,null,null,null,null,null,null,null,null,null,null,null,null,null,null,null,null,null,null,null,null,null,null,"Congés pour accidents du travail",null,null,{"$f":"IFERROR(((Calculs!H51+Calculs!H52)/Calculs!H60),0)","v":0},null,null,null,null,null,null,null,null,null,null,null,null,null,null,null,null,null,null,null,null,null,null,null,null,null,null,null,null,null,null,null,null,null,null,null,null,null,null,null,null,null,null,null,null,null,null,null,null,null,null,null,null,null,null,null,null,null,null,null,null,null,null,null,null,null,null,null,null,null,null,null,null,null,null,null,null,null,null,null,null,null,null,null,null,null,null,null,null,null,null,null,null,null,null,null,null,null,null,null,null,null,null,null,null,null,null,null,null,null,52,"Champagne","Centre de Gestion de Haute-Marne",null,null,null,"Saisonniers",null,{"$f":"'[1]IND 1.3.1'!$F$24","v":0},null,null,null,"CADRES DE SANTE PARAMEDICAUX",{"$f":"'[1]IND 1.1.1'!$I$224","v":0},{"$f":"'[1]IND 1.2.1'!$K57","v":0},0,{"$f":"RANK(FU34,$FU$1:$FU$60,0)+COUNTIF(FU$1:FU34,FU34)-1","v":33},33,{"$error":"#DIV/0!"},"CADRES DE SANTE PARAMEDICAUX","A",0]
[null,null,null,null,null,null,null,null,{"$f":"\"> \" & TEXT(FP41,\"0,0\")","v":"> 0,0"},null,{"$f":"IF(FP41<2,\"contractuel permanent\",\"contractuels permanents\")","v":"contractuel permanent"},null,null,null,null,null,null,null,null,null,null,null,null,null,null,null,null,null,null,null,null,null,null,null,null,null,null,null,null,null,null,null,null,"Émanant des usagers avec arrêt de travail",null,null,{"$f":"'[1]IND 4.3.1'!$B$14+'[1]IND 4.3.1'!$C$14","v":0},null,"Congés pour maladie professionnelle",null,null,{"$f":"IFERROR((Calculs!H55/Calculs!H60),0)","v":0},null,null,null,null,null,null,null,null,null,null,null,null,null,null,null,null,null,null,null,null,null,null,null,null,null,null,null,null,null,null,null,null,null,null,null,null,null,null,null,null,null,null,null,null,null,null,null,null,null,null,null,null,null,null,null,null,null,null,null,null,null,null,null,null,null,null,null,null,null,null,null,null,null,null,null,null,null,null,null,null,null,null,null,null,null,null,null,null,null,null,null,null,null,null,null,null,null,null,null,null,null,null,null,null,null,null,null,null,null,"2A","Corse","Centre de Gestion de Corse du Sud",null,null,null,null,null,null,null,null,null,"Puéricultrices cadres de santé",{"$f":"'[1]IND 1.1.1'!$I$229","v":0},{"$f":"'[1]IND 1.2.1'!$K58","v":0},0,{"$f":"RANK(FU35,$FU$1:$FU$60,0)+COUNTIF(FU$1:FU35,FU35)-1","v":34},34,{"$error":"#DIV/0!"},"Puéricultrices cadres de santé","A",0]
["Filière",null,"Fonctionnaires",{"$f":"IF(B8<2,\"Contractuel\",\"Contractuels\")","v":"Contractuel"},null,"Tous",null,null,{"$f":"\"> \" & TEXT(FP40,\"0,0\")","v":"> 0,0"},null,{"$f":"IF(FP40<2,\"contractuel non permanent\",\"contractuels non permanents\")","v":"contractuel non permanent"},null,null,null,null,null,null,null,null,null,null,null,null,null,null,null,null,null,null,null,null,null,null,null,null,null,null,null,null,null,null,null,null,null,null,null,null,null,"Ensemble absentéisme pour raisons de santé",null,null,{"$f":"IFERROR(((Calculs!H50+Calculs!H51+Calculs!H52+Calculs!H53+Calculs!H54+Calculs!H55)/Calculs!H60),0)","v":0},null,null,null,null,null,null,null,null,null,null,null,null,null,null,null,null,null,null,null,null,null,null,null,null,null,null,null,null,null,null,null,null,null,null,null,null,null,null,null,null,null,null,null,null,null,null,null,null,null,null,null,null,null,null,null,null,null,null,null,null,null,null,null,null,null,null,null,null,null,null,null,null,null,null,null,null,null,null,null,null,null,null,null,null,null,null,null,null,null,null,null,null,null,null,null,null,null,null,null,null,null,null,null,null,null,null,null,null,null,"2B","Corse","Centre de Gestion de la Haute-Corse",null,null,null,null,null,null,null,null,null,"PUERICULTRICES (décret n° 92-859 du 28 août 1992 modifié) *",{"$f":"'[1]IND 1.1.1'!$I$234","v":0},{"$f":"'[1]IND 1.2.1'!$K59","v":0},0,{"$f":"RANK(FU36,$FU$1:$FU$60,0)+COUNTIF(FU$1:FU36,FU36)-1","v":35},35,{"$error":"#DIV/0!"},"PUERICULTRICES (décret n° 92-859 du 28 août 1992 modifié) *","A",0]
["Administrative",null,{"$f":"IF($E$26=0,\" \",$FN$4/$FN$13)","v":" "},{"$f":"IF($E$27=0,\" \",$FO$4/$FO$13)","v":" "},null,{"$f":"$FP4/$FP$13","v":{"$error":"#DIV/0!"}},null,null,null,null,null,null,null,null,null,null,null,null,null,null,null,null,null,null,null,null,null,"a",{"$f":"IF(Calculs!B116=0,\"En 2018, il n'y a pas eu de jours de formation*  liés la prévention\",IF(Calculs!B116=1,\"En , 1 jour de formation* a été effectué en lien avec la prévention\",IF(Calculs!B116>1,\"En 2018, \"&Calculs!B116&\" jours de formation* ont été effectués en lien avec la prévention\")))","v":"En 2018, il n'y a pas eu de jours de formation*  liés la prévention"},null,null,null,null,null,null,null,null,null,null,null,null,null,null,"Émanant des usagers sans arrêt de travail",null,null,{"$f":"'[1]IND 4.3.1'!$B$15+'[1]IND 4.3.1'!$C$15","v":0},null,"Ensemble absentéisme pour raisons de santé",null,null,{"$f":"IFERROR((Calculs!H59/Calculs!H60),0)","v":0},null,null,null,null,null,null,null,null,null,null,null,null,null,null,null,null,null,null,null,null,null,null,null,null,null,null,null,null,null,null,null,null,null,null,null,null,null,null,null,null,null,null,null,null,null,null,null,null,null,null,null,null,null,null,null,null,null,null,null,null,null,null,null,null,null,null,null,null,null,null,null,null,null,null,null,null,null,null,null,null,null,null,null,null,null,null,null,null,null,null,null,null,null,null,null,null,null,null,null,null,null,null,null,null,null,null,null,null,null,25,"Franche-Comté","Centre de Gestion du Doubs",null,null,null,"ETPR",null,null,null,null,null,"PUERICULTRICES (décret n° 2014-923  du 18 août 2014) * ",{"$f":"'[1]IND 1.1.1'!$I$240","v":0},"-",{"$f":"FS37","v":0},{"$f":"RANK(FU37,$FU$1:$FU$60,0)+COUNTIF(FU$1:FU37,FU37)-1","v":36},36,{"$error":"#DIV/0!"},"PUERICULTRICES (décret n° 2014-923  du 18 août 2014) * ","A",0]
["Technique",null,{"$f":"IF($E$26=0,\" \",$FN$5/$FN$13)","v":" "},{"$f":"IF($E$27=0,\" \",$FO$5/$FO$13)","v":" "},null,{"$error":"#DIV/0!"},null,"Æ",{"$f":"IF(B19+B20+B21<2,\"Répartition par catégorie\",\"Répartition des agents sur emploi permanent par catégorie\")","v":"Répartition par catégorie"},null,null,null,null,null,null,null,null,null,null,null,null,null,null,null,null,null,null,null,"*Ces journées concernent : formation obligatoire des agents assistants et conseillers chargés de la mise en œuvre des actions de prévention, formation obligatoire des membres du comité d'hygiène, de sécurité et des conditions de travail, formation dans le cadre des habilitations.",null,null,null,null,null,null,null,null,null,null,null,null,null,null,null,null,null,null,null,null,null,null,{"$f":"IFERROR(((Calculs!H52+Calculs!H53+Calculs!H54+Calculs!H55+Calculs!H56+Calculs!H57)/Calculs!H62),0)","v":0},null,null,null,null,null,null,null,null,null,null,null,null,null,null,null,null,null,null,null,null,null,null,null,null,null,null,null,null,null,null,null,null,null,null,null,null,null,null,null,null,null,null,null,null,null,null,null,null,null,null,null,null,null,null,null,null,null,null,null,null,null,null,null,null,null,null,null,null,null,null,null,null,null,null,null,null,null,null,null,null,null,null,null,null,null,null,null,null,null,null,null,null,null,null,null,null,null,null,null,null,null,null,null,null,null,null,null,null,null,39,"Franche-Comté","Centre de Gestion du Jura",null,null,null,null,null,null,null,null,null,"Cadres de santé infirmiers, rééducateurs et assistants médico-techniques",{"$f":"'[1]IND 1.1.1'!$I$244","v":0},{"$f":"'[1]IND 1.2.1'!$K60","v":0},0,{"$f":"RANK(FU38,$FU$1:$FU$60,0)+COUNTIF(FU$1:FU38,FU38)-1","v":37},37,{"$error":"#DIV/0!"},"Cadres de santé infirmiers, rééducateurs et assistants médico-techniques","A",0]
["Culturelle",null,{"$f":"IF($E$26=0,\" \",$FN$6/$FN$13)","v":" "},{"$f":"IF($E$27=0,\" \",$FO$6/$FO$13)","v":" "},null,{"$error":"#DIV/0!"},null,null,null,null,null,null,null,null,null,null,null,null,null,null,null,null,null,null,null,null,null,null,null,null,null,null,null,null,null,null,null,null,null,null,null,null,null,null,null,null,null,null,null,null,null,null,null,null,null,null,null,null,null,null,null,null,null,null,null,null,null,null,null,null,null,null,null,null,null,null,null,null,null,null,null,null,null,null,null,null,null,null,null,null,null,null,null,null,null,null,null,null,null,null,null,null,null,null,null,null,null,null,null,null,null,null,null,null,null,null,null,null,null,null,null,null,null,null,null,null,null,null,null,null,null,null,null,null,null,null,null,null,null,null,null,null,null,null,null,null,null,null,null,null,null,null,null,null,null,null,null,null,null,null,null,70,"Franche-Comté","Centre de Gestion de Haute-Saône",null,null,null,2018,null,"Hommes","Femmes","Total",null,"Infirmiers territoriaux en soins généraux",{"$f":"'[1]IND 1.1.1'!$I$250","v":0},{"$f":"'[1]IND 1.2.1'!$K61","v":0},0,{"$f":"RANK(FU39,$FU$1:$FU$60,0)+COUNTIF(FU$1:FU39,FU39)-1","v":38},38,{"$error":"#DIV/0!"},"Infirmiers territoriaux en soins généraux","A",0]
["Sportive",null,{"$f":"IF($E$26=0,\" \",$FN$7/$FN$13)","v":" "},{"$f":"IF($E$27=0,\" \",$FO7/$FO$13)","v":" "},null,{"$error":"#DIV/0!"},null,null,null,null,null,null,null,null,null,null,null,null,null,null,null,null,null,null,null,null,null,"a",{"$f":"IF(Calculs!B117=0,\"En 2018, il n'y a pas eu de dépense* liée à la prévention\", \"En 2018, les dépenses* en matière de prévention s'élèvent \"&TEXT(Calculs!B117,\"### 0\")&\" €\")","v":"En 2018, il n'y a pas eu de dépense* liée à la prévention"},null,null,null,null,null,null,null,null,null,null,null,null,null,null,null,null,null,null,null,null,null,null,null,null,null,null,null,null,null,null,null,null,null,null,null,null,null,null,null,null,null,null,null,null,null,null,null,null,null,null,null,null,null,null,null,null,null,null,null,null,null,null,null,null,null,null,null,null,null,null,null,null,null,null,null,null,null,null,null,null,null,null,null,null,null,null,null,null,null,null,null,null,null,null,null,null,null,null,null,null,null,null,null,null,null,null,null,null,null,null,null,null,null,null,null,null,null,null,null,null,null,null,null,null,null,null,null,null,null,null,null,null,90,"Franche-Comté","Centre de Gestion du Territoire-de-Belfort",null,null,null,"Contractuels sur emploi non permanent",null,{"$f":"'[1]IND 1.3.1'!$H$73","v":0},{"$f":"'[1]IND 1.3.1'!$I$73","v":0},{"$f":"FN40+FO40","v":0},null,"Infirmiers",{"$f":"'[1]IND 1.1.1'!$I$255","v":0},{"$f":"'[1]IND 1.2.1'!$K62","v":0},0,{"$f":"RANK(FU40,$FU$1:$FU$60,0)+COUNTIF(FU$1:FU40,FU40)-1","v":39},39,{"$error":"#DIV/0!"},"Infirmiers","B",0]
["Médico-sociale",null,{"$f":"IF($E$26=0,\" \",$FN$8/$FN$13)","v":" "},{"$f":"IF($E$27=0,\" \",$FO8/$FO$13)","v":" "},null,{"$error":"#DIV/0!"},null,null,null,null,null,null,null,null,"*Maladie ordinaire, longue maladie, maladie de longue durée et grave  maladie, accidents du travail, maladie professionnelle\n**Les absences pour \"autres raisons\" correspondent aux autorisations spéciales, par exemple pour motif familial, pour des concours ou examens professionnels… \n    Ne sont pas comptabilisés les jours de formation, les absences pour motif syndical ou de représentation.",null,null,null,null,null,null,null,null,null,null,null,null,null,"*Dépenses relatives aux interventions en matière de prévention et de sécurité ou dépenses correspondant aux mesures prises dans l'année pour l'amélioration des conditions de travail. Ne sont pas reprises les dépenses de formation liées à la prévention notamment celles  dans le cadre d'habilitations.",null,null,null,null,null,null,null,null,null,null,null,null,null,null,null,null,null,null,null,null,null,null,null,null,null,null,null,null,null,null,null,null,null,null,null,null,null,null,null,null,null,null,null,null,null,null,null,null,null,null,null,null,null,null,null,null,null,null,null,null,null,null,null,null,null,null,null,null,null,null,null,null,null,null,null,null,null,null,null,null,null,null,null,null,null,null,null,null,null,null,null,null,null,null,null,null,null,null,null,null,null,null,null,null,null,null,null,null,null,null,null,null,null,null,null,null,null,null,null,null,null,null,null,null,null,null,null,null,null,null,null,null,27,"Haute-Normandie","Centre de Gestion de l'Eure",null,null,null,"Contractuels sur emploi permanent",null,{"$f":"'[1]IND 1.2.4'!$E$26","v":0},{"$f":"'[1]IND 1.2.4'!$F$26","v":0},{"$f":"FN41+FO41","v":0},null,"Auxiliaires de puériculture",{"$f":"'[1]IND 1.1.1'!$I$260","v":0},{"$f":"'[1]IND 1.2.1'!$K63","v":0},0,{"$f":"RANK(FU41,$FU$1:$FU$60,0)+COUNTIF(FU$1:FU41,FU41)-1","v":40},40,{"$error":"#DIV/0!"},"Auxiliaires de puériculture","C",0]
["Police",null,{"$f":"IF($E$26=0,\" \",$FN9/$FN$13)","v":" "},{"$f":"IF($E$27=0,\" \",$FO9/$FO$13)","v":" "},null,{"$error":"#DIV/0!"},null,null,null,null,null,null,null,null,null,null,null,null,null,null,null,null,null,null,null,null,null,null,null,null,null,null,null,null,null,null,null,null,null,null,null,null,"L'accord-cadre relatif à la prévention des risques psychosociaux (RPS) dans la fonction publique du 22 octobre 2013 prévoit que chaque employeur public doit élaborer un plan d’évaluation et de prévention des RPS. Ce document se compose de données de cadrage, d’indicateurs de perception ou de vécu et indicateurs de fonctionnement mais également des indicateurs de santé au travail. Pour répondre à cette obligation réglementaire, il convient de compléter cette synthèse quantitative des RPS par des éléments qualitatifs.\nLes indicateurs quantitatifs présentés ici sont ceux préconisés par la Direction Générale de l’Administration et de la Fonction Publique (DGAFP, Livret 5 : Indicateurs de diagnostic des risques psychosociaux) et présents dans le Rapport sur l’Etat du personnel des Collectivités 2018. 4 indicateurs, suivis au niveau national par le Conseil Commun de la Fonction Publique, sont aussi précisés selon des modalités de calculs identiques, à savoir :  le taux d’absentéisme pour raisons de santé, le taux de rotation, le taux de visite sur demande au médecin de prévention et le nombre d’actes de violence physique envers le personnel.",null,null,null,null,null,null,null,null,null,null,null,null,null,null,null,null,null,null,null,null,null,null,null,null,null,null,null,null,null,null,null,null,null,null,null,null,null,null,null,null,null,null,null,null,null,null,null,null,null,null,null,null,null,null,null,null,null,null,null,null,null,null,null,null,null,null,null,null,null,null,null,null,null,null,null,null,null,null,null,null,null,null,null,null,null,null,null,null,null,null,null,null,null,null,null,null,null,null,null,null,null,null,null,null,null,null,null,null,null,null,null,null,null,null,null,null,null,null,76,"Haute-Normandie","Centre de Gestion de la Seine-Maritime",null,null,null,"Fonctionnaires",null,{"$f":"'[1]IND 1.1.4'!$E$26","v":0},{"$f":"'[1]IND 1.1.4'!$F$26","v":0},{"$f":"FN42+FO42","v":0},null,"Auxiliaires de soins",{"$f":"'[1]IND 1.1.1'!$I$265","v":0},{"$f":"'[1]IND 1.2.1'!$K64","v":0},0,{"$f":"RANK(FU42,$FU$1:$FU$60,0)+COUNTIF(FU$1:FU42,FU42)-1","v":41},41,{"$error":"#DIV/0!"},"Auxiliaires de soins","C",0]
["Incendie",null,{"$f":"IF($E$26=0,\" \",$FN10/$FN$13)","v":" "},{"$f":"IF($E$27=0,\" \",$FO10/$FO$13)","v":" "},null,{"$error":"#DIV/0!"},null,null,null,null,null,null,null,null,null,null,null,null,null,null,null,null,null,null,null,null,null,null,null,null,null,null,null,null,null,null,null,null,null,null,null,null,null,null,null,null,null,null,null,null,null,null,null,null,null,null,null,null,null,null,null,null,null,null,null,null,null,null,null,null,null,null,null,null,null,null,null,null,null,null,null,null,null,null,null,null,null,null,null,null,null,null,null,null,null,null,null,null,null,null,null,null,null,null,null,null,null,null,null,null,null,null,null,null,null,null,null,null,null,null,null,null,null,null,null,null,null,null,null,null,null,null,null,null,null,null,null,null,null,null,null,null,null,null,null,null,null,null,null,null,null,null,null,null,null,null,null,null,null,null,null,75,"Ile-de-France","Centre Interdépartemental de Gestion de la Grande Couronne\nde la Région d'Ile-de-France",null,null,null,"Total",null,{"$f":"SUM(FN40:FN42)","v":0},{"$f":"SUM(FO40:FO42)","v":0},{"$f":"SUM(FP40:FP42)","v":0},null,"Biologistes-vétérinaires-pharmaciens",{"$f":"'[1]IND 1.1.1'!$I$274","v":0},{"$f":"'[1]IND 1.2.1'!$K67","v":0},0,{"$f":"RANK(FU43,$FU$1:$FU$60,0)+COUNTIF(FU$1:FU43,FU43)-1","v":42},42,{"$error":"#DIV/0!"},"Biologistes-vétérinaires-pharmaciens","A",0]
["Animation",null,{"$f":"IF($E$26=0,\" \",$FN11/$FN$13)","v":" "},{"$f":"IF($E$27=0,\" \",$FO11/$FO$13)","v":" "},null,{"$error":"#DIV/0!"},null,null,null,null,null,null,null,null,null,null,null,null,null,null,null,null,null,null,null,null,null,null,null,null,null,null,null,null,null,null,null,null,null,null,null,null,null,null,null,null,null,null,null,null,null,null,null,null,null,null,null,null,null,null,null,null,null,null,null,null,null,null,null,null,null,null,null,null,null,null,null,null,null,null,null,null,null,null,null,null,null,null,null,null,null,null,null,null,null,null,null,null,null,null,null,null,null,null,null,null,null,null,null,null,null,null,null,null,null,null,null,null,null,null,null,null,null,null,null,null,null,null,null,null,null,null,null,null,null,null,null,null,null,null,null,null,null,null,null,null,null,null,null,null,null,null,null,null,null,null,null,null,null,null,null,77,"Ile-de-France","Centre de Gestion de Seine-et-Marne",null,null,null,null,null,null,null,null,null,"Techniciens paramédicaux territoriaux",{"$f":"'[1]IND 1.1.1'!$I$279","v":0},{"$f":"'[1]IND 1.2.1'!$K68","v":0},0,{"$f":"RANK(FU44,$FU$1:$FU$60,0)+COUNTIF(FU$1:FU44,FU44)-1","v":43},43,{"$error":"#DIV/0!"},"Techniciens paramédicaux territoriaux","B",0]
["Total",null,{"$f":"SUM($C$37:$C$44)","v":0},{"$f":"SUM($D$37:$D$44)","v":0},null,{"$f":"SUM($F$37:$F$44)","v":{"$error":"#DIV/0!"}},null,null,null,null,null,null,null,null,null,null,null,null,null,null,null,null,null,null,null,null,null,null,null,null,null,null,null,null,null,null,null,null,null,null,null,null,null,null,null,null,null,null,null,null,null,null,null,null,null,null,null,null,null,null,null,null,null,null,null,null,null,null,null,null,null,null,null,null,null,null,null,null,null,null,null,null,null,null,null,null,null,null,null,null,null,null,null,null,null,null,null,null,null,null,null,null,null,null,null,null,null,null,null,null,null,null,null,null,null,null,null,null,null,null,null,null,null,null,null,null,null,null,null,null,null,null,null,null,null,null,null,null,null,null,null,null,null,null,null,null,null,null,null,null,null,null,null,null,null,null,null,null,null,null,null,78,"Ile-de-France","Centre Interdépartemental de Gestion de la Grande Couronne\nde la Région d'Ile-de-France",null,null,null,2017,null,"Hommes","Femmes","Total",null,"Directeurs de police municipale",{"$f":"'[1]IND 1.1.1'!$I$287","v":0},{"$f":"'[1]IND 1.2.1'!$K71","v":0},0,{"$f":"RANK(FU45,$FU$1:$FU$60,0)+COUNTIF(FU$1:FU45,FU45)-1","v":44},44,{"$error":"#DIV/0!"},"Directeurs de police municipale","A",0]
[null,null,null,null,null,null,null,null,null,null,null,null,null,null,"Æ",{"$f":"IF('[1]IND 3.4.3'!$B$6=\"oui\",\"La collectivité est concernée par les heures supplémentaires et complémentaires\",IF('[1]IND 3.4.3'!$B$6=\"non\",\"La collectivité n'est pas concernée par les heures supplémentaires et complémentaires\",IF('[1]IND 3.4.3'!$B$6=\"ne sait pas\",\"La collectivité ne sait pas si elle est concernée par les heures supplémentaires et complémentaires\",IF('[1]IND 3.4.3'!$B$6=\"(vide)\",\"La collectivité n'a pas précisé si elle est concernée par les heures supplémentaires et complémentaires\",\" \"))))","v":"La collectivité n'a pas précisé si elle est concernée par les heures supplémentaires et complémentaires"},null,null,null,null,null,null,"Æ",{"$f":"IF('[1]IND 2.2.1-2.2.4'!$D$77=\"Oui\",\"La collectivité est concernée par le télétravail\",\"La collectivité n'est pas concernée par le télétravail\")","v":"La collectivité n'est pas concernée par le télétravail"},null,null,null,"Æ",{"$f":"IF('[1]Page de garde'!$Y$39=\"x\",\"La collectivité dispose de son propre Comité Technique\",\"La collectivité est rattachée au Comité Technique du CDG \")","v":"La collectivité est rattachée au Comité Technique du CDG "},null,null,null,null,null,"Æ","Nombre de jours de grève",null,null,null,null,null,null,null,null,null,null,null,null,null,null,null,null,null,null,null,null,null,null,null,null,null,null,null,null,null,null,null,null,null,null,null,null,null,null,null,null,null,null,null,null,null,null,null,null,null,null,null,null,null,null,null,null,null,null,null,null,null,null,null,null,null,null,null,null,null,null,null,null,null,null,null,null,null,null,null,null,null,null,null,null,null,null,null,null,null,null,null,null,null,null,null,null,null,null,null,null,null,null,null,null,null,null,null,null,null,null,null,null,null,null,null,null,null,null,null,null,null,null,null,null,null,91,"Ile-de-France","Centre Interdépartemental de Gestion de la Grande Couronne\nde la Région d'Ile-de-France",null,null,null,"Contractuels sur emploi non permanent",null,{"$f":"'[1]IND 1.3.1'!$D$73","v":0},{"$f":"'[1]IND 1.3.1'!$E$73","v":0},{"$f":"FN46+FO46","v":0},null,"Chefs de service de police municipale",{"$f":"'[1]IND 1.1.1'!$I$293","v":0},{"$f":"'[1]IND 1.2.1'!$K72","v":0},0,{"$f":"RANK(FU46,$FU$1:$FU$60,0)+COUNTIF(FU$1:FU46,FU46)-1","v":45},45,{"$error":"#DIV/0!"},"Chefs de service de police municipale","B",0]
["Æ","Répartition par genre et selon le statut au sein de la collectivité",null,null,null,null,null,"Æ","Les principaux cadres d'emplois dans la collectivité (agents sur emploi permanent)",null,null,null,null,null,null,null,null,null,null,null,null,null,null,null,null,null,null,null,null,null,null,null,null,null,null,null,null,null,null,null,null,null,null,null,null,null,null,null,null,null,null,null,null,null,null,null,null,null,null,null,null,null,null,null,null,null,null,null,null,null,null,null,null,null,null,null,null,null,null,null,null,null,null,null,null,null,null,null,null,null,null,null,null,null,null,null,null,null,null,null,null,null,null,null,null,null,null,null,null,null,null,null,null,null,null,null,null,null,null,null,null,null,null,null,null,null,null,null,null,null,null,null,null,null,null,null,null,null,null,null,null,null,null,null,null,null,null,null,null,null,null,null,null,null,null,null,null,null,null,null,null,92,"Ile-de-France","Centre Interdépartemental de Gestion de la Petite Couronne\nde la Région d'Ile-de-France",null,null,null,"Contractuels sur emploi permanent",null,{"$f":"'[1]IND 1.2.4'!$C$26","v":0},{"$f":"'[1]IND 1.2.4'!$D$26","v":0},{"$f":"FN47+FO47","v":0},null,"Agents de police municipale",{"$f":"'[1]IND 1.1.1'!$I$299","v":0},{"$f":"'[1]IND 1.2.1'!$K73","v":0},0,{"$f":"RANK(FU47,$FU$1:$FU$60,0)+COUNTIF(FU$1:FU47,FU47)-1","v":46},46,{"$error":"#DIV/0!"},"Agents de police municipale","C",0]
[null,null,null,null,null,null,null,null,null,null,null,null,null,null,null,null,null,null,null,null,null,null,null,null,null,null,null,null,null,null,null,null,null,null,null,null,null,null,2017,null,2018,null,null,null,null,null,null,null,null,null,null,null,null,null,null,null,null,null,null,null,null,null,null,null,null,null,null,null,null,null,null,null,null,null,null,null,null,null,null,null,null,null,null,null,null,null,null,null,null,null,null,null,null,null,null,null,null,null,null,null,null,null,null,null,null,null,null,null,null,null,null,null,null,null,null,null,null,null,null,null,null,null,null,null,null,null,null,null,null,null,null,null,null,null,null,null,null,null,null,null,null,null,null,null,null,null,null,null,null,null,null,null,null,null,null,null,null,null,null,null,null,93,"Ile-de-France","Centre Interdépartemental de Gestion de la Petite Couronne\nde la Région d'Ile-de-France",null,null,null,"Fonctionnaires",null,{"$f":"'[1]IND 1.1.4'!$C$26","v":0},{"$f":"'[1]IND 1.1.4'!$D$26","v":0},{"$f":"FN48+FO48","v":0},null,"Gardes-champêtres",{"$f":"'[1]IND 1.1.1'!$I$304","v":0},{"$f":"'[1]IND 1.2.1'!$K74","v":0},0,{"$f":"RANK(FU48,$FU$1:$FU$60,0)+COUNTIF(FU$1:FU48,FU48)-1","v":47},47,{"$error":"#DIV/0!"},"Gardes-champêtres","C",0]
[null,null,null,null,null,null,null,null,null,null,null,null,null,null,"Les principaux cadres d'emplois concernés",null,null,"Nombre moyen d'heures supplémentaires et complémentaires*",null,null,null,null,null,"=SI(Calculs!L44=0;\" \";SI(Calculs!D46=1;\"Un agent exerce sa fonction dans le cadre du télétravail\";SI(Calculs!L44>1;Calculs!L44&\" agents exercent leur fonction dans le cadre du télétravail\")))",null,null,null,{"$f":"IF(AC49=\" \",\" \",\"a\")","v":" "},{"$f":"IF(AE64=0,\" \",IF(AE64=1,\"Une réunion du Comité Technique\",AE64&\" réunions du Comité Technique\"))","v":" "},null,null,null,null,null,"- sur mot d'ordre national",null,null,null,{"$f":"'[1]IND 6.1.1-6.1.3'!B57","v":0},null,{"$f":"'[1]IND 6.1.1-6.1.3'!C57","v":0},null,null,null,null,null,null,null,null,null,null,null,null,null,null,null,null,null,null,null,null,null,null,null,null,null,null,null,null,null,null,null,null,null,null,null,null,null,null,null,null,null,null,null,null,null,null,null,null,null,null,null,null,null,null,null,null,null,null,null,null,null,null,null,null,null,null,null,null,null,null,null,null,null,null,null,null,null,null,null,null,null,null,null,null,null,null,null,null,null,null,null,null,null,null,null,null,null,null,null,null,null,null,null,null,null,null,null,null,null,null,null,null,null,null,null,null,null,null,null,null,94,"Ile-de-France","Centre Interdépartemental de Gestion de la Petite Couronne\nde la Région d'Ile-de-France",null,null,null,"Total",null,{"$f":"SUM(FN46:FN48)","v":0},{"$f":"SUM(FO46:FO48)","v":0},{"$f":"SUM(FP46:FP48)","v":0},null,"CONTRÔLEURS, COLONELS",{"$f":"'[1]IND 1.1.1'!$I$313","v":0},{"$f":"'[1]IND 1.2.1'!$K77","v":0},0,{"$f":"RANK(FU49,$FU$1:$FU$60,0)+COUNTIF(FU$1:FU49,FU49)-1","v":48},48,{"$error":"#DIV/0!"},"CONTRÔLEURS, COLONELS","A",0]
[null,null,null,null,null,null,null,null,{"$f":"IF(M50=0,\" \",VLOOKUP(1,Calculs!$AH$7:$AJ$67,3,FALSE))","v":" "},null,null,null,{"$f":"VLOOKUP(1,Calculs!$AH$7:$AI$66,2,FALSE)","v":0},null,null,null,null,null,null,null,null,null,null,null,null,null,null,{"$f":"IF(AC50=\" \",\" \",\"a\")","v":" "},{"$f":"IF(AE66=0,\" \",IF(AE66=1,\"Une réunion du Comité d'Hygiène, de Sécurité et des Conditions de Travail (CHSCT)\",AE66&\" réunions du Comité d'Hygiène, de Sécurité et des Conditions de Travail (CHSCT)\"))","v":" "},null,null,null,null,null,"- sur mot d'ordre local",null,null,null,{"$f":"'[1]IND 6.1.1-6.1.3'!B58","v":0},null,{"$f":"'[1]IND 6.1.1-6.1.3'!C58","v":0},null,null,null,null,null,null,null,null,null,null,null,null,null,null,null,null,null,null,null,null,null,null,null,null,null,null,null,null,null,null,null,null,null,null,null,null,null,null,null,null,null,null,null,null,null,null,null,null,null,null,null,null,null,null,null,null,null,null,null,null,null,null,null,null,null,null,null,null,null,null,null,null,null,null,null,null,null,null,null,null,null,null,null,null,null,null,null,null,null,null,null,null,null,null,null,null,null,null,null,null,null,null,null,null,null,null,null,null,null,null,null,null,null,null,null,null,null,null,null,null,95,"Ile-de-France","Centre Interdépartemental de Gestion de la Grande Couronne\nde la Région d'Ile-de-France",null,null,null,null,null,null,null,null,null,"Capitaines, commandants, lieutenants-colonels, colonels",{"$f":"'[1]IND 1.1.1'!$I$319","v":0},{"$f":"'[1]IND 1.2.1'!$K78","v":0},0,{"$f":"RANK(FU50,$FU$1:$FU$60,0)+COUNTIF(FU$1:FU50,FU50)-1","v":49},49,{"$error":"#DIV/0!"},"Capitaines, commandants, lieutenants-colonels, colonels","A",0]
[null,null,null,null,null,null,null,null,{"$f":"IF(M51=0,\" \",VLOOKUP(2,Calculs!$AH$7:$AJ$67,3,FALSE))","v":" "},null,null,null,{"$f":"VLOOKUP(2,Calculs!$AH$7:$AI$66,2,FALSE)","v":0},null,{"$f":"IF(OR(R51=0,R51=\"0\"),\" \",VLOOKUP(1,Calculs!$AU$7:$AW$66,3,FALSE))","v":" "},null,null,{"$f":"VLOOKUP(1,Calculs!$AU$7:$AV$66,2,FALSE)","v":"0"},null,null,null,null,null,null,null,null,null,null,null,null,null,null,null,null,"- non précisé, autres",null,null,null,{"$f":"'[1]IND 6.1.1-6.1.3'!B59","v":0},null,{"$f":"'[1]IND 6.1.1-6.1.3'!C59","v":0},null,null,null,null,null,null,null,null,null,null,null,null,null,null,null,null,null,null,null,null,null,null,null,null,null,null,null,null,null,null,null,null,null,null,null,null,null,null,null,null,null,null,null,null,null,null,null,null,null,null,null,null,null,null,null,null,null,null,null,null,null,null,null,null,null,null,null,null,null,null,null,null,null,null,null,null,null,null,null,null,null,null,null,null,null,null,null,null,null,null,null,null,null,null,null,null,null,null,null,null,null,null,null,null,null,null,null,null,null,null,null,null,null,null,null,null,null,null,null,null,11,"Languedoc","Centre de Gestion de l'Aude",null,null,null,null,null,null,null,null,null,"Médecins, pharmaciens",{"$f":"'[1]IND 1.1.1'!$I$325","v":0},{"$f":"'[1]IND 1.2.1'!$K79","v":0},0,{"$f":"RANK(FU51,$FU$1:$FU$60,0)+COUNTIF(FU$1:FU51,FU51)-1","v":50},50,{"$error":"#DIV/0!"},"Médecins, pharmaciens","A",0]
[null,null,null,null,null,null,null,null,{"$f":"IF(M52=0,\" \",VLOOKUP(3,Calculs!$AH$7:$AJ$67,3,FALSE))","v":" "},null,null,null,{"$f":"VLOOKUP(3,Calculs!$AH$7:$AI$66,2,FALSE)","v":0},null,null,null,null,null,null,null,null,null,null,null,null,null,null,{"$f":"IF(AC52=\" \",\" \",\"a\")","v":" "},{"$f":"IF(AE65=0,\" \",IF(AE65=1,\"Une réunion des commissions administratives paritaires\",AE65&\" réunions des commissions administratives paritaires\"))","v":" "},null,null,null,null,null,"Total ",null,null,null,{"$f":"SUM(AM49:AM51)","v":0},null,{"$f":"SUM(AO49:AO51)","v":0},null,null,null,null,null,null,null,null,null,null,null,null,null,null,null,null,null,null,null,null,null,null,null,null,null,null,null,null,null,null,null,null,null,null,null,null,null,null,null,null,null,null,null,null,null,null,null,null,null,null,null,null,null,null,null,null,null,null,null,null,null,null,null,null,null,null,null,null,null,null,null,null,null,null,null,null,null,null,null,null,null,null,null,null,null,null,null,null,null,null,null,null,null,null,null,null,null,null,null,null,null,null,null,null,null,null,null,null,null,null,null,null,null,null,null,null,null,null,null,null,30,"Languedoc","Centre de Gestion du Gard",null,null,null,null,null,null,null,null,null,"Lieutenants de sapeurs-pompiers professionnels",{"$f":"'[1]IND 1.1.1'!$I$332","v":0},{"$f":"'[1]IND 1.2.1'!$K80","v":0},0,{"$f":"RANK(FU52,$FU$1:$FU$60,0)+COUNTIF(FU$1:FU52,FU52)-1","v":51},51,{"$error":"#DIV/0!"},"Lieutenants de sapeurs-pompiers professionnels","B",0]
[null,null,null,null,null,null,null,null,{"$f":"IF(M53=0,\" \",VLOOKUP(4,Calculs!$AH$7:$AJ$67,3,FALSE))","v":" "},null,null,null,{"$f":"VLOOKUP(4,Calculs!$AH$7:$AI$66,2,FALSE)","v":0},null,{"$f":"IF(OR(R53=0,R53=\"0\"),\" \",VLOOKUP(2,Calculs!$AU$7:$AW$66,3,FALSE))","v":" "},null,null,{"$f":"VLOOKUP(2,Calculs!$AU$7:$AV$66,2,FALSE)","v":"0"},null,null,null,null,null,null,null,null,null,null,null,null,null,null,null,null,null,null,null,null,null,null,null,null,null,null,null,"L'outil automatisé permettant la réalisation de cette synthèse a été réalisé par le Comité Technique des Chargés d'études des Observatoires Régionaux des Centres de Gestion. Il reprend les principaux indicateurs relatifs aux risques psychosociaux présents dans le Bilan Social 2018.",null,null,null,null,null,null,null,null,null,null,null,null,null,null,null,null,null,null,null,null,null,null,null,null,null,null,null,null,null,null,null,null,null,null,null,null,null,null,null,null,null,null,null,null,null,null,null,null,null,null,null,null,null,null,null,null,null,null,null,null,null,null,null,null,null,null,null,null,null,null,null,null,null,null,null,null,null,null,null,null,null,null,null,null,null,null,null,null,null,null,null,null,null,null,null,null,null,null,null,null,null,null,null,null,null,null,null,null,null,null,null,null,null,null,null,34,"Languedoc","Centre de Gestion de l'Hérault",null,null,null,null,null,null,null,null,null,"CADRES DE SANTE DES SAPEURS POMPIERS PROFESSIONNELS",{"$f":"'[1]IND 1.1.1'!$I$338","v":0},{"$f":"'[1]IND 1.2.1'!$K81","v":0},0,{"$f":"RANK(FU53,$FU$1:$FU$60,0)+COUNTIF(FU$1:FU53,FU53)-1","v":52},52,{"$error":"#DIV/0!"},"CADRES DE SANTE DES SAPEURS POMPIERS PROFESSIONNELS","A",0]
[null,null,null,null,null,null,null,null,{"$f":"IF(M54=0,\" \",VLOOKUP(5,Calculs!$AH$7:$AJ$67,3,FALSE))","v":" "},null,null,null,{"$f":"VLOOKUP(5,Calculs!$AH$7:$AI$66,2,FALSE)","v":0},null,null,null,null,null,null,null,null,null,null,null,null,null,null,null,null,null,null,null,null,null,null,null,null,null,null,null,null,null,null,null,null,null,null,null,null,null,null,null,null,null,null,null,null,null,null,null,null,null,null,null,null,null,null,null,null,null,null,null,null,null,null,null,null,null,null,null,null,null,null,null,null,null,null,null,null,null,null,null,null,null,null,null,null,null,null,null,null,null,null,null,null,null,null,null,null,null,null,null,null,null,null,null,null,null,null,null,null,null,null,null,null,null,null,null,null,null,null,null,null,null,null,null,null,null,null,null,null,null,null,null,null,null,null,null,null,null,null,null,null,null,null,null,null,null,null,null,null,48,"Languedoc","Centre de Gestion de la Lozère",null,null,null,null,null,null,null,null,null,"Infirmiers de sapeurs-pompiers professionnels",{"$f":"'[1]IND 1.1.1'!$I$344","v":0},{"$f":"'[1]IND 1.2.1'!$K82","v":0},0,{"$f":"RANK(FU54,$FU$1:$FU$60,0)+COUNTIF(FU$1:FU54,FU54)-1","v":53},53,{"$error":"#DIV/0!"},"Infirmiers de sapeurs-pompiers professionnels","B",0]
[null,null,null,null,null,null,null,null,null,null,null,null,null,null,{"$f":"IF(OR(R55=0,R55=\"0\"),\" \",VLOOKUP(3,Calculs!$AU$7:$AW$66,3,FALSE))","v":" "},null,null,{"$f":"VLOOKUP(3,Calculs!$AU$7:$AV$66,2,FALSE)","v":"0"},null,null,null,null,null,null,null,null,null,"Æ","Droits syndicaux",null,null,null,null,null,null,null,null,null,null,null,null,null,null,null,null,null,null,null,null,null,null,null,null,null,null,null,null,null,null,null,null,null,null,null,null,null,null,null,null,null,null,null,null,null,null,null,null,null,null,null,null,null,null,null,null,null,null,null,null,null,null,null,null,null,null,null,null,null,null,null,null,null,null,null,null,null,null,null,null,null,null,null,null,null,null,null,null,null,null,null,null,null,null,null,null,null,null,null,null,null,null,null,null,null,null,null,null,null,null,null,null,null,null,null,null,null,null,null,null,null,null,null,null,null,null,null,null,null,null,null,null,66,"Languedoc","Centre de Gestion des Pyrénées-Orientales",null,null,null,null,null,null,null,null,null,"Sous officiers de sapeurs-pompiers professionnels",{"$f":"'[1]IND 1.1.1'!$I$349","v":0},{"$f":"'[1]IND 1.2.1'!$K83","v":0},0,{"$f":"RANK(FU55,$FU$1:$FU$60,0)+COUNTIF(FU$1:FU55,FU55)-1","v":54},54,{"$error":"#DIV/0!"},"Sous officiers de sapeurs-pompiers professionnels","C",0]
[{"$f":"\"Synthèse sur les risques psycho-sociaux réalisée par le \"&  VLOOKUP(VALUE('[1]Page de garde'!$F$8),FF4:FH99,3,FALSE) & \" par extraction des données \ndu Rapport sur l'État de la Collectivité 2018 transmis en 2019 par la collectivité\"","v":{"$error":"#N/A"}},null,null,null,null,null,null,null,null,null,null,null,null,null,null,null,null,null,null,null,null,null,null,null,null,null,null,null,"Heures de décharges d'activités de service",null,null,null,null,null,null,null,null,null,null,null,null,null,null,null,null,null,null,null,null,null,null,null,null,null,null,null,null,null,null,null,null,null,null,null,null,null,null,null,null,null,null,null,null,null,null,null,null,null,null,null,null,null,null,null,null,null,null,null,null,null,null,null,null,null,null,null,null,null,null,null,null,null,null,null,null,null,null,null,null,null,null,null,null,null,null,null,null,null,null,null,null,null,null,null,null,null,null,null,null,null,null,null,null,null,null,null,null,null,null,null,null,null,null,null,null,null,null,null,null,null,null,null,null,null,null,null,null,null,null,null,null,19,"Limousin","Centre de Gestion de la Corrèze",null,null,null,null,null,null,null,null,null,"Sapeurs et caporaux de sapeurs-pompiers professionnels",{"$f":"'[1]IND 1.1.1'!$I$356","v":0},{"$f":"'[1]IND 1.2.1'!$K84","v":0},0,{"$f":"RANK(FU56,$FU$1:$FU$60,0)+COUNTIF(FU$1:FU56,FU56)-1","v":55},55,{"$error":"#DIV/0!"},"Sapeurs et caporaux de sapeurs-pompiers professionnels","C",0]
[null,null,null,null,null,null,null,null,null,null,null,null,null,null,"*Nombre moyen d'heures supplémentaires et complémentaires réalisées et rémunérées sur l'année",null,null,null,null,null,null,null,null,null,null,null,null,"- auxquelles ont droit les organisations syndicales :",null,null,null,null,null,{"$f":"'[1]IND 6.1.1-6.1.3'!B41","v":0},null,null,null,null,null,null,null,null,null,null,null,"Date de publication :",null,{"$f":"TODAY()","v":"2019-07-17"},null,null,null,"Version 3",null,null,null,null,null,null,null,null,null,null,null,null,null,null,null,null,null,null,null,null,null,null,null,null,null,null,null,null,null,null,null,null,null,null,null,null,null,null,null,null,null,null,null,null,null,null,null,null,null,null,null,null,null,null,null,null,null,null,null,null,null,null,null,null,null,null,null,null,null,null,null,null,null,null,null,null,null,null,null,null,null,null,null,null,null,null,null,null,null,null,null,null,null,null,null,null,null,null,null,null,null,null,null,null,null,null,null,null,null,23,"Limousin","Centre de Gestion de la Creuse",null,null,null,null,null,null,null,null,null,"Animateurs",{"$f":"'[1]IND 1.1.1'!$I$366","v":0},{"$f":"'[1]IND 1.2.1'!$K87","v":0},0,{"$f":"RANK(FU57,$FU$1:$FU$60,0)+COUNTIF(FU$1:FU57,FU57)-1","v":56},56,{"$error":"#DIV/0!"},"Animateurs","B",0]
[null,null,null,null,null,null,null,null,null,null,null,null,null,null,null,null,null,null,null,null,null,null,null,null,null,null,null,"- nombre d'heures effectivement réalisées :",null,null,null,null,null,{"$f":"'[1]IND 6.1.1-6.1.3'!B42","v":0},null,null,null,null,null,null,null,null,null,null,null,{"$f":"\"Synthèse réalisée par le \" & VLOOKUP(VALUE('[1]Page de garde'!$F$8),Calculs!BF4:BH100,3,FALSE)","v":{"$error":"#N/A"}},null,null,null,null,null,null,null,null,null,null,null,null,null,null,null,null,null,null,null,null,null,null,null,null,null,null,null,null,null,null,null,null,null,null,null,null,null,null,null,null,null,null,null,null,null,null,null,null,null,null,null,null,null,null,null,null,null,null,null,null,null,null,null,null,null,null,null,null,null,null,null,null,null,null,null,null,null,null,null,null,null,null,null,null,null,null,null,null,null,null,null,null,null,null,null,null,null,null,null,null,null,null,null,null,null,null,null,null,null,null,null,null,null,null,null,87,"Limousin","Centre de Gestion de Haute-Vienne",null,null,null,null,null,null,null,null,null,"Adjoints territoriaux d'animation",{"$f":"'[1]IND 1.1.1'!$I$373","v":0},{"$f":"'[1]IND 1.2.1'!$K88","v":0},0,{"$f":"RANK(FU58,$FU$1:$FU$60,0)+COUNTIF(FU$1:FU58,FU58)-1","v":57},57,{"$error":"#DIV/0!"},"Adjoints territoriaux d'animation","C",0]
[null,null,null,null,null,null,null,null,null,null,null,null,null,null,null,null,null,null,null,null,null,null,null,null,null,null,null,null,null,null,null,null,null,null,null,null,null,null,null,null,null,null,null,null,null,null,null,null,null,null,null,null,null,null,null,null,null,null,null,null,null,null,null,null,null,null,null,null,null,null,null,null,null,null,null,null,null,null,null,null,null,null,null,null,null,null,null,null,null,null,null,null,null,null,null,null,null,null,null,null,null,null,null,null,null,null,null,null,null,null,null,null,null,null,null,null,null,null,null,null,null,null,null,null,null,null,null,null,null,null,null,null,null,null,null,null,null,null,null,null,null,null,null,null,null,null,null,null,null,null,null,null,null,null,null,null,null,null,null,null,null,54,"Lorraine","Centre de Gestion de Meurthe-et-Moselle",null,null,null,null,null,null,null,null,null,"Agent territorial de Mayotte",{"$f":"'[1]IND 1.1.1'!$I$379","v":0},{"$f":"'[1]IND 1.2.1'!$K93","v":0},0,{"$f":"RANK(FU59,$FU$1:$FU$60,0)+COUNTIF(FU$1:FU59,FU59)-1","v":58},58,{"$error":"#DIV/0!"},"Agent territorial de Mayotte",null,0]
[null,null,null,null,null,null,null,null,null,null,null,null,null,null,null,null,null,null,null,null,null,null,null,null,null,null,null,null,null,null,null,null,null,null,null,null,null,null,null,null,null,null,null,null,null,null,null,null,null,null,null,null,null,null,null,null,null,null,null,null,null,null,null,null,null,null,null,null,null,null,null,null,null,null,null,null,null,null,null,null,null,null,null,null,null,null,null,null,null,null,null,null,null,null,null,null,null,null,null,null,null,null,null,null,null,null,null,null,null,null,null,null,null,null,null,null,null,null,null,null,null,null,null,null,null,null,null,null,null,null,null,null,null,null,null,null,null,null,null,null,null,null,null,null,null,null,null,null,null,null,null,null,null,null,null,null,null,null,null,null,null,55,"Lorraine","Centre de Gestion de la Meuse",null,null,null,null,null,null,null,null,null,"Ouvrier territorial de Mayotte",{"$f":"'[1]IND 1.1.1'!$I$380","v":0},{"$f":"'[1]IND 1.2.1'!$K94","v":0},0,{"$f":"RANK(FU60,$FU$1:$FU$60,0)+COUNTIF(FU$1:FU60,FU60)-1","v":59},59,{"$error":"#DIV/0!"},"Ouvrier territorial de Mayotte",null,0]
[null,"Catégorie A",{"$f":"SUMIF($FZ$2:$GA$58,\"A\",$GA$2:$GA$58)/SUM($GA$2:$GA$58)","v":{"$error":"#DIV/0!"}},null,null,null,null,null,null,null,"Hommes","Femmes",null,null,null,null,null,null,null,null,null,null,null,null,null,null,null,"Droits sociaux",null,null,null,null,null,null,null,null,null,null,null,null,null,null,null,null,null,null,null,null,null,null,null,null,null,null,null,null,null,null,null,null,null,null,null,null,null,null,null,null,null,null,null,null,null,null,null,null,null,null,null,null,null,null,null,null,null,null,null,null,null,null,null,null,null,null,null,null,null,null,null,null,null,null,null,null,null,null,null,null,null,null,null,null,null,null,null,null,null,null,null,null,null,null,null,null,null,null,null,null,null,null,null,null,null,null,null,null,null,null,null,null,null,null,null,null,null,null,null,null,null,null,null,null,null,null,null,null,null,null,null,null,null,57,"Lorraine","Centre de Gestion de la Moselle",null,null,null,null,null,null,null,null,null,"SOMME",{"$f":"SUM(FS2:FS60)","v":0},{"$f":"SUM(FT2:FT60)","v":0},{"$f":"SUM(FU2:FU60)","v":0}]
[null,"Catégorie B",{"$f":"SUMIF($FZ$2:$GA$58,\"B\",$GA$2:$GA$58)/SUM($GA$2:$GA$58)","v":{"$error":"#DIV/0!"}},null,null,null,"Contractuels non permanent",null,null,null,{"$f":"FN19/$FP19","v":{"$error":"#DIV/0!"}},{"$error":"#DIV/0!"},null,null,null,null,null,null,null,null,null,null,null,null,null,null,null,null,null,null,null,null,null,null,null,null,null,null,null,null,null,null,null,"émanant du personnel avec arrêt de travail",{"$f":"IF('[1]IND 4.3.1'!B12=\"        \",0,'[1]IND 4.3.1'!B12)","v":0},{"$f":"IF('[1]IND 4.3.1'!C12=\"        \",0,'[1]IND 4.3.1'!C12)","v":0},null,null,null,null,null,null,null,null,null,null,null,null,null,null,null,null,null,null,null,null,null,null,null,null,null,null,null,null,null,null,null,null,null,null,null,null,null,null,null,null,null,null,null,null,null,null,null,null,null,null,null,null,null,null,null,null,null,null,null,null,null,null,null,null,null,null,null,null,null,null,null,null,null,null,null,null,null,null,null,null,null,null,null,null,null,null,null,null,null,null,null,null,null,null,null,null,null,null,null,null,null,null,null,null,null,null,null,null,null,null,null,null,null,null,null,88,"Lorraine","Centre de Gestion des Vosges"]
[null,"Catégorie C",{"$f":"SUMIF($FZ$2:$GA$58,\"C\",$GA$2:$GA$58)/SUM($GA$2:$GA$58)","v":{"$error":"#DIV/0!"}},null,null,null,"Contractuels permanent",null,null,null,{"$error":"#DIV/0!"},{"$error":"#DIV/0!"},null,null,null,null,null,null,null,null,null,null,null,null,null,null,null,null,null,null,null,null,null,null,null,null,null,null,null,null,null,null,null,"émanant du personnel sans arrêt de travail",{"$f":"IF('[1]IND 4.3.1'!B13=\"        \",0,'[1]IND 4.3.1'!B13)","v":0},{"$f":"IF('[1]IND 4.3.1'!C13=\"        \",0,'[1]IND 4.3.1'!C13)","v":0},null,null,null,null,null,null,null,null,null,null,null,null,null,null,null,null,null,null,null,null,null,null,null,null,null,null,null,null,null,null,null,null,null,null,null,null,null,null,null,null,null,null,null,null,null,null,null,null,null,null,null,null,null,null,null,null,null,null,null,null,null,null,null,null,null,null,null,null,null,null,null,null,null,null,null,null,null,null,null,null,null,null,null,null,null,null,null,null,null,null,null,null,null,null,null,null,null,null,null,null,null,null,null,null,null,null,null,null,null,null,null,null,null,null,null,9,"Midi-Pyrénées","Centre de Gestion de l'Ariège"]
[null,null,null,null,null,null,"Fonctionnaires",null,null,null,{"$error":"#DIV/0!"},{"$error":"#DIV/0!"},null,null,null,null,null,null,null,null,null,null,null,null,null,null,null,null,null,"Comité technique",{"$f":"'[1]IND 6.1.1-6.1.3'!$B$7","v":0},null,null,null,null,null,null,null,null,null,null,null,null,"émanant des usagers avec arrêt de travail",{"$f":"IF('[1]IND 4.3.1'!B14=\"        \",0,'[1]IND 4.3.1'!B14)","v":0},{"$f":"IF('[1]IND 4.3.1'!C14=\"        \",0,'[1]IND 4.3.1'!C14)","v":0},null,null,null,null,null,null,null,null,null,null,null,null,null,null,null,null,null,null,null,null,null,null,null,null,null,null,null,null,null,null,null,null,null,null,null,null,null,null,null,null,null,null,null,null,null,null,null,null,null,null,null,null,null,null,null,null,null,null,null,null,null,null,null,null,null,null,null,null,null,null,null,null,null,null,null,null,null,null,null,null,null,null,null,null,null,null,null,null,null,null,null,null,null,null,null,null,null,null,null,null,null,null,null,null,null,null,null,null,null,null,null,null,null,null,null,12,"Midi-Pyrénées","Centre de Gestion de l'Aveyron"]
[null,null,null,null,null,null,null,null,null,null,null,null,null,null,null,null,null,null,null,null,null,null,null,null,null,null,null,null,null,"Commission administrative paritaire",{"$f":"'[1]IND 6.1.1-6.1.3'!$B$8","v":0},null,null,null,null,null,null,null,null,null,null,null,null,"émanant des usagers sans arrêt de travail",{"$f":"IF('[1]IND 4.3.1'!B15=\"        \",0,'[1]IND 4.3.1'!B15)","v":0},{"$f":"IF('[1]IND 4.3.1'!C15=\"        \",0,'[1]IND 4.3.1'!C15)","v":0},null,null,null,null,null,null,null,null,null,null,null,null,null,null,null,null,null,null,null,null,null,null,null,null,null,null,null,null,null,null,null,null,null,null,null,null,null,null,null,null,null,null,null,null,null,null,null,null,null,null,null,null,null,null,null,null,null,null,null,null,null,null,null,null,null,null,null,null,null,null,null,null,null,null,null,null,null,null,null,null,null,null,null,null,null,null,null,null,null,null,null,null,null,null,null,null,null,null,null,null,null,null,null,null,null,null,null,null,null,null,null,null,null,null,null,31,"Midi-Pyrénées","Centre de Gestion de Haute-Garonne"]
[null,null,null,null,null,null,null,null,null,null,null,null,null,null,null,null,null,null,null,null,null,null,null,null,null,null,null,null,null,"CHSCT*",{"$f":"IF([1]!PdG_Collectivite=\"04 - Centre de gestion de la fonction publique territoriale\",'[1]IND 6.1.1-6.1.3'!$B$26,'[1]IND 6.1.1-6.1.3'!$B$17)","v":0},null,null,null,null,null,null,null,null,null,null,null,null,null,null,null,null,null,null,null,null,null,null,null,null,null,null,null,null,null,null,null,null,null,null,null,null,null,null,null,null,null,null,null,null,null,null,null,null,null,null,null,null,null,null,null,null,null,null,null,null,null,null,null,null,null,null,null,null,null,null,null,null,null,null,null,null,null,null,null,null,null,null,null,null,null,null,null,null,null,null,null,null,null,null,null,null,null,null,null,null,null,null,null,null,null,null,null,null,null,null,null,null,null,null,null,null,null,null,null,null,null,null,null,null,null,null,null,null,null,null,32,"Midi-Pyrénées","Centre de Gestion du Gers"]
[null,null,null,null,null,null,null,null,null,null,null,null,null,null,null,null,null,null,null,null,null,null,null,null,null,null,null,null,null,null,null,null,null,null,null,null,null,null,null,null,null,null,null,null,null,null,null,null,null,null,null,null,null,null,null,null,null,null,null,null,null,null,null,null,null,null,null,null,null,null,null,null,null,null,null,null,null,null,null,null,null,null,null,null,null,null,null,null,null,null,null,null,null,null,null,null,null,null,null,null,null,null,null,null,null,null,null,null,null,null,null,null,null,null,null,null,null,null,null,null,null,null,null,null,null,null,null,null,null,null,null,null,null,null,null,null,null,null,null,null,null,null,null,null,null,null,null,null,null,null,null,null,null,null,null,null,null,null,null,null,null,46,"Midi-Pyrénées","Centre de Gestion du Lot"]
[null,null,null,null,null,null,null,null,null,null,null,null,null,null,null,null,null,null,null,null,null,null,null,null,null,null,null,null,null,null,null,null,null,null,null,null,null,null,null,null,null,null,null,null,null,null,null,null,null,null,null,null,null,null,null,null,null,null,null,null,null,null,null,null,null,null,null,null,null,null,null,null,null,null,null,null,null,null,null,null,null,null,null,null,null,null,null,null,null,null,null,null,null,null,null,null,null,null,null,null,null,null,null,null,null,null,null,null,null,null,null,null,null,null,null,null,null,null,null,null,null,null,null,null,null,null,null,null,null,null,null,null,null,null,null,null,null,null,null,null,null,null,null,null,null,null,null,null,null,null,null,null,null,null,null,null,null,null,null,null,null,65,"Midi-Pyrénées","Centre de Gestion des Hautes-Pyrénées"]
[null,null,null,null,null,null,null,null,null,null,null,null,null,null,null,null,null,null,null,null,null,null,null,null,null,null,null,null,null,null,null,null,null,null,null,null,null,null,null,null,null,null,null,null,null,null,null,null,null,null,null,null,null,null,null,null,null,null,null,null,null,null,null,null,null,null,null,null,null,null,null,null,null,null,null,null,null,null,null,null,null,null,null,null,null,null,null,null,null,null,null,null,null,null,null,null,null,null,null,null,null,null,null,null,null,null,null,null,null,null,null,null,null,null,null,null,null,null,null,null,null,null,null,null,null,null,null,null,null,null,null,null,null,null,null,null,null,null,null,null,null,null,null,null,null,null,null,null,null,null,null,null,null,null,null,null,null,null,null,null,null,81,"Midi-Pyrénées","Centre de Gestion du Tarn"]
[null,null,null,null,null,null,null,null,null,null,null,null,null,null,null,null,null,null,null,null,null,null,null,null,null,null,null,null,"Effectifs au 31/12/2017",null,"Effectifs au 31/12/2018",null,null,null,null,null,null,null,null,null,null,null,null,null,null,null,null,null,null,null,null,null,null,null,null,null,null,null,null,null,null,null,null,null,null,null,null,null,null,null,null,null,null,null,null,null,null,null,null,null,null,null,null,null,null,null,null,null,null,null,null,null,null,null,null,null,null,null,null,null,null,null,null,null,null,null,null,null,null,null,null,null,null,null,null,null,null,null,null,null,null,null,null,null,null,null,null,null,null,null,null,null,null,null,null,null,null,null,null,null,null,null,null,null,null,null,null,null,null,null,null,null,null,null,null,null,null,null,null,null,null,82,"Midi-Pyrénées","Centre de Gestion du Tarn-et-Garonne"]
[null,null,null,null,null,null,null,null,null,null,null,null,null,null,null,null,null,null,null,null,null,null,null,null,null,null,null,null,{"$f":"Calculs!B69","v":0},null,{"$f":"'[1]IND 1.1.1'!$I$382","v":0},null,null,null,null,null,null,null,null,null,null,null,null,null,null,null,null,null,null,null,null,null,null,null,null,null,null,null,null,null,null,null,null,null,null,null,null,null,null,null,null,null,null,null,null,null,null,null,null,null,null,null,null,null,null,null,null,null,null,null,null,null,null,null,null,null,null,null,null,null,null,null,null,null,null,null,null,null,null,null,null,null,null,null,null,null,null,null,null,null,null,null,null,null,null,null,null,null,null,null,null,null,null,null,null,null,null,null,null,null,null,null,null,null,null,null,null,null,null,null,null,null,null,null,null,null,null,null,null,null,null,59,"Nord","Centre de Gestion du Nord"]
[null,null,null,null,null,null,null,null,null,null,null,null,null,null,null,null,null,null,null,null,null,null,null,null,null,null,null,null,{"$f":"Calculs!B70","v":0},null,{"$f":"'[1]IND 1.2.1'!$K$96","v":0},null,null,null,null,null,null,null,null,null,null,null,null,null,null,null,null,null,null,null,null,null,null,null,null,null,null,null,null,null,null,null,null,null,null,null,null,null,null,null,null,null,null,null,null,null,null,null,null,null,null,null,null,null,null,null,null,null,null,null,null,null,null,null,null,null,null,null,null,null,null,null,null,null,null,null,null,null,null,null,null,null,null,null,null,null,null,null,null,null,null,null,null,null,null,null,null,null,null,null,null,null,null,null,null,null,null,null,null,null,null,null,null,null,null,null,null,null,null,null,null,null,null,null,null,null,null,null,null,null,null,62,"Nord","Centre de Gestion du Pas-de-Calais"]
[null,null,null,null,null,null,null,null,null,null,null,null,null,null,null,null,null,null,null,null,null,null,null,null,null,null,null,null,{"$f":"Calculs!D67","v":0},null,{"$f":"Calculs!D66","v":0},null,null,null,null,null,null,null,null,null,null,null,null,null,null,null,null,null,null,null,null,null,null,null,null,null,null,null,null,null,null,null,null,null,null,null,null,null,null,null,null,null,null,null,null,null,null,null,null,null,null,null,null,null,null,null,null,null,null,null,null,null,null,null,null,null,null,null,null,null,null,null,null,null,null,null,null,null,null,null,null,null,null,null,null,null,null,null,null,null,null,null,null,null,null,null,null,null,null,null,null,null,null,null,null,null,null,null,null,null,null,null,null,null,null,null,null,null,null,null,null,null,null,null,null,null,null,null,null,null,null,50,"Normandie","Centre de Gestion de la Manche"]
[null,null,null,null,null,null,null,null,null,null,null,null,null,null,null,null,null,null,null,null,null,null,null,null,null,null,null,null,null,null,null,null,null,null,null,null,null,null,null,null,null,null,null,null,null,null,null,null,null,null,null,null,null,null,null,null,null,null,null,null,null,null,null,null,null,null,null,null,null,null,null,null,null,null,null,null,null,null,null,null,null,null,null,null,null,null,null,null,null,null,null,null,null,null,null,null,null,null,null,null,null,null,null,null,null,null,null,null,null,null,null,null,null,null,null,null,null,null,null,null,null,null,null,null,null,null,null,null,null,null,null,null,null,null,null,null,null,null,null,null,null,null,null,null,null,null,null,null,null,null,null,null,null,null,null,null,null,null,null,null,null,44,"Pays-de-la-Loire","Centre de Gestion de Loire-Atlantique"]
[null,null,null,null,null,null,null,null,null,null,null,null,null,null,null,null,null,null,null,null,null,null,null,null,null,null,null,null,null,null,null,null,null,null,null,null,null,null,null,null,null,null,null,null,null,null,null,null,null,null,null,null,null,null,null,null,null,null,null,null,null,null,null,null,null,null,null,null,null,null,null,null,null,null,null,null,null,null,null,null,null,null,null,null,null,null,null,null,null,null,null,null,null,null,null,null,null,null,null,null,null,null,null,null,null,null,null,null,null,null,null,null,null,null,null,null,null,null,null,null,null,null,null,null,null,null,null,null,null,null,null,null,null,null,null,null,null,null,null,null,null,null,null,null,null,null,null,null,null,null,null,null,null,null,null,null,null,null,null,null,null,49,"Pays-de-la-Loire","Centre de Gestion de Maine-et-Loire"]
[null,null,null,null,null,null,null,null,null,null,null,null,null,null,null,null,null,null,null,null,null,null,null,null,null,null,null,null,null,null,null,null,null,null,null,null,null,null,null,null,null,null,null,null,null,null,null,null,null,null,null,null,null,null,null,null,null,null,null,null,null,null,null,null,null,null,null,null,null,null,null,null,null,null,null,null,null,null,null,null,null,null,null,null,null,null,null,null,null,null,null,null,null,null,null,null,null,null,null,null,null,null,null,null,null,null,null,null,null,null,null,null,null,null,null,null,null,null,null,null,null,null,null,null,null,null,null,null,null,null,null,null,null,null,null,null,null,null,null,null,null,null,null,null,null,null,null,null,null,null,null,null,null,null,null,null,null,null,null,null,null,53,"Pays-de-la-Loire","Centre de Gestion de la Mayenne"]
[null,null,null,null,null,null,null,null,null,null,null,null,null,null,null,null,null,null,null,null,null,null,null,null,null,null,null,null,null,null,null,null,null,null,null,null,null,null,null,null,null,null,null,null,null,null,null,null,null,null,null,null,null,null,null,null,null,null,null,null,null,null,null,null,null,null,null,null,null,null,null,null,null,null,null,null,null,null,null,null,null,null,null,null,null,null,null,null,null,null,null,null,null,null,null,null,null,null,null,null,null,null,null,null,null,null,null,null,null,null,null,null,null,null,null,null,null,null,null,null,null,null,null,null,null,null,null,null,null,null,null,null,null,null,null,null,null,null,null,null,null,null,null,null,null,null,null,null,null,null,null,null,null,null,null,null,null,null,null,null,null,72,"Pays-de-la-Loire","Centre de Gestion de la Sarthe"]
[null,null,null,null,null,null,null,null,null,null,null,null,null,null,null,null,null,null,null,null,null,null,null,null,null,null,null,null,null,null,null,null,null,null,null,null,null,null,null,null,null,null,null,null,null,null,null,null,null,null,null,null,null,null,null,null,null,null,null,null,null,null,null,null,null,null,null,null,null,null,null,null,null,null,null,null,null,null,null,null,null,null,null,null,null,null,null,null,null,null,null,null,null,null,null,null,null,null,null,null,null,null,null,null,null,null,null,null,null,null,null,null,null,null,null,null,null,null,null,null,null,null,null,null,null,null,null,null,null,null,null,null,null,null,null,null,null,null,null,null,null,null,null,null,null,null,null,null,null,null,null,null,null,null,null,null,null,null,null,null,null,85,"Pays-de-la-Loire","Centre de Gestion de la Vendée"]
[null,null,null,null,null,null,null,null,null,null,null,null,null,null,null,null,null,null,null,null,null,null,null,null,null,null,null,null,null,null,null,null,null,null,null,null,null,null,null,null,null,null,null,null,null,null,null,null,null,null,null,null,null,null,null,null,null,null,null,null,null,null,null,null,null,null,null,null,null,null,null,null,null,null,null,null,null,null,null,null,null,null,null,null,null,null,null,null,null,null,null,null,null,null,null,null,null,null,null,null,null,null,null,null,null,null,null,null,null,null,null,null,null,null,null,null,null,null,null,null,null,null,null,null,null,null,null,null,null,null,null,null,null,null,null,null,null,null,null,null,null,null,null,null,null,null,null,null,null,null,null,null,null,null,null,null,null,null,null,null,null,2,"Picardie","Centre de Gestion de l'Aisne"]
[null,null,null,null,null,null,null,null,null,null,null,null,null,null,null,null,null,null,null,null,null,null,null,null,null,null,null,null,null,null,null,null,null,null,null,null,null,null,null,null,null,null,null,null,null,null,null,null,null,null,null,null,null,null,null,null,null,null,null,null,null,null,null,null,null,null,null,null,null,null,null,null,null,null,null,null,null,null,null,null,null,null,null,null,null,null,null,null,null,null,null,null,null,null,null,null,null,null,null,null,null,null,null,null,null,null,null,null,null,null,null,null,null,null,null,null,null,null,null,null,null,null,null,null,null,null,null,null,null,null,null,null,null,null,null,null,null,null,null,null,null,null,null,null,null,null,null,null,null,null,null,null,null,null,null,null,null,null,null,null,null,60,"Picardie","Centre de Gestion de l'Oise"]
[null,null,null,null,null,null,null,null,null,null,null,null,null,null,null,null,null,null,null,null,null,null,null,null,null,null,null,null,null,null,null,null,null,null,null,null,null,null,null,null,null,null,null,null,null,null,null,null,null,null,null,null,null,null,null,null,null,null,null,null,null,null,null,null,null,null,null,null,null,null,null,null,null,null,null,null,null,null,null,null,null,null,null,null,null,null,null,null,null,null,null,null,null,null,null,null,null,null,null,null,null,null,null,null,null,null,null,null,null,null,null,null,null,null,null,null,null,null,null,null,null,null,null,null,null,null,null,null,null,null,null,null,null,null,null,null,null,null,null,null,null,null,null,null,null,null,null,null,null,null,null,null,null,null,null,null,null,null,null,null,null,80,"Picardie","Centre de Gestion de la Somme"]
[null,null,null,null,null,null,null,null,null,null,null,null,null,null,null,null,null,null,null,null,null,null,null,null,null,null,null,null,null,null,null,null,null,null,null,null,null,null,null,null,null,null,null,null,null,null,null,null,null,null,null,null,null,null,null,null,null,null,null,null,null,null,null,null,null,null,null,null,null,null,null,null,null,null,null,null,null,null,null,null,null,null,null,null,null,null,null,null,null,null,null,null,null,null,null,null,null,null,null,null,null,null,null,null,null,null,null,null,null,null,null,null,null,null,null,null,null,null,null,null,null,null,null,null,null,null,null,null,null,null,null,null,null,null,null,null,null,null,null,null,null,null,null,null,null,null,null,null,null,null,null,null,null,null,null,null,null,null,null,null,null,16,"Poitou-Charente","Centre de Gestion de la Charente"]
[null,null,null,null,null,null,null,null,null,null,null,null,null,null,null,null,null,null,null,null,null,null,null,null,null,null,null,null,null,null,null,null,null,null,null,null,null,null,null,null,null,null,null,null,null,null,null,null,null,null,null,null,null,null,null,null,null,null,null,null,null,null,null,null,null,null,null,null,null,null,null,null,null,null,null,null,null,null,null,null,null,null,null,null,null,null,null,null,null,null,null,null,null,null,null,null,null,null,null,null,null,null,null,null,null,null,null,null,null,null,null,null,null,null,null,null,null,null,null,null,null,null,null,null,null,null,null,null,null,null,null,null,null,null,null,null,null,null,null,null,null,null,null,null,null,null,null,null,null,null,null,null,null,null,null,null,null,null,null,null,null,17,"Poitou-Charente","Centre de Gestion de la Charente Maritime"]
[null,null,null,null,null,null,null,null,null,null,null,null,null,null,null,null,null,null,null,null,null,null,null,null,null,null,null,null,null,null,null,null,null,null,null,null,null,null,null,null,null,null,null,null,null,null,null,null,null,null,null,null,null,null,null,null,null,null,null,null,null,null,null,null,null,null,null,null,null,null,null,null,null,null,null,null,null,null,null,null,null,null,null,null,null,null,null,null,null,null,null,null,null,null,null,null,null,null,null,null,null,null,null,null,null,null,null,null,null,null,null,null,null,null,null,null,null,null,null,null,null,null,null,null,null,null,null,null,null,null,null,null,null,null,null,null,null,null,null,null,null,null,null,null,null,null,null,null,null,null,null,null,null,null,null,null,null,null,null,null,null,79,"Poitou-Charente","Centre de Gestion des Deux-Sèvres"]
[null,null,null,null,null,null,null,null,null,null,null,null,null,null,null,null,null,null,null,null,null,null,null,null,null,null,null,null,null,null,null,null,null,null,null,null,null,null,null,null,null,null,null,null,null,null,null,null,null,null,null,null,null,null,null,null,null,null,null,null,null,null,null,null,null,null,null,null,null,null,null,null,null,null,null,null,null,null,null,null,null,null,null,null,null,null,null,null,null,null,null,null,null,null,null,null,null,null,null,null,null,null,null,null,null,null,null,null,null,null,null,null,null,null,null,null,null,null,null,null,null,null,null,null,null,null,null,null,null,null,null,null,null,null,null,null,null,null,null,null,null,null,null,null,null,null,null,null,null,null,null,null,null,null,null,null,null,null,null,null,null,86,"Poitou-Charente","Centre de Gestion de la Vienne"]
[null,null,null,null,null,null,null,null,null,null,null,null,null,null,null,null,null,null,null,null,null,null,null,null,null,null,null,null,null,null,null,null,null,null,null,null,null,null,null,null,null,null,null,null,null,null,null,null,null,null,null,null,null,null,null,null,null,null,null,null,null,null,null,null,null,null,null,null,null,null,null,null,null,null,null,null,null,null,null,null,null,null,null,null,null,null,null,null,null,null,null,null,null,null,null,null,null,null,null,null,null,null,null,null,null,null,null,null,null,null,null,null,null,null,null,null,null,null,null,null,null,null,null,null,null,null,null,null,null,null,null,null,null,null,null,null,null,null,null,null,null,null,null,null,null,null,null,null,null,null,null,null,null,null,null,null,null,null,null,null,null,4,"Provence-Alpes-Côte d'Azur","Centre de Gestion des Alpes de Haute-Provence"]
[null,null,null,null,null,null,null,null,null,null,null,null,null,null,null,null,null,null,null,null,null,null,null,null,null,null,null,null,null,null,null,null,null,null,null,null,null,null,null,null,null,null,null,null,null,null,null,null,null,null,null,null,null,null,null,null,null,null,null,null,null,null,null,null,null,null,null,null,null,null,null,null,null,null,null,null,null,null,null,null,null,null,null,null,null,null,null,null,null,null,null,null,null,null,null,null,null,null,null,null,null,null,null,null,null,null,null,null,null,null,null,null,null,null,null,null,null,null,null,null,null,null,null,null,null,null,null,null,null,null,null,null,null,null,null,null,null,null,null,null,null,null,null,null,null,null,null,null,null,null,null,null,null,null,null,null,null,null,null,null,null,5,"Provence-Alpes-Côte d'Azur","Centre de Gestion des Hautes-Alpes"]
[null,null,null,null,null,null,null,null,null,null,null,null,null,null,null,null,null,null,null,null,null,null,null,null,null,null,null,null,null,null,null,null,null,null,null,null,null,null,null,null,null,null,null,null,null,null,null,null,null,null,null,null,null,null,null,null,null,null,null,null,null,null,null,null,null,null,null,null,null,null,null,null,null,null,null,null,null,null,null,null,null,null,null,null,null,null,null,null,null,null,null,null,null,null,null,null,null,null,null,null,null,null,null,null,null,null,null,null,null,null,null,null,null,null,null,null,null,null,null,null,null,null,null,null,null,null,null,null,null,null,null,null,null,null,null,null,null,null,null,null,null,null,null,null,null,null,null,null,null,null,null,null,null,null,null,null,null,null,null,null,null,6,"Provence-Alpes-Côte d'Azur","Centre de Gestion des Alpes-Maritimes"]
[null,null,null,null,null,null,null,null,null,null,null,null,null,null,null,null,null,null,null,null,null,null,null,null,null,null,null,null,null,null,null,null,null,null,null,null,null,null,null,null,null,null,null,null,null,null,null,null,null,null,null,null,null,null,null,null,null,null,null,null,null,null,null,null,null,null,null,null,null,null,null,null,null,null,null,null,null,null,null,null,null,null,null,null,null,null,null,null,null,null,null,null,null,null,null,null,null,null,null,null,null,null,null,null,null,null,null,null,null,null,null,null,null,null,null,null,null,null,null,null,null,null,null,null,null,null,null,null,null,null,null,null,null,null,null,null,null,null,null,null,null,null,null,null,null,null,null,null,null,null,null,null,null,null,null,null,null,null,null,null,null,13,"Provence-Alpes-Côte d'Azur","Centre de Gestion des Bouches du Rhône"]
[null,null,null,null,null,null,null,null,null,null,null,null,null,null,null,null,null,null,null,null,null,null,null,null,null,null,null,null,null,null,null,null,null,null,null,null,null,null,null,null,null,null,null,null,null,null,null,null,null,null,null,null,null,null,null,null,null,null,null,null,null,null,null,null,null,null,null,null,null,null,null,null,null,null,null,null,null,null,null,null,null,null,null,null,null,null,null,null,null,null,null,null,null,null,null,null,null,null,null,null,null,null,null,null,null,null,null,null,null,null,null,null,null,null,null,null,null,null,null,null,null,null,null,null,null,null,null,null,null,null,null,null,null,null,null,null,null,null,null,null,null,null,null,null,null,null,null,null,null,null,null,null,null,null,null,null,null,null,null,null,null,83,"Provence-Alpes-Côte d'Azur","Centre de Gestion du Var"]
[null,null,null,null,null,null,null,null,null,null,null,null,null,null,null,null,null,null,null,null,null,null,null,null,null,null,null,null,null,null,null,null,null,null,null,null,null,null,null,null,null,null,null,null,null,null,null,null,null,null,null,null,null,null,null,null,null,null,null,null,null,null,null,null,null,null,null,null,null,null,null,null,null,null,null,null,null,null,null,null,null,null,null,null,null,null,null,null,null,null,null,null,null,null,null,null,null,null,null,null,null,null,null,null,null,null,null,null,null,null,null,null,null,null,null,null,null,null,null,null,null,null,null,null,null,null,null,null,null,null,null,null,null,null,null,null,null,null,null,null,null,null,null,null,null,null,null,null,null,null,null,null,null,null,null,null,null,null,null,null,null,84,"Provence-Alpes-Côte d'Azur","Centre de Gestion du Vaucluse"]
[null,null,null,null,null,null,null,null,null,null,null,null,null,null,null,null,null,null,null,null,null,null,null,null,null,null,null,null,null,null,null,null,null,null,null,null,null,null,null,null,null,null,null,null,null,null,null,null,null,null,null,null,null,null,null,null,null,null,null,null,null,null,null,null,null,null,null,null,null,null,null,null,null,null,null,null,null,null,null,null,null,null,null,null,null,null,null,null,null,null,null,null,null,null,null,null,null,null,null,null,null,null,null,null,null,null,null,null,null,null,null,null,null,null,null,null,null,null,null,null,null,null,null,null,null,null,null,null,null,null,null,null,null,null,null,null,null,null,null,null,null,null,null,null,null,null,null,null,null,null,null,null,null,null,null,null,null,null,null,null,null,1,"Rhône-Alpes","Centre de Gestion de l'Ain"]
[null,null,null,null,null,null,null,null,null,null,null,null,null,null,null,null,null,null,null,null,null,null,null,null,null,null,null,null,null,null,null,null,null,null,null,null,null,null,null,null,null,null,null,null,null,null,null,null,null,null,null,null,null,null,null,null,null,null,null,null,null,null,null,null,null,null,null,null,null,null,null,null,null,null,null,null,null,null,null,null,null,null,null,null,null,null,null,null,null,null,null,null,null,null,null,null,null,null,null,null,null,null,null,null,null,null,null,null,null,null,null,null,null,null,null,null,null,null,null,null,null,null,null,null,null,null,null,null,null,null,null,null,null,null,null,null,null,null,null,null,null,null,null,null,null,null,null,null,null,null,null,null,null,null,null,null,null,null,null,null,null,7,"Rhône-Alpes","Centre de Gestion de l'Ardèche"]
[null,null,null,null,null,null,null,null,null,null,null,null,null,null,null,null,null,null,null,null,null,null,null,null,null,null,null,null,null,null,null,null,null,null,null,null,null,null,null,null,null,null,null,null,null,null,null,null,null,null,null,null,null,null,null,null,null,null,null,null,null,null,null,null,null,null,null,null,null,null,null,null,null,null,null,null,null,null,null,null,null,null,null,null,null,null,null,null,null,null,null,null,null,null,null,null,null,null,null,null,null,null,null,null,null,null,null,null,null,null,null,null,null,null,null,null,null,null,null,null,null,null,null,null,null,null,null,null,null,null,null,null,null,null,null,null,null,null,null,null,null,null,null,null,null,null,null,null,null,null,null,null,null,null,null,null,null,null,null,null,null,26,"Rhône-Alpes","Centre de Gestion de la Drôme"]
[null,null,null,null,null,null,null,null,null,null,null,null,null,null,null,null,null,null,null,null,null,null,null,null,null,null,null,null,null,null,null,null,null,null,null,null,null,null,null,null,null,null,null,null,null,null,null,null,null,null,null,null,null,null,null,null,null,null,null,null,null,null,null,null,null,null,null,null,null,null,null,null,null,null,null,null,null,null,null,null,null,null,null,null,null,null,null,null,null,null,null,null,null,null,null,null,null,null,null,null,null,null,null,null,null,null,null,null,null,null,null,null,null,null,null,null,null,null,null,null,null,null,null,null,null,null,null,null,null,null,null,null,null,null,null,null,null,null,null,null,null,null,null,null,null,null,null,null,null,null,null,null,null,null,null,null,null,null,null,null,null,38,"Rhône-Alpes","Centre de Gestion de l'Isère"]
[null,null,null,null,null,null,null,null,null,null,null,null,null,null,null,null,null,null,null,null,null,null,null,null,null,null,null,null,null,null,null,null,null,null,null,null,null,null,null,null,null,null,null,null,null,null,null,null,null,null,null,null,null,null,null,null,null,null,null,null,null,null,null,null,null,null,null,null,null,null,null,null,null,null,null,null,null,null,null,null,null,null,null,null,null,null,null,null,null,null,null,null,null,null,null,null,null,null,null,null,null,null,null,null,null,null,null,null,null,null,null,null,null,null,null,null,null,null,null,null,null,null,null,null,null,null,null,null,null,null,null,null,null,null,null,null,null,null,null,null,null,null,null,null,null,null,null,null,null,null,null,null,null,null,null,null,null,null,null,null,null,42,"Rhône-Alpes","Centre de Gestion de la Loire"]
[null,null,null,null,null,null,null,null,null,null,null,null,null,null,null,null,null,{"$f":"IF($E$26=0,\" \",\"Fonctionnaire\")","v":" "},{"$f":"IF($E$27=0,\" \",\"Contractuel permanent\")","v":" "},{"$f":"IF($E$28=0,\" \",\"Contractuel non permanent\")","v":" "},"Ensemble",null,null,null,null,null,null,null,null,null,null,null,null,null,null,null,null,null,null,null,null,null,null,null,null,null,null,null,null,null,null,null,null,null,null,null,null,null,null,null,null,null,null,null,null,null,null,null,null,null,null,null,null,null,null,null,null,null,null,null,null,null,null,null,null,null,null,null,null,null,null,null,null,null,null,null,null,null,null,null,null,null,null,null,null,null,null,null,null,null,null,null,null,null,null,null,null,null,null,null,null,null,null,null,null,null,null,null,null,null,null,null,null,null,null,null,null,null,null,null,null,null,null,null,null,null,null,null,null,null,null,null,null,null,null,null,null,null,null,null,null,69,"Rhône-Alpes","Centre de Gestion du Rhône"]
[null,null,null,null,null,null,null,null,null,null,null,null,null,null,null,null,"Jours moyens d'absence Global (toutes absences y compris maternité, paternité et autre**)",{"$f":"IF($E$26=0,\" \",SUM('[1]IND 2.1.1'!$F$13:$G$21)/($E$26))","v":" "},{"$f":"IF($E$27=0,\" \",SUM('[1]IND 2.1.2'!$F$13:$G$21)/($E$27))","v":" "},{"$f":"IF($E$29=0,\" \",SUM('[1]IND 2.1.3'!$F$13:$G$21)/($E$29))","v":" "},{"$f":"IF($E$29+$E$27+$E$26=0,\" \",SUM('[1]IND 2.1.1'!$F$13:$G$21,'[1]IND 2.1.2'!$F$13:$G$21,'[1]IND 2.1.3'!$F$13:$G$21)/(($E$27+$E$29+$E$26)))","v":" "},null,null,null,null,null,null,null,null,null,null,null,null,null,null,null,null,null,null,null,null,null,null,null,null,null,null,null,null,null,null,null,null,null,null,null,null,null,null,null,null,null,null,null,null,null,null,null,null,null,null,null,null,null,null,null,null,null,null,null,null,null,null,null,null,null,null,null,null,null,null,null,null,null,null,null,null,null,null,null,null,null,null,null,null,null,null,null,null,null,null,null,null,null,null,null,null,null,null,null,null,null,null,null,null,null,null,null,null,null,null,null,null,null,null,null,null,null,null,null,null,null,null,null,null,null,null,null,null,null,null,null,null,null,null,null,null,null,null,null,null,73,"Rhône-Alpes","Centre de Gestion de la Savoie"]
[null,null,null,null,null,null,null,null,null,null,null,null,null,null,null,null,"Jours moyens d'absence pour motif médical* (toutes absences pour motif médical)",{"$f":"IF($E$26=0,\" \",SUM('[1]IND 2.1.1'!$F$13:$G$18)/($E$26))","v":" "},{"$f":"IF($E$27=0,\" \",SUM('[1]IND 2.1.2'!$F$13:$G$18)/($E$27))","v":" "},{"$f":"IF($E$29=0,\" \",SUM('[1]IND 2.1.3'!$F$13:$G$18)/($E$29))","v":" "},{"$f":"IF($E$29+$E$27+$E$26=0,\" \",SUM('[1]IND 2.1.1'!$F$13:$G$18,'[1]IND 2.1.2'!$F$13:$G$18,'[1]IND 2.1.3'!$F$13:$G$18)/(($E$27+$E$29+$E$26)))","v":" "},null,null,null,null,null,null,null,null,null,null,null,null,null,null,null,null,null,null,null,null,null,null,null,null,null,null,null,null,null,null,null,null,null,null,null,null,null,null,null,null,null,null,null,null,null,null,null,null,null,null,null,null,null,null,null,null,null,null,null,null,null,null,null,null,null,null,null,null,null,null,null,null,null,null,null,null,null,null,null,null,null,null,null,null,null,null,null,null,null,null,null,null,null,null,null,null,null,null,null,null,null,null,null,null,null,null,null,null,null,null,null,null,null,null,null,null,null,null,null,null,null,null,null,null,null,null,null,null,null,null,null,null,null,null,null,null,null,null,null,null,74,"Rhône-Alpes","Centre de Gestion de la Haute-Savoie"]
[null,null,null,null,null,null,null,null,null,null,null,null,null,null,null,null,"Jours moyens d'absence « compressibles »\n(maladies ordinaires et accidents de travail)",{"$f":"IF($E$26=0,\" \",SUM('[1]IND 2.1.1'!$F$13:$G$15)/($E$26))","v":" "},{"$f":"IF($E$27=0,\" \",SUM('[1]IND 2.1.2'!$F$13:$G$15)/($E$27))","v":" "},{"$f":"IF($E$29=0,\" \",SUM('[1]IND 2.1.3'!$F$13:$G$15)/($E$29))","v":" "},{"$f":"IF($E$29+$E$27+$E$26=0,\" \",SUM('[1]IND 2.1.1'!$F$13:$G$15,'[1]IND 2.1.2'!$F$13:$G$15,'[1]IND 2.1.3'!$F$13:$G$15)/(($E$27+$E$29+$E$26)))","v":" "}]

{"sheet":"Calculs","index":1,"n_rows":117,"n_cols":98,"rows_kept":117,"cut":false,"hidden":false,"merged":[[68,65,68,66],[69,65,69,66],[70,65,70,66],[49,65,49,66],[51,65,51,66],[55,65,55,66],[63,65,63,66],[65,65,65,66],[66,65,66,66],[67,65,67,66],[61,65,61,66],[62,65,62,66],[64,65,64,66],[57,65,57,66],[58,65,58,66],[59,65,59,66],[14,65,14,66],[20,65,20,66],[29,65,29,66],[32,65,32,66],[38,65,38,66],[31,65,31,66],[33,65,33,66],[34,65,34,66],[27,65,27,66],[28,65,28,66],[30,65,30,66],[22,65,22,66],[23,65,23,66],[24,65,24,66],[25,65,25,66],[26,65,26,66],[6,65,10,66],[6,67,6,74],[6,75,6,78],[7,67,7,70],[7,75,8,76],[7,77,8,78],[8,67,8,68],[8,69,8,70],[9,67,10,67],[9,68,10,68],[9,69,10,69],[9,70,10,70],[9,75,10,75],[9,76,10,76],[7,71,7,74],[8,71,8,72],[45,65,45,66],[46,65,46,66],[47,65,47,66],[48,65,48,66],[60,65,60,66],[53,65,53,66],[54,65,54,66],[56,65,56,66],[50,65,50,66],[52,65,52,66],[35,65,35,66],[36,65,36,66],[37,65,37,66],[39,65,39,66],[44,65,44,66],[8,73,8,74],[9,71,10,71],[9,72,10,72],[9,73,10,73],[9,74,10,74],[5,8,5,10],[5,11,5,13],[47,1,47,8],[11,65,11,66],[12,65,12,66],[13,65,13,66],[15,65,15,66],[16,65,16,66],[17,65,17,66],[18,65,18,66],[19,65,19,66],[21,65,21,66],[40,65,40,66],[41,65,41,66],[42,65,42,66],[43,65,43,66],[99,0,99,5],[63,5,63,7],[74,0,74,4],[76,0,83,0],[84,0,95,0]]}
[]
[]
[]
["Filières",null,null,null,null,null,null,"Genre",null,null,null,null,null,null,null,null,null,null,null,null,null,null,null,null,null,null,null,null,null,null,null,null,null,null,null,null,null,null,null,null,null,null,null,null,null,null,null,null,null,null,null,null,null,null,null,null,null,"Numéro","Région","Colonne2"]
[null,null,null,null,null,null,null,null,null,null,null,null,null,null,null,null,null,null,null,null,null,null,null,null,null,null,null,null,null,null,null,null,null,null,null,null,null,null,null,null,null,null,null,null,null,null,null,null,null,null,null,null,null,null,null,null,null,67,"Alsace","Centre de Gestion du Bas-Rhin"]
["filière emplois permanents","nb","part en %",null,null,null,null,"Sexe selon statuts","Nombre",null,null,"Part",null,null,null,null,null,null,null,null,null,null,null,null,null,null,null,null,null,null,null,null,null,null,null,null,null,null,null,null,null,null,null,null,null,null,null,null,null,null,null,null,null,null,null,null,null,68,"Alsace","Centre de Gestion du Haut-Rhin"]
["Administrative",{"$f":"'[1]IND 1.1.1'!$I$49+'[1]IND 1.2.1'!$K$20","v":0},{"$f":"B7/$B$18","v":{"$error":"#DIV/0!"}},null,null,null,null,null,"Hommes","Femmes","Total","Hommes","Femmes","Total",null,null,null,null,null,null,null,null,null,null,null,null,null,null,"Cadre d'emploi F","Fonctionnaires","Non titulaires","tt agent","Rang","Rang 2","%","Cadre","Catégorie","tt agent","Fonctionnaires","Non titulaires",null,null,"Cadres d'emploi","Heures supp","Nombre d'agent","Heures supp/agent","Rang","Heures supp/agent","Cadres d'emploi",null,null,null,null,null,null,null,null,24,"Aquitaine","Centre de Gestion de la Dordogne",null,null,null,null,null,"Cadres d'emplois - Filière",null,"Nombre d'accidents du travail* reconnus dans l'année 2018",null,null,null,null,null,null,null,null,null,null,null,null,null,null,null,null,null,null,null,null,null,null,null,null,null,null,0,1,0,{"$f":"CQ7/$CQ$66","v":0}]
["Technique",{"$f":"'[1]IND 1.1.1'!$I$90+'[1]IND 1.2.1'!$K$28","v":0},{"$f":"B8/$B$18","v":{"$error":"#DIV/0!"}},null,null,null,null,"Titulaires",{"$f":"'[1]IND 1.1.1'!$G$382","v":0},{"$f":"'[1]IND 1.1.1'!$H$382","v":0},{"$f":"I8+J8","v":0},{"$f":"IF(K8=0,\"-\",I8/K8)","v":"-"},{"$f":"IF(K8=0,\"-\",J8/K8)","v":"-"},{"$f":"K8/K8","v":{"$error":"#DIV/0!"}},null,null,null,null,null,null,null,null,null,null,null,null,null,null,"Administrateurs",{"$f":"'[1]IND 1.1.1'!$I$23","v":0},{"$f":"'[1]IND 1.2.1'!$K$15","v":0},{"$f":"AD8+AE8","v":0},{"$f":"RANK(AF8,$AF$7:$AF$66,0)+COUNTIF(AF$7:AF8,AF8)-1","v":1},{"$f":"AG8","v":1},{"$f":"IFERROR((AF8/SUM($AL$8:$AL$67)),0)","v":0},{"$f":"AC8","v":"Administrateurs"},"A",{"$f":"AF8","v":0},{"$f":"AD8","v":0},{"$f":"AE8","v":0},null,null,"Administrateurs",{"$f":"'[1]IND 3.4.3'!$B$18+'[1]IND 3.4.3'!$C$18+'[1]IND 3.4.3'!$D$18+'[1]IND 3.4.3'!$E$18","v":0},{"$f":"AF8","v":0},{"$f":"IF(AS8=0,\"0\",AR8/AS8)","v":"0"},{"$f":"RANK(AT8,$AT$8:$AT$66,0)+COUNTIF(AT$8:AT8,AT8)-1","v":1},{"$f":"IF(AS8=0,\"0\",AR8/AS8)","v":"0"},"Administrateurs",null,null,null,null,null,null,null,null,33,"Aquitaine","Centre de Gestion de la Gironde",null,null,null,null,null,null,null,"Accidents de SERVICE",null,null,null,"Accidents de TRAJET",null,null,null,null,null,null,null,null,null,null,null,null,null,null,null,null,null,null,null,null,null,null,3,134,9.6774193548387094E-2,{"$f":"CQ8/$CQ$66","v":9.6774193548387094E-2}]
["Culturelle",{"$f":"'[1]IND 1.1.1'!$I$145+'[1]IND 1.2.1'!$K$39","v":0},{"$error":"#DIV/0!"},null,null,null,null,"Contractuels sur emploi permanent",{"$f":"'[1]IND 1.2.1'!$Q$96+'[1]IND 1.2.1'!$R$96","v":0},{"$f":"'[1]IND 1.2.1'!$S$96+'[1]IND 1.2.1'!$T$96","v":0},{"$f":"I9+J9","v":0},{"$f":"IF(K9=0,\"-\",I9/K9)","v":"-"},{"$f":"IF(K9=0,\"-\",J9/K9)","v":"-"},{"$f":"K9/K9","v":{"$error":"#DIV/0!"}},null,null,null,null,null,null,null,null,null,null,null,null,null,null,"Attachés",{"$f":"'[1]IND 1.1.1'!$I$30","v":0},{"$f":"'[1]IND 1.2.1'!$K$16","v":0},{"$f":"AD9+AE9","v":0},{"$f":"RANK(AF9,$AF$7:$AF$66,0)+COUNTIF(AF$7:AF9,AF9)-1","v":2},{"$f":"AG9","v":2},{"$f":"IFERROR((AF9/SUM($AL$8:$AL$67)),0)","v":0},{"$f":"AC9","v":"Attachés"},"A",{"$f":"AF9","v":0},{"$f":"AD9","v":0},0,null,null,"Attachés",{"$f":"'[1]IND 3.4.3'!$B$19+'[1]IND 3.4.3'!$C$19+'[1]IND 3.4.3'!$D$19+'[1]IND 3.4.3'!$E$19","v":0},{"$f":"AF9","v":0},{"$f":"IF(AS9=0,\"0\",AR9/AS9)","v":"0"},{"$f":"RANK(AT9,$AT$8:$AT$66,0)+COUNTIF(AT$8:AT9,AT9)-1","v":2},{"$f":"IF(AS9=0,\"0\",AR9/AS9)","v":"0"},"Attachés",null,null,null,null,null,null,null,null,40,"Aquitaine","Centre de Gestion des Landes",null,null,null,null,null,null,null,"Nombre d'accidents de SERVICE",null,"dont nombre d'accidents sans arrêt",null,"Nombre d'accidents de TRAJET",null,"dont nombre d'accidents sans arrêt",null,null,null,null,null,null,null,null,null,null,null,null,null,null,null,null,null,null,null,null,0,0,0,0]
["Sportive",{"$f":"'[1]IND 1.1.1'!$I$166+'[1]IND 1.2.1'!$K$44","v":0},{"$error":"#DIV/0!"},null,null,null,null,"Contractuels sur emploi non permanent",{"$f":"'[1]IND 1.3.1'!$H$38","v":0},{"$f":"'[1]IND 1.3.1'!$I$38","v":0},{"$f":"I10+J10","v":0},{"$f":"IF(K10=0,\"-\",I10/K10)","v":"-"},{"$f":"IF(K10=0,\"-\",J10/K10)","v":"-"},{"$f":"K10/K10","v":{"$error":"#DIV/0!"}},null,null,null,null,null,null,null,null,null,null,null,null,null,null,"Secrétaires de mairie",{"$f":"'[1]IND 1.1.1'!$I$33","v":0},{"$f":"'[1]IND 1.2.1'!$K$17","v":0},0,{"$f":"RANK(AF10,$AF$7:$AF$66,0)+COUNTIF(AF$7:AF10,AF10)-1","v":3},3,0,"Secrétaires de mairie","A",0,0,0,null,null,"Secrétaires de mairie",{"$f":"'[1]IND 3.4.3'!$B$20+'[1]IND 3.4.3'!$C$20+'[1]IND 3.4.3'!$D$20+'[1]IND 3.4.3'!$E$20","v":0},0,"0",{"$f":"RANK(AT10,$AT$8:$AT$66,0)+COUNTIF(AT$8:AT10,AT10)-1","v":3},"0","Secrétaires de mairie",null,null,null,null,null,null,null,null,47,"Aquitaine","Centre de Gestion du Lot-et-Garonne",null,null,null,null,null,null,null,"Hommes","Femmes","Hommes","Femmes","Hommes","Femmes","Hommes","Femmes","Somme des at","nombre d'agents",null,null,null,null,null,null,null,null,null,null,null,null,null,null,null,null,null,3,81,9.6774193548387094E-2,9.6774193548387094E-2]
["Sociale",{"$f":"'[1]IND 1.1.1'!$I$201+'[1]IND 1.2.1'!$K$52","v":0},{"$error":"#DIV/0!"},null,null,null,null,"Total Agent",{"$f":"SUM(I8:I10)","v":0},{"$f":"SUM(J8:J10)","v":0},{"$f":"I11+J11","v":0},{"$f":"IF(K11=0,\"-\",I11/K11)","v":"-"},{"$f":"IF(K11=0,\"-\",J11/K11)","v":"-"},{"$f":"K11/K11","v":{"$error":"#DIV/0!"}},null,null,null,null,null,null,null,null,null,null,null,null,null,null,"Rédacteurs",{"$f":"'[1]IND 1.1.1'!$I$40","v":0},{"$f":"'[1]IND 1.2.1'!$K$18","v":0},0,{"$f":"RANK(AF11,$AF$7:$AF$66,0)+COUNTIF(AF$7:AF11,AF11)-1","v":4},4,0,"Rédacteurs","B",0,0,0,null,null,"Rédacteurs",{"$f":"'[1]IND 3.4.3'!$B$21+'[1]IND 3.4.3'!$C$21+'[1]IND 3.4.3'!$D$21+'[1]IND 3.4.3'!$E$21","v":0},0,"0",{"$f":"RANK(AT11,$AT$8:$AT$66,0)+COUNTIF(AT$8:AT11,AT11)-1","v":4},"0","Rédacteurs",null,null,null,null,null,null,null,null,64,"Aquitaine","Centre de Gestion des Pyrénées-Atlantiques",null,null,null,null,null,null,null,null,null,null,null,null,null,null,null,null,null,"Part At/At","Rang","Part At/At","Cadres d'emploi",null,null,null,null,null,null,null,null,null,null,null,null,null,2,88,6.4516129032258063E-2,6.4516129032258063E-2]
["Médico-sociale",{"$f":"'[1]IND 1.1.1'!$I$267+'[1]IND 1.2.1'!$K$65","v":0},{"$error":"#DIV/0!"},null,null,null,null,null,null,null,null,null,null,null,null,null,null,null,null,null,null,null,null,null,null,null,null,null,"Adjoints administratifs",{"$f":"'[1]IND 1.1.1'!$I$47","v":0},{"$f":"'[1]IND 1.2.1'!$K$19","v":0},0,{"$f":"RANK(AF12,$AF$7:$AF$66,0)+COUNTIF(AF$7:AF12,AF12)-1","v":5},5,0,"Adjoints administratifs","C",0,0,0,null,null,"Adjoints administratifs",{"$f":"'[1]IND 3.4.3'!$B$22+'[1]IND 3.4.3'!$C$22+'[1]IND 3.4.3'!$D$22+'[1]IND 3.4.3'!$E$22","v":0},0,"0",{"$f":"RANK(AT12,$AT$8:$AT$66,0)+COUNTIF(AT$8:AT12,AT12)-1","v":5},"0","Adjoints administratifs",null,null,null,null,null,null,null,null,3,"Auvergne","Centre de Gestion de l'Allier",null,null,null,null,null,"Administrateurs",null,{"$f":"'[1]IND 4.2.1'!C21","v":0},{"$f":"'[1]IND 4.2.1'!D21","v":0},{"$f":"'[1]IND 4.2.1'!E21","v":0},{"$f":"'[1]IND 4.2.1'!F21","v":0},{"$f":"'[1]IND 4.2.1'!G21","v":0},{"$f":"'[1]IND 4.2.1'!H21","v":0},{"$f":"'[1]IND 4.2.1'!I21","v":0},{"$f":"'[1]IND 4.2.1'!J21","v":0},{"$f":"BP12+BQ12+BT12+BU12","v":0},{"$f":"AF8","v":0},{"$f":"IF($BX$71=0,\"0\",BX12/$BX$71)","v":"0"},{"$f":"RANK(BZ12,$BZ$11:$BZ$70,0)+COUNTIF(BZ$11:BZ12,BZ12)-1","v":{"$error":"#N/A"}},{"$f":"IF($BX$71=0,\"0\",BX12/$BX$71)","v":"0"},"Administrateurs",null,null,null,null,null,null,null,null,null,null,null,null,null,0,7,0,0]
["Médico-technique",{"$f":"'[1]IND 1.1.1'!$I$281+'[1]IND 1.2.1'!$K$69","v":0},{"$error":"#DIV/0!"},null,null,null,null,null,null,null,null,null,null,null,null,null,null,null,null,null,null,null,null,null,null,null,null,null,"Ingénieurs en chef",{"$f":"'[1]IND 1.1.1'!$I$56","v":0},{"$f":"'[1]IND 1.2.1'!$K$22","v":0},0,{"$f":"RANK(AF13,$AF$7:$AF$66,0)+COUNTIF(AF$7:AF13,AF13)-1","v":6},6,0,"Ingénieurs en chef","A",0,0,0,null,null,"Ingénieurs en chef",{"$f":"'[1]IND 3.4.3'!$B$24+'[1]IND 3.4.3'!$C$24+'[1]IND 3.4.3'!$D$24+'[1]IND 3.4.3'!$E$24","v":0},0,"0",{"$f":"RANK(AT13,$AT$8:$AT$66,0)+COUNTIF(AT$8:AT13,AT13)-1","v":6},"0","Ingénieurs en chef",null,null,null,null,null,null,null,null,15,"Auvergne","Centre de Gestion du Cantal",null,null,null,null,null,"Attachés",null,{"$f":"'[1]IND 4.2.1'!C22","v":0},{"$f":"'[1]IND 4.2.1'!D22","v":0},{"$f":"'[1]IND 4.2.1'!E22","v":0},{"$f":"'[1]IND 4.2.1'!F22","v":0},{"$f":"'[1]IND 4.2.1'!G22","v":0},{"$f":"'[1]IND 4.2.1'!H22","v":0},{"$f":"'[1]IND 4.2.1'!I22","v":0},{"$f":"'[1]IND 4.2.1'!J22","v":0},{"$f":"BP13+BQ13+BT13+BU13","v":0},{"$f":"AF9","v":0},{"$f":"IF($BX$71=0,\"0\",BX13/$BX$71)","v":"0"},{"$f":"RANK(BZ13,$BZ$11:$BZ$70,0)+COUNTIF(BZ$11:BZ13,BZ13)-1","v":{"$error":"#N/A"}},{"$f":"IF($BX$71=0,\"0\",BX13/$BX$71)","v":"0"},"Attachés",null,null,null,null,null,null,null,null,null,null,null,null,null,2,63,6.4516129032258063E-2,6.4516129032258063E-2]
["Police municipale",{"$f":"'[1]IND 1.1.1'!$I$306+'[1]IND 1.2.1'!$K$75","v":0},{"$error":"#DIV/0!"},null,null,null,null,null,null,null,null,null,null,null,null,null,null,null,null,null,null,null,null,null,null,null,null,null,"Ingénieurs",{"$f":"'[1]IND 1.1.1'!$I$62","v":0},{"$f":"'[1]IND 1.2.1'!$K$23","v":0},0,{"$f":"RANK(AF14,$AF$7:$AF$66,0)+COUNTIF(AF$7:AF14,AF14)-1","v":7},7,0,"Ingénieurs","A",0,0,0,null,null,"Ingénieurs",{"$f":"'[1]IND 3.4.3'!$B$25+'[1]IND 3.4.3'!$C$25+'[1]IND 3.4.3'!$D$25+'[1]IND 3.4.3'!$E$25","v":0},0,"0",{"$f":"RANK(AT14,$AT$8:$AT$66,0)+COUNTIF(AT$8:AT14,AT14)-1","v":7},"0","Ingénieurs",null,null,null,null,null,null,null,null,43,"Auvergne","Centre de Gestion de la Haute-Loire",null,null,null,null,null,"Secrétaires de mairie",null,{"$f":"'[1]IND 4.2.1'!C23","v":0},{"$f":"'[1]IND 4.2.1'!D23","v":0},{"$f":"'[1]IND 4.2.1'!E23","v":0},{"$f":"'[1]IND 4.2.1'!F23","v":0},{"$f":"'[1]IND 4.2.1'!G23","v":0},{"$f":"'[1]IND 4.2.1'!H23","v":0},{"$f":"'[1]IND 4.2.1'!I23","v":0},{"$f":"'[1]IND 4.2.1'!J23","v":0},0,0,"0",{"$f":"RANK(BZ14,$BZ$11:$BZ$70,0)+COUNTIF(BZ$11:BZ14,BZ14)-1","v":{"$error":"#N/A"}},"0","Secrétaires de mairie",null,null,null,null,null,null,null,null,null,null,null,null,null,2,71,6.4516129032258063E-2,6.4516129032258063E-2]
["Incendie secours",{"$f":"'[1]IND 1.1.1'!$I$358+'[1]IND 1.2.1'!$K$85","v":0},{"$error":"#DIV/0!"},null,null,null,null,null,null,null,null,null,null,null,null,null,null,null,null,null,null,null,null,null,null,null,null,null,"Techniciens",{"$f":"'[1]IND 1.1.1'!$I$69","v":0},{"$f":"'[1]IND 1.2.1'!$K$24","v":0},0,{"$f":"RANK(AF15,$AF$7:$AF$66,0)+COUNTIF(AF$7:AF15,AF15)-1","v":8},8,0,"Techniciens","B",0,0,0,null,null,"Techniciens",{"$f":"'[1]IND 3.4.3'!$B$26+'[1]IND 3.4.3'!$C$26+'[1]IND 3.4.3'!$D$26+'[1]IND 3.4.3'!$E$26","v":0},0,"0",{"$f":"RANK(AT15,$AT$8:$AT$66,0)+COUNTIF(AT$8:AT15,AT15)-1","v":8},"0","Techniciens",null,null,null,null,null,null,null,null,63,"Auvergne","Centre de Gestion du Puy-de-Dôme",null,null,null,null,null,"Rédacteurs",null,{"$f":"'[1]IND 4.2.1'!C24","v":0},{"$f":"'[1]IND 4.2.1'!D24","v":0},{"$f":"'[1]IND 4.2.1'!E24","v":0},{"$f":"'[1]IND 4.2.1'!F24","v":0},{"$f":"'[1]IND 4.2.1'!G24","v":0},{"$f":"'[1]IND 4.2.1'!H24","v":0},{"$f":"'[1]IND 4.2.1'!I24","v":0},{"$f":"'[1]IND 4.2.1'!J24","v":0},0,0,"0",{"$f":"RANK(BZ15,$BZ$11:$BZ$70,0)+COUNTIF(BZ$11:BZ15,BZ15)-1","v":{"$error":"#N/A"}},"0","Rédacteurs",null,null,null,null,null,null,null,null,null,null,null,null,null,1,29,3.2258064516129031E-2,3.2258064516129031E-2]
["Animation",{"$f":"'[1]IND 1.1.1'!$I$375+'[1]IND 1.2.1'!$K$89","v":0},{"$error":"#DIV/0!"},null,null,null,null,null,null,null,null,null,null,null,null,null,null,null,null,null,null,null,null,null,null,null,null,null,"Agents de maîtrise",{"$f":"'[1]IND 1.1.1'!$I$74","v":0},{"$f":"'[1]IND 1.2.1'!$K$25","v":0},0,{"$f":"RANK(AF16,$AF$7:$AF$66,0)+COUNTIF(AF$7:AF16,AF16)-1","v":9},9,0,"Agents de maîtrise","C",0,0,0,null,null,"Agents de maîtrise",{"$f":"'[1]IND 3.4.3'!$B$27+'[1]IND 3.4.3'!$C$27+'[1]IND 3.4.3'!$D$27+'[1]IND 3.4.3'!$E$27","v":0},0,"0",{"$f":"RANK(AT16,$AT$8:$AT$66,0)+COUNTIF(AT$8:AT16,AT16)-1","v":9},"0","Agents de maîtrise",null,null,null,null,null,null,null,null,14,"Basse-Normandie","Centre de Gestion du Calvados",null,null,null,null,null,"Adjoints administratifs",null,{"$f":"'[1]IND 4.2.1'!C25","v":0},{"$f":"'[1]IND 4.2.1'!D25","v":0},{"$f":"'[1]IND 4.2.1'!E25","v":0},{"$f":"'[1]IND 4.2.1'!F25","v":0},{"$f":"'[1]IND 4.2.1'!G25","v":0},{"$f":"'[1]IND 4.2.1'!H25","v":0},{"$f":"'[1]IND 4.2.1'!I25","v":0},{"$f":"'[1]IND 4.2.1'!J25","v":0},0,0,"0",{"$f":"RANK(BZ16,$BZ$11:$BZ$70,0)+COUNTIF(BZ$11:BZ16,BZ16)-1","v":{"$error":"#N/A"}},"0","Adjoints administratifs",null,null,null,null,null,null,null,null,null,null,null,null,null,7,76,0.22580645161290322,0.22580645161290322]
["Agent et ouvrier territorial de Mayotte",{"$f":"'[1]IND 1.1.1'!$I$379+'[1]IND 1.1.1'!$I$380+'[1]IND 1.2.1'!$K$93+'[1]IND 1.2.1'!$K$94","v":0},{"$error":"#DIV/0!"},null,null,null,null,null,null,null,null,null,null,null,null,null,null,null,null,null,null,null,null,null,null,null,null,null,"Adjoints techniques",{"$f":"'[1]IND 1.1.1'!$I$81","v":0},{"$f":"'[1]IND 1.2.1'!$K$26","v":0},0,{"$f":"RANK(AF17,$AF$7:$AF$66,0)+COUNTIF(AF$7:AF17,AF17)-1","v":10},10,0,"Adjoints techniques","C",0,0,0,null,null,"Adjoints techniques",{"$f":"'[1]IND 3.4.3'!$B$28+'[1]IND 3.4.3'!$C$28+'[1]IND 3.4.3'!$D$28+'[1]IND 3.4.3'!$E$28","v":0},0,"0",{"$f":"RANK(AT17,$AT$8:$AT$66,0)+COUNTIF(AT$8:AT17,AT17)-1","v":10},"0","Adjoints techniques",null,null,null,null,null,null,null,null,61,"Basse-Normandie","Centre de Gestion de l'Orne",null,null,null,null,null,"Ingénieurs en chef",null,{"$f":"'[1]IND 4.2.1'!C28","v":0},{"$f":"'[1]IND 4.2.1'!D28","v":0},{"$f":"'[1]IND 4.2.1'!E28","v":0},{"$f":"'[1]IND 4.2.1'!F28","v":0},{"$f":"'[1]IND 4.2.1'!G28","v":0},{"$f":"'[1]IND 4.2.1'!H28","v":0},{"$f":"'[1]IND 4.2.1'!I28","v":0},{"$f":"'[1]IND 4.2.1'!J28","v":0},0,0,"0",{"$f":"RANK(BZ17,$BZ$11:$BZ$70,0)+COUNTIF(BZ$11:BZ17,BZ17)-1","v":{"$error":"#N/A"}},"0","Ingénieurs en chef",null,null,null,null,null,null,null,null,null,null,null,null,null,0,0,0,0]
["Total",{"$f":"SUM(B7:B17)","v":0},{"$error":"#DIV/0!"},null,null,null,null,null,null,null,null,null,null,null,null,null,null,null,null,null,null,null,null,null,null,null,null,null,"Adjoints techniques des établissements d'enseignement",{"$f":"'[1]IND 1.1.1'!$I$88","v":0},{"$f":"'[1]IND 1.2.1'!$K$27","v":0},0,{"$f":"RANK(AF18,$AF$7:$AF$66,0)+COUNTIF(AF$7:AF18,AF18)-1","v":11},11,0,"Adjoints techniques des établissements d'enseignement","C",0,0,0,null,null,"Adjoints techniques des établissements d'enseignement",{"$f":"'[1]IND 3.4.3'!$B$29+'[1]IND 3.4.3'!$C$29+'[1]IND 3.4.3'!$D$29+'[1]IND 3.4.3'!$E$29","v":0},0,"0",{"$f":"RANK(AT18,$AT$8:$AT$66,0)+COUNTIF(AT$8:AT18,AT18)-1","v":11},"0","Adjoints techniques des établissements d'enseignement",null,null,null,null,null,null,null,null,21,"Bourgogne","Centre de Gestion de la Côte d'Or",null,null,null,null,null,"Ingénieurs",null,{"$f":"'[1]IND 4.2.1'!C29","v":0},{"$f":"'[1]IND 4.2.1'!D29","v":0},{"$f":"'[1]IND 4.2.1'!E29","v":0},{"$f":"'[1]IND 4.2.1'!F29","v":0},{"$f":"'[1]IND 4.2.1'!G29","v":0},{"$f":"'[1]IND 4.2.1'!H29","v":0},{"$f":"'[1]IND 4.2.1'!I29","v":0},{"$f":"'[1]IND 4.2.1'!J29","v":0},0,0,"0",{"$f":"RANK(BZ18,$BZ$11:$BZ$70,0)+COUNTIF(BZ$11:BZ18,BZ18)-1","v":{"$error":"#N/A"}},"0","Ingénieurs",null,null,null,null,null,null,null,null,null,null,null,null,null,0,3,0,0]
[null,null,null,null,null,null,null,null,null,null,null,null,null,null,null,null,null,null,null,null,null,null,null,null,null,null,null,null,"Conservateurs du patrimoine",{"$f":"'[1]IND 1.1.1'!$I$96","v":0},{"$f":"'[1]IND 1.2.1'!$K$30","v":0},0,{"$f":"RANK(AF19,$AF$7:$AF$66,0)+COUNTIF(AF$7:AF19,AF19)-1","v":12},12,0,"Conservateurs du patrimoine","A",0,0,0,null,null,"Conservateurs du patrimoine",{"$f":"'[1]IND 3.4.3'!$B$31+'[1]IND 3.4.3'!$C$31+'[1]IND 3.4.3'!$D$31+'[1]IND 3.4.3'!$E$31","v":0},0,"0",{"$f":"RANK(AT19,$AT$8:$AT$66,0)+COUNTIF(AT$8:AT19,AT19)-1","v":12},"0","Conservateurs du patrimoine",null,null,null,null,null,null,null,null,58,"Bourgogne","Centre de Gestion de la Nièvre",null,null,null,null,null,"Techniciens ",null,{"$f":"'[1]IND 4.2.1'!C30","v":0},{"$f":"'[1]IND 4.2.1'!D30","v":0},{"$f":"'[1]IND 4.2.1'!E30","v":0},{"$f":"'[1]IND 4.2.1'!F30","v":0},{"$f":"'[1]IND 4.2.1'!G30","v":0},{"$f":"'[1]IND 4.2.1'!H30","v":0},{"$f":"'[1]IND 4.2.1'!I30","v":0},{"$f":"'[1]IND 4.2.1'!J30","v":0},0,0,"0",{"$f":"RANK(BZ19,$BZ$11:$BZ$70,0)+COUNTIF(BZ$11:BZ19,BZ19)-1","v":{"$error":"#N/A"}},"0","Techniciens ",null,null,null,null,null,null,null,null,null,null,null,null,null,0,1,0,0]
["Age",null,null,null,null,null,null,null,null,null,null,null,null,null,null,null,null,null,null,null,null,null,null,null,null,null,null,null,"Conservateurs des bibliothèques",{"$f":"'[1]IND 1.1.1'!$I$101","v":0},{"$f":"'[1]IND 1.2.1'!$K$31","v":0},0,{"$f":"RANK(AF20,$AF$7:$AF$66,0)+COUNTIF(AF$7:AF20,AF20)-1","v":13},13,0,"Conservateurs des bibliothèques","A",0,0,0,null,null,"Conservateurs des bibliothèques",{"$f":"'[1]IND 3.4.3'!$B$32+'[1]IND 3.4.3'!$C$32+'[1]IND 3.4.3'!$D$32+'[1]IND 3.4.3'!$E$32","v":0},0,"0",{"$f":"RANK(AT20,$AT$8:$AT$66,0)+COUNTIF(AT$8:AT20,AT20)-1","v":13},"0","Conservateurs des bibliothèques",null,null,null,null,null,null,null,null,71,"Bourgogne","Centre de Gestion de Saône-et-Loire",null,null,null,null,null,"Agents de maîtrise",null,{"$f":"'[1]IND 4.2.1'!C31","v":0},{"$f":"'[1]IND 4.2.1'!D31","v":0},{"$f":"'[1]IND 4.2.1'!E31","v":0},{"$f":"'[1]IND 4.2.1'!F31","v":0},{"$f":"'[1]IND 4.2.1'!G31","v":0},{"$f":"'[1]IND 4.2.1'!H31","v":0},{"$f":"'[1]IND 4.2.1'!I31","v":0},{"$f":"'[1]IND 4.2.1'!J31","v":0},0,0,"0",{"$f":"RANK(BZ20,$BZ$11:$BZ$70,0)+COUNTIF(BZ$11:BZ20,BZ20)-1","v":{"$error":"#N/A"}},"0","Agents de maîtrise",null,null,null,null,null,null,null,null,null,null,null,null,null,0,6,0,0]
[null,null,null,null,null,null,null,null,null,null,null,null,null,null,null,null,null,null,null,null,null,null,null,null,null,null,null,null,"Attachés de conservation du patrimoine",{"$f":"'[1]IND 1.1.1'!$I$106","v":0},{"$f":"'[1]IND 1.2.1'!$K$32","v":0},0,{"$f":"RANK(AF21,$AF$7:$AF$66,0)+COUNTIF(AF$7:AF21,AF21)-1","v":14},14,0,"Attachés de conservation du patrimoine","A",0,0,0,null,null,"Attachés de conservation du patrimoine",{"$f":"'[1]IND 3.4.3'!$B$33+'[1]IND 3.4.3'!$C$33+'[1]IND 3.4.3'!$D$33+'[1]IND 3.4.3'!$E$33","v":0},0,"0",{"$f":"RANK(AT21,$AT$8:$AT$66,0)+COUNTIF(AT$8:AT21,AT21)-1","v":14},"0","Attachés de conservation du patrimoine",null,null,null,null,null,null,null,null,89,"Bourgogne","Centre de Gestion de l'Yonne",null,null,null,null,null,"Adjoints techniques",null,{"$f":"'[1]IND 4.2.1'!C32","v":0},{"$f":"'[1]IND 4.2.1'!D32","v":0},{"$f":"'[1]IND 4.2.1'!E32","v":0},{"$f":"'[1]IND 4.2.1'!F32","v":0},{"$f":"'[1]IND 4.2.1'!G32","v":0},{"$f":"'[1]IND 4.2.1'!H32","v":0},{"$f":"'[1]IND 4.2.1'!I32","v":0},{"$f":"'[1]IND 4.2.1'!J32","v":0},0,0,"0",{"$f":"RANK(BZ21,$BZ$11:$BZ$70,0)+COUNTIF(BZ$11:BZ21,BZ21)-1","v":{"$error":"#N/A"}},"0","Adjoints techniques",null,null,null,null,null,null,null,null,null,null,null,null,null,0,20,0,0]
["Graph",null,null,null,null,null,"Age moyen",null,null,null,null,null,null,null,null,null,null,null,null,null,null,null,null,null,null,null,null,null,"Bibliothécaires",{"$f":"'[1]IND 1.1.1'!$I$111","v":0},{"$f":"'[1]IND 1.2.1'!$K$33","v":0},0,{"$f":"RANK(AF22,$AF$7:$AF$66,0)+COUNTIF(AF$7:AF22,AF22)-1","v":15},15,0,"Bibliothécaires","A",0,0,0,null,null,"Bibliothécaires",{"$f":"'[1]IND 3.4.3'!$B$34+'[1]IND 3.4.3'!$C$34+'[1]IND 3.4.3'!$D$34+'[1]IND 3.4.3'!$E$34","v":0},0,"0",{"$f":"RANK(AT22,$AT$8:$AT$66,0)+COUNTIF(AT$8:AT22,AT22)-1","v":15},"0","Bibliothécaires",null,null,null,null,null,null,null,null,22,"Bretagne","Centre de Gestion des Côtes d'Armor",null,null,null,null,null,"Adjoints techniques des établissements d'enseignement",null,{"$f":"'[1]IND 4.2.1'!C33","v":0},{"$f":"'[1]IND 4.2.1'!D33","v":0},{"$f":"'[1]IND 4.2.1'!E33","v":0},{"$f":"'[1]IND 4.2.1'!F33","v":0},{"$f":"'[1]IND 4.2.1'!G33","v":0},{"$f":"'[1]IND 4.2.1'!H33","v":0},{"$f":"'[1]IND 4.2.1'!I33","v":0},{"$f":"'[1]IND 4.2.1'!J33","v":0},0,0,"0",{"$f":"RANK(BZ22,$BZ$11:$BZ$70,0)+COUNTIF(BZ$11:BZ22,BZ22)-1","v":{"$error":"#N/A"}},"0","Adjoints techniques des établissements d'enseignement",null,null,null,null,null,null,null,null,null,null,null,null,null,0,0,0,0]
[",","Hommes ","Femmes ",null,null,null,null,"Ensemble",null,null,null,null,null,null,null,null,null,null,null,null,null,null,null,null,null,null,null,null,"Directeurs d'établissements d'enseignement artistique",{"$f":"'[1]IND 1.1.1'!$I$117","v":0},{"$f":"'[1]IND 1.2.1'!$K$34","v":0},0,{"$f":"RANK(AF23,$AF$7:$AF$66,0)+COUNTIF(AF$7:AF23,AF23)-1","v":16},16,0,"Directeurs d'établissements d'enseignement artistique","A",0,0,0,null,null,"Directeurs d'établissements d'enseignement artistique",{"$f":"'[1]IND 3.4.3'!$B$35+'[1]IND 3.4.3'!$C$35+'[1]IND 3.4.3'!$D$35+'[1]IND 3.4.3'!$E$35","v":0},0,"0",{"$f":"RANK(AT23,$AT$8:$AT$66,0)+COUNTIF(AT$8:AT23,AT23)-1","v":16},"0","Directeurs d'établissements d'enseignement artistique",null,null,null,null,null,null,null,null,29,"Bretagne","Centre de Gestion du Finistère",null,null,null,null,null,"Conservateurs du patrimoine",null,{"$f":"'[1]IND 4.2.1'!C36","v":0},{"$f":"'[1]IND 4.2.1'!D36","v":0},{"$f":"'[1]IND 4.2.1'!E36","v":0},{"$f":"'[1]IND 4.2.1'!F36","v":0},{"$f":"'[1]IND 4.2.1'!G36","v":0},{"$f":"'[1]IND 4.2.1'!H36","v":0},{"$f":"'[1]IND 4.2.1'!I36","v":0},{"$f":"'[1]IND 4.2.1'!J36","v":0},0,0,"0",{"$f":"RANK(BZ23,$BZ$11:$BZ$70,0)+COUNTIF(BZ$11:BZ23,BZ23)-1","v":{"$error":"#N/A"}},"0","Conservateurs du patrimoine",null,null,null,null,null,null,null,null,null,null,null,null,null,0,0,0,0]
["moins de 30 ans",{"$f":"SUM('[1]IND 1.7.1'!$C$9:$D$10)/('[1]IND 1.7.1'!$C$43+'[1]IND 1.7.1'!$D$43)","v":{"$error":"#DIV/0!"}},{"$f":"SUM('[1]IND 1.7.1'!$C$21:$D$22)/('[1]IND 1.7.1'!$C$43+'[1]IND 1.7.1'!$D$43)","v":{"$error":"#DIV/0!"}},null,null,null,"Tranche d'âge","Titulaires","Permanents","N-perma","Ensemble permanent",null,null,null,null,null,null,null,null,null,null,null,null,null,null,null,null,null,"Professeurs d'enseignement artistique",{"$f":"'[1]IND 1.1.1'!$I$122","v":0},{"$f":"'[1]IND 1.2.1'!$K$35","v":0},0,{"$f":"RANK(AF24,$AF$7:$AF$66,0)+COUNTIF(AF$7:AF24,AF24)-1","v":17},17,0,"Professeurs d'enseignement artistique","A",0,0,0,null,null,"Professeurs d'enseignement artistique",{"$f":"SUM('[1]IND 3.4.3'!B36:E36)","v":0},0,"0",{"$f":"RANK(AT24,$AT$8:$AT$66,0)+COUNTIF(AT$8:AT24,AT24)-1","v":17},"0","Professeurs d'enseignement artistique",null,null,null,null,null,null,null,null,35,"Bretagne","Centre de Gestion d'Ille-et-Vilaine",null,null,null,null,null,"Conservateurs des bibliothèques",null,{"$f":"'[1]IND 4.2.1'!C37","v":0},{"$f":"'[1]IND 4.2.1'!D37","v":0},{"$f":"'[1]IND 4.2.1'!E37","v":0},{"$f":"'[1]IND 4.2.1'!F37","v":0},{"$f":"'[1]IND 4.2.1'!G37","v":0},{"$f":"'[1]IND 4.2.1'!H37","v":0},{"$f":"'[1]IND 4.2.1'!I37","v":0},{"$f":"'[1]IND 4.2.1'!J37","v":0},0,0,"0",{"$f":"RANK(BZ24,$BZ$11:$BZ$70,0)+COUNTIF(BZ$11:BZ24,BZ24)-1","v":{"$error":"#N/A"}},"0","Conservateurs des bibliothèques",null,null,null,null,null,null,null,null,null,null,null,null,null,3,57,9.6774193548387094E-2,9.6774193548387094E-2]
["Entre 30 et 50 ans",{"$f":"SUM('[1]IND 1.7.1'!$C$11:$D$14)/('[1]IND 1.7.1'!$C$43+'[1]IND 1.7.1'!$D$43)","v":{"$error":"#DIV/0!"}},{"$f":"SUM('[1]IND 1.7.1'!$C$23:$D$26)/('[1]IND 1.7.1'!$C$43+'[1]IND 1.7.1'!$D$43)","v":{"$error":"#DIV/0!"}},null,null,null,"moins de 25 ans",{"$f":"22.5*('[1]IND 1.7.1'!$C$9+'[1]IND 1.7.1'!$C$21)","v":0},{"$f":"22.5*('[1]IND 1.7.1'!$D$9+'[1]IND 1.7.1'!$D$21)","v":0},{"$f":"22.5*('[1]IND 1.7.1'!$E$9+'[1]IND 1.7.1'!$E$21)","v":0},{"$f":"SUM(H25+I25)","v":0},null,null,null,null,null,null,null,null,null,null,null,null,null,null,null,null,null,"Assistants de conservation du patrimoine et des bibliothèque",{"$f":"'[1]IND 1.1.1'!$I$129","v":0},{"$f":"'[1]IND 1.2.1'!$K$36","v":0},0,{"$f":"RANK(AF25,$AF$7:$AF$66,0)+COUNTIF(AF$7:AF25,AF25)-1","v":18},18,0,"Assistants de conservation du patrimoine et des bibliothèque","B",0,0,0,null,null,"Assistants de conservation du patrimoine et des bibliothèque",{"$f":"SUM('[1]IND 3.4.3'!B37:E37)","v":0},0,"0",{"$f":"RANK(AT25,$AT$8:$AT$66,0)+COUNTIF(AT$8:AT25,AT25)-1","v":18},"0","Assistants de conservation du patrimoine et des bibliothèque",null,null,null,null,null,null,null,null,56,"Bretagne","Centre de Gestion du Morbihan",null,null,null,null,null,"Attachés de conservation du patrimoine",null,{"$f":"'[1]IND 4.2.1'!C38","v":0},{"$f":"'[1]IND 4.2.1'!D38","v":0},{"$f":"'[1]IND 4.2.1'!E38","v":0},{"$f":"'[1]IND 4.2.1'!F38","v":0},{"$f":"'[1]IND 4.2.1'!G38","v":0},{"$f":"'[1]IND 4.2.1'!H38","v":0},{"$f":"'[1]IND 4.2.1'!I38","v":0},{"$f":"'[1]IND 4.2.1'!J38","v":0},0,0,"0",{"$f":"RANK(BZ25,$BZ$11:$BZ$70,0)+COUNTIF(BZ$11:BZ25,BZ25)-1","v":{"$error":"#N/A"}},"0","Attachés de conservation du patrimoine",null,null,null,null,null,null,null,null,null,null,null,null,null,0,0,0,0]
["Plus de 50 ans",{"$f":"SUM('[1]IND 1.7.1'!$C$15:$D$18)/('[1]IND 1.7.1'!$C$43+'[1]IND 1.7.1'!$D$43)","v":{"$error":"#DIV/0!"}},{"$f":"SUM('[1]IND 1.7.1'!$C$27:$D$30)/('[1]IND 1.7.1'!$C$43+'[1]IND 1.7.1'!$D$43)","v":{"$error":"#DIV/0!"}},null,null,null,"25 - 29 ans",{"$f":"27.5*('[1]IND 1.7.1'!$C$10+'[1]IND 1.7.1'!$C$22)","v":0},{"$f":"27.5*('[1]IND 1.7.1'!$D$10+'[1]IND 1.7.1'!$D$22)","v":0},{"$f":"27.5*('[1]IND 1.7.1'!$E$10+'[1]IND 1.7.1'!$E$22)","v":0},{"$f":"SUM(H26+I26)","v":0},null,null,null,null,null,null,null,null,null,null,null,null,null,null,null,null,null,"Assistants d'enseignement artistique",{"$f":"'[1]IND 1.1.1'!$I$136","v":0},{"$f":"'[1]IND 1.2.1'!$K$37","v":0},0,{"$f":"RANK(AF26,$AF$7:$AF$66,0)+COUNTIF(AF$7:AF26,AF26)-1","v":19},19,0,"Assistants d'enseignement artistique","B",0,0,0,null,null,"Assistants d'enseignement artistique",{"$f":"SUM('[1]IND 3.4.3'!B38:E38)","v":0},0,"0",{"$f":"RANK(AT26,$AT$8:$AT$66,0)+COUNTIF(AT$8:AT26,AT26)-1","v":19},"0","Assistants d'enseignement artistique",null,null,null,null,null,null,null,null,18,"Centre","Centre de Gestion du Cher",null,null,null,null,null,"Bibliothécaires",null,{"$f":"'[1]IND 4.2.1'!C39","v":0},{"$f":"'[1]IND 4.2.1'!D39","v":0},{"$f":"'[1]IND 4.2.1'!E39","v":0},{"$f":"'[1]IND 4.2.1'!F39","v":0},{"$f":"'[1]IND 4.2.1'!G39","v":0},{"$f":"'[1]IND 4.2.1'!H39","v":0},{"$f":"'[1]IND 4.2.1'!I39","v":0},{"$f":"'[1]IND 4.2.1'!J39","v":0},0,0,"0",{"$f":"RANK(BZ26,$BZ$11:$BZ$70,0)+COUNTIF(BZ$11:BZ26,BZ26)-1","v":{"$error":"#N/A"}},"0","Bibliothécaires",null,null,null,null,null,null,null,null,null,null,null,null,null,5,47,0.16129032258064516,0.16129032258064516]
[null,null,null,null,null,null,"30 - 34 ans",{"$f":"32.5*('[1]IND 1.7.1'!$C$11+'[1]IND 1.7.1'!$C$23)","v":0},{"$f":"32.5*('[1]IND 1.7.1'!$D$11+'[1]IND 1.7.1'!$D$23)","v":0},{"$f":"32.5*('[1]IND 1.7.1'!$E$11+'[1]IND 1.7.1'!$E$23)","v":0},0,null,null,null,null,null,null,null,null,null,null,null,null,null,null,null,null,null,"Adjoints territoriaux du patrimoine",{"$f":"'[1]IND 1.1.1'!$I$143","v":0},{"$f":"'[1]IND 1.2.1'!$K$38","v":0},0,{"$f":"RANK(AF27,$AF$7:$AF$66,0)+COUNTIF(AF$7:AF27,AF27)-1","v":20},20,0,"Adjoints territoriaux du patrimoine","C",0,0,0,null,null,"Adjoints territoriaux du patrimoine",{"$f":"SUM('[1]IND 3.4.3'!B39:E39)","v":0},0,"0",{"$f":"RANK(AT27,$AT$8:$AT$66,0)+COUNTIF(AT$8:AT27,AT27)-1","v":20},"0","Adjoints territoriaux du patrimoine",null,null,null,null,null,null,null,null,28,"Centre","Centre de Gestion d'Eure-et-Loir",null,null,null,null,null,"Directeurs d'établissements d'enseignement artistique",null,{"$f":"'[1]IND 4.2.1'!C40","v":0},{"$f":"'[1]IND 4.2.1'!D40","v":0},{"$f":"'[1]IND 4.2.1'!E40","v":0},{"$f":"'[1]IND 4.2.1'!F40","v":0},{"$f":"'[1]IND 4.2.1'!G40","v":0},{"$f":"'[1]IND 4.2.1'!H40","v":0},{"$f":"'[1]IND 4.2.1'!I40","v":0},{"$f":"'[1]IND 4.2.1'!J40","v":0},0,0,"0",{"$f":"RANK(BZ27,$BZ$11:$BZ$70,0)+COUNTIF(BZ$11:BZ27,BZ27)-1","v":{"$error":"#N/A"}},"0","Directeurs d'établissements d'enseignement artistique",null,null,null,null,null,null,null,null,null,null,null,null,null,0,1,0,0]
[null,null,null,null,null,null,"35 - 39 ans",{"$f":"37.5*('[1]IND 1.7.1'!$C$12+'[1]IND 1.7.1'!$C$24)","v":0},{"$f":"37.5*('[1]IND 1.7.1'!$D$12+'[1]IND 1.7.1'!$D$24)","v":0},{"$f":"37.5*('[1]IND 1.7.1'!$E$12+'[1]IND 1.7.1'!$E$24)","v":0},0,null,null,null,null,null,null,null,null,null,null,null,null,null,null,null,null,null,"Conseillers des APS",{"$f":"'[1]IND 1.1.1'!$I$151","v":0},{"$f":"'[1]IND 1.2.1'!$K$41","v":0},0,{"$f":"RANK(AF28,$AF$7:$AF$66,0)+COUNTIF(AF$7:AF28,AF28)-1","v":21},21,0,"Conseillers des APS","A",0,0,0,null,null,"Conseillers des APS",{"$f":"SUM('[1]IND 3.4.3'!B41:E41)","v":0},0,"0",{"$f":"RANK(AT28,$AT$8:$AT$66,0)+COUNTIF(AT$8:AT28,AT28)-1","v":21},"0","Conseillers des APS",null,null,null,null,null,null,null,null,36,"Centre","Centre de Gestion de l'Indre",null,null,null,null,null,"Professeurs d'enseignement artistique",null,{"$f":"'[1]IND 4.2.1'!C41","v":0},{"$f":"'[1]IND 4.2.1'!D41","v":0},{"$f":"'[1]IND 4.2.1'!E41","v":0},{"$f":"'[1]IND 4.2.1'!F41","v":0},{"$f":"'[1]IND 4.2.1'!G41","v":0},{"$f":"'[1]IND 4.2.1'!H41","v":0},{"$f":"'[1]IND 4.2.1'!I41","v":0},{"$f":"'[1]IND 4.2.1'!J41","v":0},0,0,"0",{"$f":"RANK(BZ28,$BZ$11:$BZ$70,0)+COUNTIF(BZ$11:BZ28,BZ28)-1","v":{"$error":"#N/A"}},"0","Professeurs d'enseignement artistique",null,null,null,null,null,null,null,null,null,null,null,null,null,0,5,0,0]
[null,null,null,null,null,null,"40 - 44 ans",{"$f":"42.5*('[1]IND 1.7.1'!$C$13+'[1]IND 1.7.1'!$C$25)","v":0},{"$f":"42.5*('[1]IND 1.7.1'!$D$13+'[1]IND 1.7.1'!$D$25)","v":0},{"$f":"42.5*('[1]IND 1.7.1'!$E$13+'[1]IND 1.7.1'!$E$25)","v":0},0,null,null,null,null,null,null,null,null,null,null,null,null,null,null,null,null,null,"Educateurs des APS",{"$f":"'[1]IND 1.1.1'!$I$158","v":0},{"$f":"'[1]IND 1.2.1'!$K$42","v":0},0,{"$f":"RANK(AF29,$AF$7:$AF$66,0)+COUNTIF(AF$7:AF29,AF29)-1","v":22},22,0,"Educateurs des APS","B",0,0,0,null,null,"Educateurs des APS",{"$f":"SUM('[1]IND 3.4.3'!B42:E42)","v":0},0,"0",{"$f":"RANK(AT29,$AT$8:$AT$66,0)+COUNTIF(AT$8:AT29,AT29)-1","v":22},"0","Educateurs des APS",null,null,null,null,null,null,null,null,37,"Centre","Centre de Gestion d'Indre-et-Loire",null,null,null,null,null,"Assistants qualifiés de conservation du patrimoine et des bibliothèques",null,{"$f":"'[1]IND 4.2.1'!C42","v":0},{"$f":"'[1]IND 4.2.1'!D42","v":0},{"$f":"'[1]IND 4.2.1'!E42","v":0},{"$f":"'[1]IND 4.2.1'!F42","v":0},{"$f":"'[1]IND 4.2.1'!G42","v":0},{"$f":"'[1]IND 4.2.1'!H42","v":0},{"$f":"'[1]IND 4.2.1'!I42","v":0},{"$f":"'[1]IND 4.2.1'!J42","v":0},0,0,"0",{"$f":"RANK(BZ29,$BZ$11:$BZ$70,0)+COUNTIF(BZ$11:BZ29,BZ29)-1","v":{"$error":"#N/A"}},"0","Assistants qualifiés de conservation du patrimoine et des bibliothèques",null,null,null,null,null,null,null,null,null,null,null,null,null,0,0,0,0]
[null,null,null,null,null,null,"45 - 49 ans",{"$f":"47.5*('[1]IND 1.7.1'!$C$14+'[1]IND 1.7.1'!$C$26)","v":0},{"$f":"47.5*('[1]IND 1.7.1'!$D$14+'[1]IND 1.7.1'!$D$26)","v":0},{"$f":"47.5*('[1]IND 1.7.1'!$E$14+'[1]IND 1.7.1'!$E$26)","v":0},0,null,null,null,null,null,null,null,null,null,null,null,null,null,null,null,null,null,"Opérateurs des APS",{"$f":"'[1]IND 1.1.1'!$I$164","v":0},{"$f":"'[1]IND 1.2.1'!$K$43","v":0},0,{"$f":"RANK(AF30,$AF$7:$AF$66,0)+COUNTIF(AF$7:AF30,AF30)-1","v":23},23,0,"Opérateurs des APS","C",0,0,0,null,null,"Opérateurs des APS",{"$f":"SUM('[1]IND 3.4.3'!B43:E43)","v":0},0,"0",{"$f":"RANK(AT30,$AT$8:$AT$66,0)+COUNTIF(AT$8:AT30,AT30)-1","v":23},"0","Opérateurs des APS",null,null,null,null,null,null,null,null,41,"Centre","Centre de Gestion du Loir-et-Cher",null,null,null,null,null,"Assistants d'enseignement artistique",null,{"$f":"'[1]IND 4.2.1'!C43","v":0},{"$f":"'[1]IND 4.2.1'!D43","v":0},{"$f":"'[1]IND 4.2.1'!E43","v":0},{"$f":"'[1]IND 4.2.1'!F43","v":0},{"$f":"'[1]IND 4.2.1'!G43","v":0},{"$f":"'[1]IND 4.2.1'!H43","v":0},{"$f":"'[1]IND 4.2.1'!I43","v":0},{"$f":"'[1]IND 4.2.1'!J43","v":0},0,0,"0",{"$f":"RANK(BZ30,$BZ$11:$BZ$70,0)+COUNTIF(BZ$11:BZ30,BZ30)-1","v":{"$error":"#N/A"}},"0","Assistants d'enseignement artistique",null,null,null,null,null,null,null,null,null,null,null,null,null,0,1,0,0]
[null,null,null,null,null,null,"50 - 54 ans",{"$f":"52.5*('[1]IND 1.7.1'!$C$15+'[1]IND 1.7.1'!$C$27)","v":0},{"$f":"52.5*('[1]IND 1.7.1'!$D$15+'[1]IND 1.7.1'!$D$27)","v":0},{"$f":"52.5*('[1]IND 1.7.1'!$E$15+'[1]IND 1.7.1'!$E$27)","v":0},0,null,null,null,null,null,null,null,null,null,null,null,null,null,null,null,null,null,"Conseillers socio-éducatifs",{"$f":"'[1]IND 1.1.1'!$I$172","v":0},{"$f":"'[1]IND 1.2.1'!$K$46","v":0},0,{"$f":"RANK(AF31,$AF$7:$AF$66,0)+COUNTIF(AF$7:AF31,AF31)-1","v":24},24,0,"Conseillers socio-éducatifs","A",0,0,0,null,null,"Conseillers socio-éducatifs",{"$f":"SUM('[1]IND 3.4.3'!B45:E45)","v":0},0,"0",{"$f":"RANK(AT31,$AT$8:$AT$66,0)+COUNTIF(AT$8:AT31,AT31)-1","v":24},"0","Conseillers socio-éducatifs",null,null,null,null,null,null,null,null,45,"Centre","Centre de Gestion du Loiret",null,null,null,null,null,"Adjoints territoriaux du patrimoine",null,{"$f":"'[1]IND 4.2.1'!C44","v":0},{"$f":"'[1]IND 4.2.1'!D44","v":0},{"$f":"'[1]IND 4.2.1'!E44","v":0},{"$f":"'[1]IND 4.2.1'!F44","v":0},{"$f":"'[1]IND 4.2.1'!G44","v":0},{"$f":"'[1]IND 4.2.1'!H44","v":0},{"$f":"'[1]IND 4.2.1'!I44","v":0},{"$f":"'[1]IND 4.2.1'!J44","v":0},0,0,"0",{"$f":"RANK(BZ31,$BZ$11:$BZ$70,0)+COUNTIF(BZ$11:BZ31,BZ31)-1","v":{"$error":"#N/A"}},"0","Adjoints territoriaux du patrimoine",null,null,null,null,null,null,null,null,null,null,null,null,null,0,0,0,0]
[null,null,null,null,null,null,"55 - 59 ans",{"$f":"57.5*('[1]IND 1.7.1'!$C$16+'[1]IND 1.7.1'!$C$28)","v":0},{"$f":"57.5*('[1]IND 1.7.1'!$D$16+'[1]IND 1.7.1'!$D$28)","v":0},{"$f":"57.5*('[1]IND 1.7.1'!$E$16+'[1]IND 1.7.1'!$E$28)","v":0},0,null,null,null,null,null,null,null,null,null,null,null,null,null,null,null,null,null,"Assistants socio-éducatifs",{"$f":"'[1]IND 1.1.1'!$I$177","v":0},{"$f":"'[1]IND 1.2.1'!$K$47","v":0},0,{"$f":"RANK(AF32,$AF$7:$AF$66,0)+COUNTIF(AF$7:AF32,AF32)-1","v":25},25,0,"Assistants socio-éducatifs","B",0,0,0,null,null,"Assistants socio-éducatifs",{"$f":"SUM('[1]IND 3.4.3'!B46:E46)","v":0},0,"0",{"$f":"RANK(AT32,$AT$8:$AT$66,0)+COUNTIF(AT$8:AT32,AT32)-1","v":25},"0","Assistants socio-éducatifs",null,null,null,null,null,null,null,null,8,"Champagne","Centre de Gestion des Ardennes",null,null,null,null,null,"Conseillers des APS",null,{"$f":"'[1]IND 4.2.1'!C47","v":0},{"$f":"'[1]IND 4.2.1'!D47","v":0},{"$f":"'[1]IND 4.2.1'!E47","v":0},{"$f":"'[1]IND 4.2.1'!F47","v":0},{"$f":"'[1]IND 4.2.1'!G47","v":0},{"$f":"'[1]IND 4.2.1'!H47","v":0},{"$f":"'[1]IND 4.2.1'!I47","v":0},{"$f":"'[1]IND 4.2.1'!J47","v":0},0,0,"0",{"$f":"RANK(BZ32,$BZ$11:$BZ$70,0)+COUNTIF(BZ$11:BZ32,BZ32)-1","v":{"$error":"#N/A"}},"0","Conseillers des APS",null,null,null,null,null,null,null,null,null,null,null,null,null,0,0,0,0]
[null,null,null,null,null,null,"60 - 64 ans",{"$f":"62.5*('[1]IND 1.7.1'!$C$17+'[1]IND 1.7.1'!$C$29)","v":0},{"$f":"62.5*('[1]IND 1.7.1'!$D$17+'[1]IND 1.7.1'!$D$29)","v":0},{"$f":"62.5*('[1]IND 1.7.1'!$E$17+'[1]IND 1.7.1'!$E$29)","v":0},0,null,null,null,null,null,null,null,null,null,null,null,null,null,null,null,null,null,"Educateurs de jeunes enfants",{"$f":"'[1]IND 1.1.1'!$I$182","v":0},{"$f":"'[1]IND 1.2.1'!$K$48","v":0},0,{"$f":"RANK(AF33,$AF$7:$AF$66,0)+COUNTIF(AF$7:AF33,AF33)-1","v":26},26,0,"Educateurs de jeunes enfants","B",0,0,0,null,null,"Educateurs de jeunes enfants",{"$f":"SUM('[1]IND 3.4.3'!B47:E47)","v":0},0,"0",{"$f":"RANK(AT33,$AT$8:$AT$66,0)+COUNTIF(AT$8:AT33,AT33)-1","v":26},"0","Educateurs de jeunes enfants",null,null,null,null,null,null,null,null,10,"Champagne","Centre de Gestion de l'Aube",null,null,null,null,null,"Educateurs des APS",null,{"$f":"'[1]IND 4.2.1'!C48","v":0},{"$f":"'[1]IND 4.2.1'!D48","v":0},{"$f":"'[1]IND 4.2.1'!E48","v":0},{"$f":"'[1]IND 4.2.1'!F48","v":0},{"$f":"'[1]IND 4.2.1'!G48","v":0},{"$f":"'[1]IND 4.2.1'!H48","v":0},{"$f":"'[1]IND 4.2.1'!I48","v":0},{"$f":"'[1]IND 4.2.1'!J48","v":0},0,0,"0",{"$f":"RANK(BZ33,$BZ$11:$BZ$70,0)+COUNTIF(BZ$11:BZ33,BZ33)-1","v":{"$error":"#N/A"}},"0","Educateurs des APS",null,null,null,null,null,null,null,null,null,null,null,null,null,0,0,0,0]
[null,null,null,null,null,null,"65 ans ou plus",{"$f":"67.5*('[1]IND 1.7.1'!$C$18+'[1]IND 1.7.1'!$C$30)","v":0},{"$f":"67.5*('[1]IND 1.7.1'!$D$18+'[1]IND 1.7.1'!$D$30)","v":0},{"$f":"67.5*('[1]IND 1.7.1'!$E$18+'[1]IND 1.7.1'!$E$30)","v":0},0,null,null,null,null,null,null,null,null,null,null,null,null,null,null,null,null,null,"Moniteurs-éducateurs et intervenants familiaux",{"$f":"'[1]IND 1.1.1'!$I$187","v":0},{"$f":"'[1]IND 1.2.1'!$K$49","v":0},0,{"$f":"RANK(AF34,$AF$7:$AF$66,0)+COUNTIF(AF$7:AF34,AF34)-1","v":27},27,0,"Moniteurs-éducateurs et intervenants familiaux","B",0,0,0,null,null,"Moniteurs-éducateurs et intervenants familiaux",{"$f":"SUM('[1]IND 3.4.3'!B48:E48)","v":0},0,"0",{"$f":"RANK(AT34,$AT$8:$AT$66,0)+COUNTIF(AT$8:AT34,AT34)-1","v":27},"0","Moniteurs-éducateurs et intervenants familiaux",null,null,null,null,null,null,null,null,51,"Champagne","Centre de Gestion de la Marne",null,null,null,null,null,"Opérateurs des APS",null,{"$f":"'[1]IND 4.2.1'!C49","v":0},{"$f":"'[1]IND 4.2.1'!D49","v":0},{"$f":"'[1]IND 4.2.1'!E49","v":0},{"$f":"'[1]IND 4.2.1'!F49","v":0},{"$f":"'[1]IND 4.2.1'!G49","v":0},{"$f":"'[1]IND 4.2.1'!H49","v":0},{"$f":"'[1]IND 4.2.1'!I49","v":0},{"$f":"'[1]IND 4.2.1'!J49","v":0},0,0,"0",{"$f":"RANK(BZ34,$BZ$11:$BZ$70,0)+COUNTIF(BZ$11:BZ34,BZ34)-1","v":{"$error":"#N/A"}},"0","Opérateurs des APS",null,null,null,null,null,null,null,null,null,null,null,null,null,0,0,0,0]
[null,null,null,null,null,null,"TOTAL",{"$f":"SUM(H25:H34)","v":0},{"$f":"SUM(I25:I34)","v":0},{"$f":"SUM(J25:J34)","v":0},{"$f":"SUM(K25:K34)","v":0},null,null,null,null,null,null,null,null,null,null,null,null,null,null,null,null,null,"ASEM",{"$f":"'[1]IND 1.1.1'!$I$192","v":0},{"$f":"'[1]IND 1.2.1'!$K$50","v":0},0,{"$f":"RANK(AF35,$AF$7:$AF$66,0)+COUNTIF(AF$7:AF35,AF35)-1","v":28},28,0,"ASEM","C",0,0,0,null,null,"ASEM",{"$f":"SUM('[1]IND 3.4.3'!B49:E49)","v":0},0,"0",{"$f":"RANK(AT35,$AT$8:$AT$66,0)+COUNTIF(AT$8:AT35,AT35)-1","v":28},"0","ASEM",null,null,null,null,null,null,null,null,52,"Champagne","Centre de Gestion de Haute-Marne",null,null,null,null,null,"Conseillers socio-éducatifs",null,{"$f":"'[1]IND 4.2.1'!C52","v":0},{"$f":"'[1]IND 4.2.1'!D52","v":0},{"$f":"'[1]IND 4.2.1'!E52","v":0},{"$f":"'[1]IND 4.2.1'!F52","v":0},{"$f":"'[1]IND 4.2.1'!G52","v":0},{"$f":"'[1]IND 4.2.1'!H52","v":0},{"$f":"'[1]IND 4.2.1'!I52","v":0},{"$f":"'[1]IND 4.2.1'!J52","v":0},0,0,"0",{"$f":"RANK(BZ35,$BZ$11:$BZ$70,0)+COUNTIF(BZ$11:BZ35,BZ35)-1","v":{"$error":"#N/A"}},"0","Conseillers socio-éducatifs",null,null,null,null,null,null,null,null,null,null,null,null,null,0,0,0,0]
[null,null,null,null,null,null,"MOYENNE",{"$f":"H35/'[1]IND 1.7.1'!$C$43","v":{"$error":"#DIV/0!"}},{"$f":"I35/'[1]IND 1.7.1'!$D$43","v":{"$error":"#DIV/0!"}},{"$f":"J35/'[1]IND 1.7.1'!$E$43","v":{"$error":"#DIV/0!"}},{"$f":"K35/('[1]IND 1.7.1'!$C$43+'[1]IND 1.7.1'!$D$43)","v":{"$error":"#DIV/0!"}},null,null,null,null,null,null,null,null,null,null,null,null,null,null,null,null,null,"Agents sociaux",{"$f":"'[1]IND 1.1.1'!$I$199","v":0},{"$f":"'[1]IND 1.2.1'!$K$51","v":0},0,{"$f":"RANK(AF36,$AF$7:$AF$66,0)+COUNTIF(AF$7:AF36,AF36)-1","v":29},29,0,"Agents sociaux","C",0,0,0,null,null,"Agents sociaux",{"$f":"SUM('[1]IND 3.4.3'!B50:E50)","v":0},0,"0",{"$f":"RANK(AT36,$AT$8:$AT$66,0)+COUNTIF(AT$8:AT36,AT36)-1","v":29},"0","Agents sociaux",null,null,null,null,null,null,null,null,"2A","Corse","Centre de Gestion de Corse du Sud",null,null,null,null,null,"Assistants socio-éducatifs",null,{"$f":"'[1]IND 4.2.1'!C53","v":0},{"$f":"'[1]IND 4.2.1'!D53","v":0},{"$f":"'[1]IND 4.2.1'!E53","v":0},{"$f":"'[1]IND 4.2.1'!F53","v":0},{"$f":"'[1]IND 4.2.1'!G53","v":0},{"$f":"'[1]IND 4.2.1'!H53","v":0},{"$f":"'[1]IND 4.2.1'!I53","v":0},{"$f":"'[1]IND 4.2.1'!J53","v":0},0,0,"0",{"$f":"RANK(BZ36,$BZ$11:$BZ$70,0)+COUNTIF(BZ$11:BZ36,BZ36)-1","v":{"$error":"#N/A"}},"0","Assistants socio-éducatifs",null,null,null,null,null,null,null,null,null,null,null,null,null,0,0,0,0]
[null,null,null,null,null,null,null,null,null,null,null,null,null,null,null,null,null,null,null,null,null,null,null,null,null,null,null,null,"Médecins",{"$f":"'[1]IND 1.1.1'!$I$208","v":0},{"$f":"'[1]IND 1.2.1'!$K$54","v":0},0,{"$f":"RANK(AF37,$AF$7:$AF$66,0)+COUNTIF(AF$7:AF37,AF37)-1","v":30},30,0,"Médecins","A",0,0,0,null,null,"Médecins",{"$f":"SUM('[1]IND 3.4.3'!B52:E52)","v":0},0,"0",{"$f":"RANK(AT37,$AT$8:$AT$66,0)+COUNTIF(AT$8:AT37,AT37)-1","v":30},"0","Médecins",null,null,null,null,null,null,null,null,"2B","Corse","Centre de Gestion de la Haute-Corse",null,null,null,null,null,"Educateurs de jeunes enfants",null,{"$f":"'[1]IND 4.2.1'!C54","v":0},{"$f":"'[1]IND 4.2.1'!D54","v":0},{"$f":"'[1]IND 4.2.1'!E54","v":0},{"$f":"'[1]IND 4.2.1'!F54","v":0},{"$f":"'[1]IND 4.2.1'!G54","v":0},{"$f":"'[1]IND 4.2.1'!H54","v":0},{"$f":"'[1]IND 4.2.1'!I54","v":0},{"$f":"'[1]IND 4.2.1'!J54","v":0},0,0,"0",{"$f":"RANK(BZ37,$BZ$11:$BZ$70,0)+COUNTIF(BZ$11:BZ37,BZ37)-1","v":{"$error":"#N/A"}},"0","Educateurs de jeunes enfants",null,null,null,null,null,null,null,null,null,null,null,null,null,0,0,0,0]
[null,null,null,null,null,null,null,null,null,null,null,null,null,null,null,null,null,null,null,null,null,null,null,null,null,null,null,null,"Psychologues",{"$f":"'[1]IND 1.1.1'!$I$213","v":0},{"$f":"'[1]IND 1.2.1'!$K$55","v":0},0,{"$f":"RANK(AF38,$AF$7:$AF$66,0)+COUNTIF(AF$7:AF38,AF38)-1","v":31},31,0,"Psychologues","A",0,0,0,null,null,"Psychologues",{"$f":"SUM('[1]IND 3.4.3'!B53:E53)","v":0},0,"0",{"$f":"RANK(AT38,$AT$8:$AT$66,0)+COUNTIF(AT$8:AT38,AT38)-1","v":31},"0","Psychologues",null,null,null,null,null,null,null,null,25,"Franche-Comté","Centre de Gestion du Doubs",null,null,null,null,null,"Moniteurs-éducateurs et intervenants familiaux",null,{"$f":"'[1]IND 4.2.1'!C55","v":0},{"$f":"'[1]IND 4.2.1'!D55","v":0},{"$f":"'[1]IND 4.2.1'!E55","v":0},{"$f":"'[1]IND 4.2.1'!F55","v":0},{"$f":"'[1]IND 4.2.1'!G55","v":0},{"$f":"'[1]IND 4.2.1'!H55","v":0},{"$f":"'[1]IND 4.2.1'!I55","v":0},{"$f":"'[1]IND 4.2.1'!J55","v":0},0,0,"0",{"$f":"RANK(BZ38,$BZ$11:$BZ$70,0)+COUNTIF(BZ$11:BZ38,BZ38)-1","v":{"$error":"#N/A"}},"0","Moniteurs-éducateurs et intervenants familiaux",null,null,null,null,null,null,null,null,null,null,null,null,null,0,0,0,0]
["Télétravail",null,null,null,null,null,null,null,null,null,null,null,null,null,null,null,null,null,null,null,null,null,null,null,null,null,null,null,"Sages-femmes",{"$f":"'[1]IND 1.1.1'!$I$218","v":0},{"$f":"'[1]IND 1.2.1'!$K$56","v":0},0,{"$f":"RANK(AF39,$AF$7:$AF$66,0)+COUNTIF(AF$7:AF39,AF39)-1","v":32},32,0,"Sages-femmes","A",0,0,0,null,null,"Sages-femmes",{"$f":"SUM('[1]IND 3.4.3'!B54:E54)","v":0},0,"0",{"$f":"RANK(AT39,$AT$8:$AT$66,0)+COUNTIF(AT$8:AT39,AT39)-1","v":32},"0","Sages-femmes",null,null,null,null,null,null,null,null,39,"Franche-Comté","Centre de Gestion du Jura",null,null,null,null,null,"Agents spécialisés des écoles maternelles",null,{"$f":"'[1]IND 4.2.1'!C56","v":0},{"$f":"'[1]IND 4.2.1'!D56","v":0},{"$f":"'[1]IND 4.2.1'!E56","v":0},{"$f":"'[1]IND 4.2.1'!F56","v":0},{"$f":"'[1]IND 4.2.1'!G56","v":0},{"$f":"'[1]IND 4.2.1'!H56","v":0},{"$f":"'[1]IND 4.2.1'!I56","v":0},{"$f":"'[1]IND 4.2.1'!J56","v":0},0,0,"0",{"$f":"RANK(BZ39,$BZ$11:$BZ$70,0)+COUNTIF(BZ$11:BZ39,BZ39)-1","v":{"$error":"#N/A"}},"0","Agents spécialisés des écoles maternelles",null,null,null,null,null,null,null,null,null,null,null,null,null,0,0,0,0]
[null,null,null,null,null,null,null,null,null,null,null,null,null,null,null,null,null,null,null,null,null,null,null,null,null,null,null,null,"CADRES DE SANTE PARAMEDICAUX",{"$f":"'[1]IND 1.1.1'!$I$224","v":0},{"$f":"'[1]IND 1.2.1'!$K$57","v":0},0,{"$f":"RANK(AF40,$AF$7:$AF$66,0)+COUNTIF(AF$7:AF40,AF40)-1","v":33},33,0,"CADRES DE SANTE PARAMEDICAUX","A",0,0,0,null,null,"CADRES DE SANTE PARAMEDICAUX",{"$f":"SUM('[1]IND 3.4.3'!B55:E55)","v":0},0,"0",{"$f":"RANK(AT40,$AT$8:$AT$66,0)+COUNTIF(AT$8:AT40,AT40)-1","v":33},"0","CADRES DE SANTE PARAMEDICAUX",null,null,null,null,null,null,null,null,70,"Franche-Comté","Centre de Gestion de Haute-Saône",null,null,null,null,null,"Agents sociaux",null,{"$f":"'[1]IND 4.2.1'!C57","v":0},{"$f":"'[1]IND 4.2.1'!D57","v":0},{"$f":"'[1]IND 4.2.1'!E57","v":0},{"$f":"'[1]IND 4.2.1'!F57","v":0},{"$f":"'[1]IND 4.2.1'!G57","v":0},{"$f":"'[1]IND 4.2.1'!H57","v":0},{"$f":"'[1]IND 4.2.1'!I57","v":0},{"$f":"'[1]IND 4.2.1'!J57","v":0},0,0,"0",{"$f":"RANK(BZ40,$BZ$11:$BZ$70,0)+COUNTIF(BZ$11:BZ40,BZ40)-1","v":{"$error":"#N/A"}},"0","Agents sociaux",null,null,null,null,null,null,null,null,null,null,null,null,null,0,0,0,0]
[null,null,null,null,null,null,null,null,null,null,null,null,null,null,null,null,null,null,null,null,null,null,null,null,null,null,null,null,"Puéricultrices cadres de santé",{"$f":"'[1]IND 1.1.1'!$I$229","v":0},{"$f":"'[1]IND 1.2.1'!$K$58","v":0},0,{"$f":"RANK(AF41,$AF$7:$AF$66,0)+COUNTIF(AF$7:AF41,AF41)-1","v":34},34,0,"Puéricultrices cadres de santé","A",0,0,0,null,null,"Puéricultrices cadres de santé",{"$f":"SUM('[1]IND 3.4.3'!B56:E56)","v":0},0,"0",{"$f":"RANK(AT41,$AT$8:$AT$66,0)+COUNTIF(AT$8:AT41,AT41)-1","v":34},"0","Puéricultrices cadres de santé",null,null,null,null,null,null,null,null,90,"Franche-Comté","Centre de Gestion du Territoire-de-Belfort",null,null,null,null,null,"Médecins",null,{"$f":"'[1]IND 4.2.1'!C60","v":0},{"$f":"'[1]IND 4.2.1'!D60","v":0},{"$f":"'[1]IND 4.2.1'!E60","v":0},{"$f":"'[1]IND 4.2.1'!F60","v":0},{"$f":"'[1]IND 4.2.1'!G60","v":0},{"$f":"'[1]IND 4.2.1'!H60","v":0},{"$f":"'[1]IND 4.2.1'!I60","v":0},{"$f":"'[1]IND 4.2.1'!J60","v":0},0,0,"0",{"$f":"RANK(BZ41,$BZ$11:$BZ$70,0)+COUNTIF(BZ$11:BZ41,BZ41)-1","v":{"$error":"#N/A"}},"0","Médecins",null,null,null,null,null,null,null,null,null,null,null,null,null,0,0,0,0]
[null,"Hommes",null,null,null,"Femmes",null,null,null,null,null,null,null,null,null,null,null,null,null,null,null,null,null,null,null,null,null,null,"PUERICULTRICES (décret n° 92-859 du 28 août 1992 modifié) *",{"$f":"'[1]IND 1.1.1'!$I$234","v":0},{"$f":"'[1]IND 1.2.1'!$K$59","v":0},0,{"$f":"RANK(AF42,$AF$7:$AF$66,0)+COUNTIF(AF$7:AF42,AF42)-1","v":35},35,0,"PUERICULTRICES (décret n° 92-859 du 28 août 1992 modifié) *","A",0,0,0,null,null,"PUERICULTRICES (décret n° 92-859 du 28 août 1992 modifié) *",{"$f":"SUM('[1]IND 3.4.3'!B57:E57)","v":0},0,{"$f":"AF42+AF43","v":0},{"$f":"RANK(AT42,$AT$8:$AT$66,0)+COUNTIF(AT$8:AT42,AT42)-1","v":35},"0","PUERICULTRICES (décret n° 92-859 du 28 août 1992 modifié) *",null,null,null,null,null,null,null,null,27,"Haute-Normandie","Centre de Gestion de l'Eure",null,null,null,null,null,"Psychologues ",null,{"$f":"'[1]IND 4.2.1'!C61","v":0},{"$f":"'[1]IND 4.2.1'!D61","v":0},{"$f":"'[1]IND 4.2.1'!E61","v":0},{"$f":"'[1]IND 4.2.1'!F61","v":0},{"$f":"'[1]IND 4.2.1'!G61","v":0},{"$f":"'[1]IND 4.2.1'!H61","v":0},{"$f":"'[1]IND 4.2.1'!I61","v":0},{"$f":"'[1]IND 4.2.1'!J61","v":0},0,0,"0",{"$f":"RANK(BZ42,$BZ$11:$BZ$70,0)+COUNTIF(BZ$11:BZ42,BZ42)-1","v":{"$error":"#N/A"}},"0","Psychologues ",null,null,null,null,null,null,null,null,null,null,null,null,null,0,0,0,0]
[null,"Catégorie A","Catégorie B","Catégorie C","Agents et ouvriers territoriaux de Mayotte (AOTM)","Catégorie A","Catégorie B","Catégorie C","Agents et ouvriers territoriaux de Mayotte (AOTM)","Total Hommes","Total Femmes","Total Ensemble",null,null,null,null,null,null,null,null,null,null,null,null,null,null,null,null,"PUERICULTRICES (décret n° 2014-923  du 18 août 2014) * ",{"$f":"'[1]IND 1.1.1'!$I$240","v":0},null,0,{"$f":"RANK(AF43,$AF$7:$AF$66,0)+COUNTIF(AF$7:AF43,AF43)-1","v":36},36,0,"PUERICULTRICES (décret n° 2014-923  du 18 août 2014) * ","A",0,0,0,null,null,"PUERICULTRICES (décret n° 2014-923  du 18 août 2014) * ",null,0,null,{"$f":"RANK(AT43,$AT$8:$AT$66,0)+COUNTIF(AT$8:AT43,AT43)-1","v":35},"0","PUERICULTRICES (décret n° 2014-923  du 18 août 2014) * ",null,null,null,null,null,null,null,null,76,"Haute-Normandie","Centre de Gestion de la Seine-Maritime",null,null,null,null,null,"Sages-femmes",null,{"$f":"'[1]IND 4.2.1'!C62","v":0},{"$f":"'[1]IND 4.2.1'!D62","v":0},{"$f":"'[1]IND 4.2.1'!E62","v":0},{"$f":"'[1]IND 4.2.1'!F62","v":0},{"$f":"'[1]IND 4.2.1'!G62","v":0},{"$f":"'[1]IND 4.2.1'!H62","v":0},{"$f":"'[1]IND 4.2.1'!I62","v":0},{"$f":"'[1]IND 4.2.1'!J62","v":0},0,0,"0",{"$f":"RANK(BZ43,$BZ$11:$BZ$70,0)+COUNTIF(BZ$11:BZ43,BZ43)-1","v":{"$error":"#N/A"}},"0","Sages-femmes",null,null,null,null,null,null,null,null,null,null,null,null,null,0,0,0,0]
["Nombre d’agents exerçant leurs fonctions dans le cadre du télétravail (article 133 de la loi du 12 mars 2012)",null,null,null,null,null,null,null,null,{"$f":"B44+C44+D44+E44","v":0},{"$f":"F44+G44+H44+I44","v":0},{"$f":"J44+K44","v":0},null,null,null,null,null,null,null,null,null,null,null,null,null,null,null,null,"Cadres de santé infirmiers, rééducateurs et assistants médico-techniques",{"$f":"'[1]IND 1.1.1'!$I$244","v":0},{"$f":"'[1]IND 1.2.1'!$K$60","v":0},0,{"$f":"RANK(AF44,$AF$7:$AF$66,0)+COUNTIF(AF$7:AF44,AF44)-1","v":37},37,0,"Cadres de santé infirmiers, rééducateurs et assistants médico-techniques","A",0,0,0,null,null,"Cadres de santé infirmiers, rééducateurs et assistants médico-techniques",{"$f":"SUM('[1]IND 3.4.3'!B58:E58)","v":0},0,"0",{"$f":"RANK(AT44,$AT$8:$AT$66,0)+COUNTIF(AT$8:AT44,AT44)-1","v":36},"0","Cadres de santé infirmiers, rééducateurs et assistants médico-techniques",null,null,null,null,null,null,null,null,75,"Ile-de-France","Centre Interdépartemental de Gestion de la Grande Couronne\nde la Région d'Ile-de-France",null,null,null,null,null,"Cadres de santé paramédicaux",null,{"$f":"'[1]IND 4.2.1'!C63","v":0},{"$f":"'[1]IND 4.2.1'!D63","v":0},{"$f":"'[1]IND 4.2.1'!E63","v":0},{"$f":"'[1]IND 4.2.1'!F63","v":0},{"$f":"'[1]IND 4.2.1'!G63","v":0},{"$f":"'[1]IND 4.2.1'!H63","v":0},{"$f":"'[1]IND 4.2.1'!I63","v":0},{"$f":"'[1]IND 4.2.1'!J63","v":0},0,0,"0",{"$f":"RANK(BZ44,$BZ$11:$BZ$70,0)+COUNTIF(BZ$11:BZ44,BZ44)-1","v":{"$error":"#N/A"}},"0","Cadres de santé paramédicaux",null,null,null,null,null,null,null,null,null,null,null,null,null,0,0,0,0]
[null,null,null,null,null,null,null,null,null,null,null,null,null,null,null,null,null,null,null,null,null,null,null,null,null,null,null,null,"Infirmiers territoriaux en soins généraux",{"$f":"'[1]IND 1.1.1'!$I$250","v":0},{"$f":"'[1]IND 1.2.1'!$K$61","v":0},0,{"$f":"RANK(AF45,$AF$7:$AF$66,0)+COUNTIF(AF$7:AF45,AF45)-1","v":38},38,0,"Infirmiers territoriaux en soins généraux","A",0,0,0,null,null,"Infirmiers territoriaux en soins généraux",{"$f":"SUM('[1]IND 3.4.3'!B59:E59)","v":0},0,"0",{"$f":"RANK(AT45,$AT$8:$AT$66,0)+COUNTIF(AT$8:AT45,AT45)-1","v":37},"0","Infirmiers territoriaux en soins généraux",null,null,null,null,null,null,null,null,77,"Ile-de-France","Centre de Gestion de Seine-et-Marne",null,null,null,null,null,"Puéricultrices cadres de santé",null,{"$f":"'[1]IND 4.2.1'!C64","v":0},{"$f":"'[1]IND 4.2.1'!D64","v":0},{"$f":"'[1]IND 4.2.1'!E64","v":0},{"$f":"'[1]IND 4.2.1'!F64","v":0},{"$f":"'[1]IND 4.2.1'!G64","v":0},{"$f":"'[1]IND 4.2.1'!H64","v":0},{"$f":"'[1]IND 4.2.1'!I64","v":0},{"$f":"'[1]IND 4.2.1'!J64","v":0},0,0,"0",{"$f":"RANK(BZ45,$BZ$11:$BZ$70,0)+COUNTIF(BZ$11:BZ45,BZ45)-1","v":{"$error":"#N/A"}},"0","Puéricultrices cadres de santé",null,null,null,null,null,null,null,null,null,null,null,null,null,0,0,0,0]
["Absence",null,null,null,null,null,null,null,null,null,null,null,null,null,null,null,null,null,null,null,null,null,null,null,null,null,null,null,"Infirmiers",{"$f":"'[1]IND 1.1.1'!$I$255","v":0},{"$f":"'[1]IND 1.2.1'!$K$62","v":0},0,{"$f":"RANK(AF46,$AF$7:$AF$66,0)+COUNTIF(AF$7:AF46,AF46)-1","v":39},39,0,"Infirmiers","B",0,0,0,null,null,"Infirmiers",{"$f":"SUM('[1]IND 3.4.3'!B60:E60)","v":0},0,"0",{"$f":"RANK(AT46,$AT$8:$AT$66,0)+COUNTIF(AT$8:AT46,AT46)-1","v":38},"0","Infirmiers",null,null,null,null,null,null,null,null,78,"Ile-de-France","CIG de la Grande Couronne",null,null,null,null,null,"Puéricultrices**",null,{"$f":"'[1]IND 4.2.1'!C65","v":0},{"$f":"'[1]IND 4.2.1'!D65","v":0},{"$f":"'[1]IND 4.2.1'!E65","v":0},{"$f":"'[1]IND 4.2.1'!F65","v":0},{"$f":"'[1]IND 4.2.1'!G65","v":0},{"$f":"'[1]IND 4.2.1'!H65","v":0},{"$f":"'[1]IND 4.2.1'!I65","v":0},{"$f":"'[1]IND 4.2.1'!J65","v":0},0,{"$f":"AF42+AF43","v":0},"0",{"$f":"RANK(BZ46,$BZ$11:$BZ$70,0)+COUNTIF(BZ$11:BZ46,BZ46)-1","v":{"$error":"#N/A"}},"0","Puéricultrices**",null,null,null,null,null,null,null,null,null,null,null,null,null,0,0,0,0]
[null,null,null,null,null,null,null,null,null,null,null,null,null,null,null,null,null,null,null,null,null,null,null,null,null,null,null,null,"Auxiliaires de puériculture",{"$f":"'[1]IND 1.1.1'!$I$260","v":0},{"$f":"'[1]IND 1.2.1'!$K$63","v":0},0,{"$f":"RANK(AF47,$AF$7:$AF$66,0)+COUNTIF(AF$7:AF47,AF47)-1","v":40},40,0,"Auxiliaires de puériculture","C",0,0,0,null,null,"Auxiliaires de puériculture",{"$f":"SUM('[1]IND 3.4.3'!B61:E61)","v":0},0,"0",{"$f":"RANK(AT47,$AT$8:$AT$66,0)+COUNTIF(AT$8:AT47,AT47)-1","v":39},"0","Auxiliaires de puériculture",null,null,null,null,null,null,null,null,91,"Ile-de-France","CIG Grande Couronne",null,null,null,null,null,"Cadres de santé infirmiers, rééducateurs et assistants médico-techniques",null,{"$f":"'[1]IND 4.2.1'!C66","v":0},{"$f":"'[1]IND 4.2.1'!D66","v":0},{"$f":"'[1]IND 4.2.1'!E66","v":0},{"$f":"'[1]IND 4.2.1'!F66","v":0},{"$f":"'[1]IND 4.2.1'!G66","v":0},{"$f":"'[1]IND 4.2.1'!H66","v":0},{"$f":"'[1]IND 4.2.1'!I66","v":0},{"$f":"'[1]IND 4.2.1'!J66","v":0},0,{"$f":"AF44","v":0},"0",{"$f":"RANK(BZ47,$BZ$11:$BZ$70,0)+COUNTIF(BZ$11:BZ47,BZ47)-1","v":{"$error":"#N/A"}},"0","Cadres de santé infirmiers, rééducateurs et assistants médico-techniques",null,null,null,null,null,null,null,null,null,null,null,null,null,0,0,0,0]
["Nombre de jours d'absence","Nombre de jours d'absence",null,null,null,null,null,null,null,null,null,null,null,null,null,null,null,null,null,null,null,null,null,null,null,null,null,null,"Auxiliaires de soins",{"$f":"'[1]IND 1.1.1'!$I$265","v":0},{"$f":"'[1]IND 1.2.1'!$K$64","v":0},0,{"$f":"RANK(AF48,$AF$7:$AF$66,0)+COUNTIF(AF$7:AF48,AF48)-1","v":41},41,0,"Auxiliaires de soins","C",0,0,0,null,null,"Auxiliaires de soins",{"$f":"SUM('[1]IND 3.4.3'!B62:E62)","v":0},0,"0",{"$f":"RANK(AT48,$AT$8:$AT$66,0)+COUNTIF(AT$8:AT48,AT48)-1","v":40},"0","Auxiliaires de soins",null,null,null,null,null,null,null,null,92,"Ile-de-France","CIG Petite Couronne\n",null,null,null,null,null,"Infirmiers en soins généraux",null,{"$f":"'[1]IND 4.2.1'!C67","v":0},{"$f":"'[1]IND 4.2.1'!D67","v":0},{"$f":"'[1]IND 4.2.1'!E67","v":0},{"$f":"'[1]IND 4.2.1'!F67","v":0},{"$f":"'[1]IND 4.2.1'!G67","v":0},{"$f":"'[1]IND 4.2.1'!H67","v":0},{"$f":"'[1]IND 4.2.1'!I67","v":0},{"$f":"'[1]IND 4.2.1'!J67","v":0},0,{"$f":"AF45","v":0},"0",{"$f":"RANK(BZ48,$BZ$11:$BZ$70,0)+COUNTIF(BZ$11:BZ48,BZ48)-1","v":{"$error":"#N/A"}},"0","Infirmiers en soins généraux",null,null,null,null,null,null,null,null,null,null,null,null,null,0,0,0,0]
[null,"Fonctionnaires","Taux d'absentéisme Tit","Contractuels (emploi permanent)","Taux d'absentéisme Contr","Contractuels sur emploi non permanent","Taux d'absentéisme (contractuels sur emploi permanent)","Total agents  permanents","Taux d'absentéisme",null,null,"Compressible",null,null,null,"Nombre de jours moyen d'absence/agent",null,null,null,null,null,null,null,null,null,null,null,null,"Biologistes-vétérinaires-pharmaciens",{"$f":"'[1]IND 1.1.1'!$I$274","v":0},{"$f":"'[1]IND 1.2.1'!$K$67","v":0},0,{"$f":"RANK(AF49,$AF$7:$AF$66,0)+COUNTIF(AF$7:AF49,AF49)-1","v":42},42,0,"Biologistes-vétérinaires-pharmaciens","A",0,0,0,null,null,"Biologistes-vétérinaires-pharmaciens",{"$f":"SUM('[1]IND 3.4.3'!B64:E64)","v":0},0,"0",{"$f":"RANK(AT49,$AT$8:$AT$66,0)+COUNTIF(AT$8:AT49,AT49)-1","v":41},"0","Biologistes-vétérinaires-pharmaciens",null,null,null,null,null,null,null,null,93,"Ile-de-France","CIG Petite Couronne\n",null,null,null,null,null,"Infirmiers",null,{"$f":"'[1]IND 4.2.1'!C68","v":0},{"$f":"'[1]IND 4.2.1'!D68","v":0},{"$f":"'[1]IND 4.2.1'!E68","v":0},{"$f":"'[1]IND 4.2.1'!F68","v":0},{"$f":"'[1]IND 4.2.1'!G68","v":0},{"$f":"'[1]IND 4.2.1'!H68","v":0},{"$f":"'[1]IND 4.2.1'!I68","v":0},{"$f":"'[1]IND 4.2.1'!J68","v":0},0,{"$f":"AF46","v":0},"0",{"$f":"RANK(BZ49,$BZ$11:$BZ$70,0)+COUNTIF(BZ$11:BZ49,BZ49)-1","v":{"$error":"#N/A"}},"0","Infirmiers",null,null,null,null,null,null,null,null,null,null,null,null,null,0,0,0,0]
["Pour maladie ordinaire",{"$f":"'[1]IND 2.1.1'!F13+'[1]IND 2.1.1'!G13","v":0},{"$f":"IFERROR((B50/($B$60*365)),0)","v":0},{"$f":"'[1]IND 2.1.2'!F13+'[1]IND 2.1.2'!G13","v":0},{"$f":"IFERROR((D50/($D$60*365)),0)","v":0},{"$f":"'[1]IND 2.1.3'!F13+'[1]IND 2.1.3'!G13","v":0},{"$f":"IFERROR((F50/($F$60*365)),0)","v":0},{"$f":"SUM(B50,D50)","v":0},{"$f":"IFERROR((H50/($H$60*365)),0)","v":0},null,"Titulaires Absentéisme compressible",{"$f":"C50+C51+C52","v":0},null,null,"Titulaires",{"$f":"IFERROR((B59/B60),0)","v":0},null,null,null,null,null,null,null,null,null,null,null,null,"Techniciens paramédicaux territoriaux",{"$f":"'[1]IND 1.1.1'!$I$279","v":0},{"$f":"'[1]IND 1.2.1'!$K$68","v":0},0,{"$f":"RANK(AF50,$AF$7:$AF$66,0)+COUNTIF(AF$7:AF50,AF50)-1","v":43},43,0,"Techniciens paramédicaux territoriaux","B",0,0,0,null,null,"Techniciens paramédicaux territoriaux",{"$f":"SUM('[1]IND 3.4.3'!B65:E65)","v":0},0,"0",{"$f":"RANK(AT50,$AT$8:$AT$66,0)+COUNTIF(AT$8:AT50,AT50)-1","v":42},"0","Techniciens paramédicaux territoriaux",null,null,null,null,null,null,null,null,94,"Ile-de-France","CIG Petite Couronne\n",null,null,null,null,null,"Auxiliaires de puériculture",null,{"$f":"'[1]IND 4.2.1'!C69","v":0},{"$f":"'[1]IND 4.2.1'!D69","v":0},{"$f":"'[1]IND 4.2.1'!E69","v":0},{"$f":"'[1]IND 4.2.1'!F69","v":0},{"$f":"'[1]IND 4.2.1'!G69","v":0},{"$f":"'[1]IND 4.2.1'!H69","v":0},{"$f":"'[1]IND 4.2.1'!I69","v":0},{"$f":"'[1]IND 4.2.1'!J69","v":0},0,{"$f":"AF47","v":0},"0",{"$f":"RANK(BZ50,$BZ$11:$BZ$70,0)+COUNTIF(BZ$11:BZ50,BZ50)-1","v":{"$error":"#N/A"}},"0","Auxiliaires de puériculture",null,null,null,null,null,null,null,null,null,null,null,null,null,0,0,0,0]
["Pour accidents du travail imputables au service ",{"$f":"'[1]IND 2.1.1'!F14+'[1]IND 2.1.1'!G14","v":0},{"$f":"IFERROR((B51/($B$60*365)),0)","v":0},{"$f":"'[1]IND 2.1.2'!F14+'[1]IND 2.1.2'!G14","v":0},{"$f":"IFERROR((D51/($D$60*365)),0)","v":0},{"$f":"'[1]IND 2.1.3'!F14+'[1]IND 2.1.3'!G14","v":0},{"$f":"IFERROR((F51/($F$60*365)),0)","v":0},{"$f":"SUM(B51,D51)","v":0},{"$f":"IFERROR((H51/($H$60*365)),0)","v":0},null,"Contractuels EP Absentéisme compressible",{"$f":"E50+E51+E52","v":0},null,null,"Contractuels sur EP",{"$f":"IFERROR((D59/D60),0)","v":0},null,null,null,null,null,null,null,null,null,null,null,null,"Directeurs de police municipale",{"$f":"'[1]IND 1.1.1'!$I$287","v":0},{"$f":"'[1]IND 1.2.1'!$K$71","v":0},0,{"$f":"RANK(AF51,$AF$7:$AF$66,0)+COUNTIF(AF$7:AF51,AF51)-1","v":44},44,0,"Directeurs de police municipale","A",0,0,0,null,null,"Directeurs de police municipale",{"$f":"SUM('[1]IND 3.4.3'!B67:E67)","v":0},0,"0",{"$f":"RANK(AT51,$AT$8:$AT$66,0)+COUNTIF(AT$8:AT51,AT51)-1","v":43},"0","Directeurs de police municipale",null,null,null,null,null,null,null,null,95,"Ile-de-France","CIG Grande Couronne\n",null,null,null,null,null,"Auxiliaires de soins",null,{"$f":"'[1]IND 4.2.1'!C70","v":0},{"$f":"'[1]IND 4.2.1'!D70","v":0},{"$f":"'[1]IND 4.2.1'!E70","v":0},{"$f":"'[1]IND 4.2.1'!F70","v":0},{"$f":"'[1]IND 4.2.1'!G70","v":0},{"$f":"'[1]IND 4.2.1'!H70","v":0},{"$f":"'[1]IND 4.2.1'!I70","v":0},{"$f":"'[1]IND 4.2.1'!J70","v":0},0,0,"0",{"$f":"RANK(BZ51,$BZ$11:$BZ$70,0)+COUNTIF(BZ$11:BZ51,BZ51)-1","v":{"$error":"#N/A"}},"0","Auxiliaires de soins",null,null,null,null,null,null,null,null,null,null,null,null,null,0,0,0,0]
["Pour accidents du travail imputables au trajet ",{"$f":"'[1]IND 2.1.1'!F15+'[1]IND 2.1.1'!G15","v":0},0,{"$f":"'[1]IND 2.1.2'!F15+'[1]IND 2.1.2'!G15","v":0},0,{"$f":"'[1]IND 2.1.3'!F15+'[1]IND 2.1.3'!G15","v":0},0,0,{"$f":"IFERROR((H52/($H$60*365)),0)","v":0},null,"Contractuels ENP Absentéisme compressible",{"$f":"G50+G51+G52","v":0},null,null,"Contractuels sur ENP",{"$f":"IFERROR((F59/F60),0)","v":0},null,null,null,null,null,null,null,null,null,null,null,null,"Chefs de service de police municipale",{"$f":"'[1]IND 1.1.1'!$I$293","v":0},{"$f":"'[1]IND 1.2.1'!$K$72","v":0},0,{"$f":"RANK(AF52,$AF$7:$AF$66,0)+COUNTIF(AF$7:AF52,AF52)-1","v":45},45,0,"Chefs de service de police municipale","B",0,0,0,null,null,"Chefs de service de police municipale",{"$f":"SUM('[1]IND 3.4.3'!B68:E68)","v":0},0,"0",{"$f":"RANK(AT52,$AT$8:$AT$66,0)+COUNTIF(AT$8:AT52,AT52)-1","v":44},"0","Chefs de service de police municipale",null,null,null,null,null,null,null,null,11,"Languedoc","Centre de Gestion de l'Aude",null,null,null,null,null,"Biologistes, vétérinaires, pharmaciens",null,{"$f":"'[1]IND 4.2.1'!C73","v":0},{"$f":"'[1]IND 4.2.1'!D73","v":0},{"$f":"'[1]IND 4.2.1'!E73","v":0},{"$f":"'[1]IND 4.2.1'!F73","v":0},{"$f":"'[1]IND 4.2.1'!G73","v":0},{"$f":"'[1]IND 4.2.1'!H73","v":0},{"$f":"'[1]IND 4.2.1'!I73","v":0},{"$f":"'[1]IND 4.2.1'!J73","v":0},0,0,"0",{"$f":"RANK(BZ52,$BZ$11:$BZ$70,0)+COUNTIF(BZ$11:BZ52,BZ52)-1","v":{"$error":"#N/A"}},"0","Biologistes, vétérinaires, pharmaciens",null,null,null,null,null,null,null,null,null,null,null,null,null,0,0,0,0]
["Pour longue maladie, disponibilité d'office et grave maladie ",{"$f":"'[1]IND 2.1.1'!F16+'[1]IND 2.1.1'!G16","v":0},0,{"$f":"'[1]IND 2.1.2'!F16+'[1]IND 2.1.2'!G16","v":0},0,{"$f":"'[1]IND 2.1.3'!F16+'[1]IND 2.1.3'!G16","v":0},0,0,0,null,"Total Absentéisme compressible",{"$f":"I50+I51+I52","v":0},null,null,"Ensemble",{"$f":"IFERROR((H59/H60),0)","v":0},null,null,null,null,null,null,null,null,null,null,null,null,"Agents de police municipale",{"$f":"'[1]IND 1.1.1'!$I$299","v":0},{"$f":"'[1]IND 1.2.1'!$K$73","v":0},0,{"$f":"RANK(AF53,$AF$7:$AF$66,0)+COUNTIF(AF$7:AF53,AF53)-1","v":46},46,0,"Agents de police municipale","C",0,0,0,null,null,"Agents de police municipale",{"$f":"SUM('[1]IND 3.4.3'!B69:E69)","v":0},0,"0",{"$f":"RANK(AT53,$AT$8:$AT$66,0)+COUNTIF(AT$8:AT53,AT53)-1","v":45},"0","Agents de police municipale",null,null,null,null,null,null,null,null,30,"Languedoc","Centre de Gestion du Gard",null,null,null,null,null,"Techniciens paramédicaux",null,{"$f":"'[1]IND 4.2.1'!C74","v":0},{"$f":"'[1]IND 4.2.1'!D74","v":0},{"$f":"'[1]IND 4.2.1'!E74","v":0},{"$f":"'[1]IND 4.2.1'!F74","v":0},{"$f":"'[1]IND 4.2.1'!G74","v":0},{"$f":"'[1]IND 4.2.1'!H74","v":0},{"$f":"'[1]IND 4.2.1'!I74","v":0},{"$f":"'[1]IND 4.2.1'!J74","v":0},0,0,"0",{"$f":"RANK(BZ53,$BZ$11:$BZ$70,0)+COUNTIF(BZ$11:BZ53,BZ53)-1","v":{"$error":"#N/A"}},"0","Techniciens paramédicaux",null,null,null,null,null,null,null,null,null,null,null,null,null,0,0,0,0]
["Pour maladie de longue durée",{"$f":"'[1]IND 2.1.1'!F17+'[1]IND 2.1.1'!G17","v":0},0,{"$f":"'[1]IND 2.1.2'!F17+'[1]IND 2.1.2'!G17","v":0},0,{"$f":"'[1]IND 2.1.3'!F17+'[1]IND 2.1.3'!G17","v":0},0,0,0,null,null,null,null,null,null,null,null,null,null,null,null,null,null,null,null,null,null,null,"Gardes-champêtres",{"$f":"'[1]IND 1.1.1'!$I$304","v":0},{"$f":"'[1]IND 1.2.1'!$K$74","v":0},0,{"$f":"RANK(AF54,$AF$7:$AF$66,0)+COUNTIF(AF$7:AF54,AF54)-1","v":47},47,0,"Gardes-champêtres","C",0,0,0,null,null,"Gardes-champêtres",{"$f":"SUM('[1]IND 3.4.3'!B70:E70)","v":0},0,"0",{"$f":"RANK(AT54,$AT$8:$AT$66,0)+COUNTIF(AT$8:AT54,AT54)-1","v":46},"0","Gardes-champêtres",null,null,null,null,null,null,null,null,34,"Languedoc","Centre de Gestion de l'Hérault",null,null,null,null,null,"Directeurs de police municipale",null,{"$f":"'[1]IND 4.2.1'!C77","v":0},{"$f":"'[1]IND 4.2.1'!D77","v":0},{"$f":"'[1]IND 4.2.1'!E77","v":0},{"$f":"'[1]IND 4.2.1'!F77","v":0},{"$f":"'[1]IND 4.2.1'!G77","v":0},{"$f":"'[1]IND 4.2.1'!H77","v":0},{"$f":"'[1]IND 4.2.1'!I77","v":0},{"$f":"'[1]IND 4.2.1'!J77","v":0},0,0,"0",{"$f":"RANK(BZ54,$BZ$11:$BZ$70,0)+COUNTIF(BZ$11:BZ54,BZ54)-1","v":{"$error":"#N/A"}},"0","Directeurs de police municipale",null,null,null,null,null,null,null,null,null,null,null,null,null,0,0,0,0]
["Pour maladie professionnelle, maladie imputable au \n  service ou à caractère professionnel ",{"$f":"'[1]IND 2.1.1'!F18+'[1]IND 2.1.1'!G18","v":0},0,{"$f":"'[1]IND 2.1.2'!F18+'[1]IND 2.1.2'!G18","v":0},0,{"$f":"'[1]IND 2.1.3'!F18+'[1]IND 2.1.3'!G18","v":0},0,0,0,null,null,null,null,null,null,null,null,null,null,null,null,null,null,null,null,null,null,null,"CONTRÔLEURS, COLONELS",{"$f":"'[1]IND 1.1.1'!$I$313","v":0},{"$f":"'[1]IND 1.2.1'!$K$77","v":0},0,{"$f":"RANK(AF55,$AF$7:$AF$66,0)+COUNTIF(AF$7:AF55,AF55)-1","v":48},48,0,"CONTRÔLEURS, COLONELS","A",0,0,0,null,null,"CONTRÔLEURS, COLONELS",{"$f":"SUM('[1]IND 3.4.3'!B72:E72)","v":0},0,"0",{"$f":"RANK(AT55,$AT$8:$AT$66,0)+COUNTIF(AT$8:AT55,AT55)-1","v":47},"0","CONTRÔLEURS, COLONELS",null,null,null,null,null,null,null,null,48,"Languedoc","Centre de Gestion de la Lozère",null,null,null,null,null,"Chefs de service de police municipale",null,{"$f":"'[1]IND 4.2.1'!C78","v":0},{"$f":"'[1]IND 4.2.1'!D78","v":0},{"$f":"'[1]IND 4.2.1'!E78","v":0},{"$f":"'[1]IND 4.2.1'!F78","v":0},{"$f":"'[1]IND 4.2.1'!G78","v":0},{"$f":"'[1]IND 4.2.1'!H78","v":0},{"$f":"'[1]IND 4.2.1'!I78","v":0},{"$f":"'[1]IND 4.2.1'!J78","v":0},0,0,"0",{"$f":"RANK(BZ55,$BZ$11:$BZ$70,0)+COUNTIF(BZ$11:BZ55,BZ55)-1","v":{"$error":"#N/A"}},"0","Chefs de service de police municipale",null,null,null,null,null,null,null,null,null,null,null,null,null,0,0,0,0]
["Pour maternité et adoption (1)",{"$f":"'[1]IND 2.1.1'!F19+'[1]IND 2.1.1'!G19","v":0},0,{"$f":"'[1]IND 2.1.2'!F19+'[1]IND 2.1.2'!G19","v":0},0,{"$f":"'[1]IND 2.1.3'!F19+'[1]IND 2.1.3'!G19","v":0},0,0,0,null,null,"Médical",null,null,null,null,null,null,null,null,null,null,null,null,null,null,null,null,"Capitaines, commandants, lieutenants-colonels, colonels",{"$f":"'[1]IND 1.1.1'!$I$319","v":0},{"$f":"'[1]IND 1.2.1'!$K$78","v":0},0,{"$f":"RANK(AF56,$AF$7:$AF$66,0)+COUNTIF(AF$7:AF56,AF56)-1","v":49},49,0,"Capitaines, commandants, lieutenants-colonels, colonels","A",0,0,0,null,null,"Capitaines, commandants, lieutenants-colonels, colonels",{"$f":"SUM('[1]IND 3.4.3'!B73:E73)","v":0},0,"0",{"$f":"RANK(AT56,$AT$8:$AT$66,0)+COUNTIF(AT$8:AT56,AT56)-1","v":48},"0","Capitaines, commandants, lieutenants-colonels, colonels",null,null,null,null,null,null,null,null,66,"Languedoc","Centre de Gestion des Pyrénées-Orientales",null,null,null,null,null,"Agents de police municipale",null,{"$f":"'[1]IND 4.2.1'!C79","v":0},{"$f":"'[1]IND 4.2.1'!D79","v":0},{"$f":"'[1]IND 4.2.1'!E79","v":0},{"$f":"'[1]IND 4.2.1'!F79","v":0},{"$f":"'[1]IND 4.2.1'!G79","v":0},{"$f":"'[1]IND 4.2.1'!H79","v":0},{"$f":"'[1]IND 4.2.1'!I79","v":0},{"$f":"'[1]IND 4.2.1'!J79","v":0},0,0,"0",{"$f":"RANK(BZ56,$BZ$11:$BZ$70,0)+COUNTIF(BZ$11:BZ56,BZ56)-1","v":{"$error":"#N/A"}},"0","Agents de police municipale",null,null,null,null,null,null,null,null,null,null,null,null,null,0,0,0,0]
["Pour paternité, accueil de l'enfant et adoption ",{"$f":"'[1]IND 2.1.1'!F20+'[1]IND 2.1.1'!G20","v":0},0,{"$f":"'[1]IND 2.1.2'!F20+'[1]IND 2.1.2'!G20","v":0},0,{"$f":"'[1]IND 2.1.3'!F20+'[1]IND 2.1.3'!G20","v":0},0,0,0,null,"Titulaires",{"$f":"C50+C51+C52+C53+C54+C55","v":0},null,null,null,null,null,null,null,null,null,null,null,null,null,null,null,null,"Médecins, pharmaciens",{"$f":"'[1]IND 1.1.1'!$I$325","v":0},{"$f":"'[1]IND 1.2.1'!$K$79","v":0},0,{"$f":"RANK(AF57,$AF$7:$AF$66,0)+COUNTIF(AF$7:AF57,AF57)-1","v":50},50,0,"Médecins, pharmaciens","A",0,0,0,null,null,"Médecins, pharmaciens",{"$f":"SUM('[1]IND 3.4.3'!B74:E74)","v":0},0,"0",{"$f":"RANK(AT57,$AT$8:$AT$66,0)+COUNTIF(AT$8:AT57,AT57)-1","v":49},"0","Médecins, pharmaciens",null,null,null,null,null,null,null,null,19,"Limousin","Centre de Gestion de la Corrèze",null,null,null,null,null,"Gardes-champêtres",null,{"$f":"'[1]IND 4.2.1'!C80","v":0},{"$f":"'[1]IND 4.2.1'!D80","v":0},{"$f":"'[1]IND 4.2.1'!E80","v":0},{"$f":"'[1]IND 4.2.1'!F80","v":0},{"$f":"'[1]IND 4.2.1'!G80","v":0},{"$f":"'[1]IND 4.2.1'!H80","v":0},{"$f":"'[1]IND 4.2.1'!I80","v":0},{"$f":"'[1]IND 4.2.1'!J80","v":0},0,0,"0",{"$f":"RANK(BZ57,$BZ$11:$BZ$70,0)+COUNTIF(BZ$11:BZ57,BZ57)-1","v":{"$error":"#N/A"}},"0","Gardes-champêtres",null,null,null,null,null,null,null,null,null,null,null,null,null,0,0,0,0]
["Pour autorisation spéciale d'absence (enfant malade, mariage, décès, concours, fonctions électives, participation au Comité d'Oeuvres Sociales, réserviste, pompier volontaire, ...) ou formation particulière (ex : BAFA), hors motif syndical ou de représentation ",{"$f":"'[1]IND 2.1.1'!F21+'[1]IND 2.1.1'!G21","v":0},0,{"$f":"'[1]IND 2.1.2'!F21+'[1]IND 2.1.2'!G21","v":0},0,{"$f":"'[1]IND 2.1.3'!F21+'[1]IND 2.1.3'!G21","v":0},0,0,0,null,"Contractuels E P",{"$f":"E50+E51+E52+E53+E54+E55","v":0},null,null,null,null,null,null,null,null,null,null,null,null,null,null,null,null,"Lieutenants de sapeurs-pompiers professionnels",{"$f":"'[1]IND 1.1.1'!$I$332","v":0},{"$f":"'[1]IND 1.2.1'!$K$80","v":0},0,{"$f":"RANK(AF58,$AF$7:$AF$66,0)+COUNTIF(AF$7:AF58,AF58)-1","v":51},51,0,"Lieutenants de sapeurs-pompiers professionnels","B",0,0,0,null,null,"Lieutenants de sapeurs-pompiers professionnels",{"$f":"SUM('[1]IND 3.4.3'!B75:E75)","v":0},0,"0",{"$f":"RANK(AT58,$AT$8:$AT$66,0)+COUNTIF(AT$8:AT58,AT58)-1","v":50},"0","Lieutenants de sapeurs-pompiers professionnels",null,null,null,null,null,null,null,null,23,"Limousin","Centre de Gestion de la Creuse",null,null,null,null,null,"Contrôleurs, colonels",null,{"$f":"'[1]IND 4.2.1'!C83","v":0},{"$f":"'[1]IND 4.2.1'!D83","v":0},{"$f":"'[1]IND 4.2.1'!E83","v":0},{"$f":"'[1]IND 4.2.1'!F83","v":0},{"$f":"'[1]IND 4.2.1'!G83","v":0},{"$f":"'[1]IND 4.2.1'!H83","v":0},{"$f":"'[1]IND 4.2.1'!I83","v":0},{"$f":"'[1]IND 4.2.1'!J83","v":0},0,0,"0",{"$f":"RANK(BZ58,$BZ$11:$BZ$70,0)+COUNTIF(BZ$11:BZ58,BZ58)-1","v":{"$error":"#N/A"}},"0","Contrôleurs, colonels",null,null,null,null,null,null,null,null,null,null,null,null,null,0,0,0,0]
["Total",{"$f":"SUM(B50:B58)","v":0},0,{"$f":"SUM(D50:D58)","v":0},0,{"$f":"'[1]IND 2.1.3'!F22+'[1]IND 2.1.3'!G22","v":0},0,0,0,null,"Contractuels ENP",{"$f":"G50+G51+G52+G53+G54+G55","v":0},null,null,null,null,null,null,null,null,null,null,null,null,null,null,null,null,"CADRES DE SANTE DES SAPEURS POMPIERS PROFESSIONNELS",{"$f":"'[1]IND 1.1.1'!$I$338","v":0},{"$f":"'[1]IND 1.2.1'!$K$81","v":0},0,{"$f":"RANK(AF59,$AF$7:$AF$66,0)+COUNTIF(AF$7:AF59,AF59)-1","v":52},52,0,"CADRES DE SANTE DES SAPEURS POMPIERS PROFESSIONNELS","A",0,0,0,null,null,"CADRES DE SANTE DES SAPEURS POMPIERS PROFESSIONNELS",{"$f":"SUM('[1]IND 3.4.3'!B76:E76)","v":0},0,"0",{"$f":"RANK(AT59,$AT$8:$AT$66,0)+COUNTIF(AT$8:AT59,AT59)-1","v":51},"0","CADRES DE SANTE DES SAPEURS POMPIERS PROFESSIONNELS",null,null,null,null,null,null,null,null,87,"Limousin","Centre de Gestion de Haute-Vienne",null,null,null,null,null,"Capitaines, commandants, lieutenants-colonels",null,{"$f":"'[1]IND 4.2.1'!C84","v":0},{"$f":"'[1]IND 4.2.1'!D84","v":0},{"$f":"'[1]IND 4.2.1'!E84","v":0},{"$f":"'[1]IND 4.2.1'!F84","v":0},{"$f":"'[1]IND 4.2.1'!G84","v":0},{"$f":"'[1]IND 4.2.1'!H84","v":0},{"$f":"'[1]IND 4.2.1'!I84","v":0},{"$f":"'[1]IND 4.2.1'!J84","v":0},0,0,"0",{"$f":"RANK(BZ59,$BZ$11:$BZ$70,0)+COUNTIF(BZ$11:BZ59,BZ59)-1","v":{"$error":"#N/A"}},"0","Capitaines, commandants, lieutenants-colonels",null,null,null,null,null,null,null,null,null,null,null,null,null,0,0,0,0]
["Effectifs",{"$f":"'[1]IND 1.1.1'!$I$382","v":0},null,{"$f":"'[1]IND 1.2.1'!$K$96","v":0},null,{"$f":"'[1]IND 1.3.1'!$F$38","v":0},null,{"$f":"SUM(B60,D60)","v":0},null,null,"Total",{"$f":"I50+I51+I52+I53+I54+I55","v":0},null,null,null,null,null,null,null,null,null,null,null,null,null,null,null,null,"Infirmiers de sapeurs-pompiers professionnels",{"$f":"'[1]IND 1.1.1'!$I$344","v":0},{"$f":"'[1]IND 1.2.1'!$K$82","v":0},0,{"$f":"RANK(AF60,$AF$7:$AF$66,0)+COUNTIF(AF$7:AF60,AF60)-1","v":53},53,0,"Infirmiers de sapeurs-pompiers professionnels","B",0,0,0,null,null,"Infirmiers de sapeurs-pompiers professionnels",{"$f":"SUM('[1]IND 3.4.3'!B77:E77)","v":0},0,"0",{"$f":"RANK(AT60,$AT$8:$AT$66,0)+COUNTIF(AT$8:AT60,AT60)-1","v":52},"0","Infirmiers de sapeurs-pompiers professionnels",null,null,null,null,null,null,null,null,54,"Lorraine","Centre de Gestion de Meurthe-et-Moselle",null,null,null,null,null,"Médecins, pharmaciens",null,{"$f":"'[1]IND 4.2.1'!C85","v":0},{"$f":"'[1]IND 4.2.1'!D85","v":0},{"$f":"'[1]IND 4.2.1'!E85","v":0},{"$f":"'[1]IND 4.2.1'!F85","v":0},{"$f":"'[1]IND 4.2.1'!G85","v":0},{"$f":"'[1]IND 4.2.1'!H85","v":0},{"$f":"'[1]IND 4.2.1'!I85","v":0},{"$f":"'[1]IND 4.2.1'!J85","v":0},0,0,"0",{"$f":"RANK(BZ60,$BZ$11:$BZ$70,0)+COUNTIF(BZ$11:BZ60,BZ60)-1","v":{"$error":"#N/A"}},"0","Médecins, pharmaciens",null,null,null,null,null,null,null,null,null,null,null,null,null,0,0,0,0]
[null,null,null,null,null,null,null,null,null,null,null,null,null,null,null,null,null,null,null,null,null,null,null,null,null,null,null,null,"Sous officiers de sapeurs-pompiers professionnels",{"$f":"'[1]IND 1.1.1'!$I$349","v":0},{"$f":"'[1]IND 1.2.1'!$K$83","v":0},0,{"$f":"RANK(AF61,$AF$7:$AF$66,0)+COUNTIF(AF$7:AF61,AF61)-1","v":54},54,0,"Sous officiers de sapeurs-pompiers professionnels","C",0,0,0,null,null,"Sous officiers de sapeurs-pompiers professionnels",{"$f":"SUM('[1]IND 3.4.3'!B78:E78)","v":0},0,"0",{"$f":"RANK(AT61,$AT$8:$AT$66,0)+COUNTIF(AT$8:AT61,AT61)-1","v":53},"0","Sous officiers de sapeurs-pompiers professionnels",null,null,null,null,null,null,null,null,55,"Lorraine","Centre de Gestion de la Meuse",null,null,null,null,null,"Lieutenants",null,{"$f":"'[1]IND 4.2.1'!C86","v":0},{"$f":"'[1]IND 4.2.1'!D86","v":0},{"$f":"'[1]IND 4.2.1'!E86","v":0},{"$f":"'[1]IND 4.2.1'!F86","v":0},{"$f":"'[1]IND 4.2.1'!G86","v":0},{"$f":"'[1]IND 4.2.1'!H86","v":0},{"$f":"'[1]IND 4.2.1'!I86","v":0},{"$f":"'[1]IND 4.2.1'!J86","v":0},0,0,"0",{"$f":"RANK(BZ61,$BZ$11:$BZ$70,0)+COUNTIF(BZ$11:BZ61,BZ61)-1","v":{"$error":"#N/A"}},"0","Lieutenants",null,null,null,null,null,null,null,null,null,null,null,null,null,0,1,0,0]
["Mouvement",null,null,null,null,null,null,null,null,null,null,null,null,null,null,null,null,null,null,null,null,null,null,null,null,null,null,null,"Sapeurs et caporaux de sapeurs-pompiers professionnels",{"$f":"'[1]IND 1.1.1'!$I$356","v":0},{"$f":"'[1]IND 1.2.1'!$K$84","v":0},0,{"$f":"RANK(AF62,$AF$7:$AF$66,0)+COUNTIF(AF$7:AF62,AF62)-1","v":55},55,0,"Sapeurs et caporaux de sapeurs-pompiers professionnels","C",0,0,0,null,null,"Sapeurs et caporaux de sapeurs-pompiers professionnels",{"$f":"SUM('[1]IND 3.4.3'!B79:E79)","v":0},{"$f":"AF62","v":0},"0",{"$f":"RANK(AT62,$AT$8:$AT$66,0)+COUNTIF(AT$8:AT62,AT62)-1","v":54},"0","Sapeurs et caporaux de sapeurs-pompiers professionnels",null,null,null,null,null,null,null,null,57,"Lorraine","Centre de Gestion de la Moselle",null,null,null,null,null,"Infirmiers d'encadrement",null,{"$f":"'[1]IND 4.2.1'!C87","v":0},{"$f":"'[1]IND 4.2.1'!D87","v":0},{"$f":"'[1]IND 4.2.1'!E87","v":0},{"$f":"'[1]IND 4.2.1'!F87","v":0},{"$f":"'[1]IND 4.2.1'!G87","v":0},{"$f":"'[1]IND 4.2.1'!H87","v":0},{"$f":"'[1]IND 4.2.1'!I87","v":0},{"$f":"'[1]IND 4.2.1'!J87","v":0},0,0,"0",{"$f":"RANK(BZ62,$BZ$11:$BZ$70,0)+COUNTIF(BZ$11:BZ62,BZ62)-1","v":{"$error":"#N/A"}},"0","Infirmiers d'encadrement",null,null,null,null,null,null,null,null,null,null,null,null,null,0,2,0,0]
["Mouvement fonctionnaires :",null,null,{"$f":"IF(('[1]IND 1.1.1'!$I$382+H68+H69-H65+H66-H70)=0,0%,('[1]IND 1.1.1'!$I$382-('[1]IND 1.1.1'!$I$382+H68+H69-H65-H66-H70))/('[1]IND 1.1.1'!$I$382+H68+H69-H65+H66-H70))","v":0},null,null,null,null,null,null,null,null,null,null,null,null,null,null,null,null,null,null,null,null,null,null,null,null,"Animateurs",{"$f":"'[1]IND 1.1.1'!$I$366","v":0},{"$f":"'[1]IND 1.2.1'!$K$87","v":0},0,{"$f":"RANK(AF63,$AF$7:$AF$66,0)+COUNTIF(AF$7:AF63,AF63)-1","v":56},56,0,"Animateurs","B",0,0,0,null,null,"Animateurs",{"$f":"SUM('[1]IND 3.4.3'!B81:E81)","v":0},0,"0",{"$f":"RANK(AT63,$AT$8:$AT$66,0)+COUNTIF(AT$8:AT63,AT63)-1","v":55},"0","Animateurs",null,null,null,null,null,null,null,null,88,"Lorraine","Centre de Gestion des Vosges",null,null,null,null,null,"Infirmiers",null,{"$f":"'[1]IND 4.2.1'!C88","v":0},{"$f":"'[1]IND 4.2.1'!D88","v":0},{"$f":"'[1]IND 4.2.1'!E88","v":0},{"$f":"'[1]IND 4.2.1'!F88","v":0},{"$f":"'[1]IND 4.2.1'!G88","v":0},{"$f":"'[1]IND 4.2.1'!H88","v":0},{"$f":"'[1]IND 4.2.1'!I88","v":0},{"$f":"'[1]IND 4.2.1'!J88","v":0},0,0,"0",{"$f":"RANK(BZ63,$BZ$11:$BZ$70,0)+COUNTIF(BZ$11:BZ63,BZ63)-1","v":{"$error":"#N/A"}},"0","Infirmiers",null,null,null,null,null,null,null,null,null,null,null,null,null,0,0,0,0]
["Mouvement contractuels :",null,null,{"$f":"IF(('[1]IND 1.2.1'!$K$96+H71+H72+H66-H67-H73)=0,0%,('[1]IND 1.2.1'!$K$96-('[1]IND 1.2.1'!$K$96+H71+H72+H66-H67-H73))/('[1]IND 1.2.1'!$K$96+H71+H72+H66-H67-H73))","v":0},null,"Mouvement des effectifs",null,null,null,null,null,null,"Taux de rotation RPS",null,null,null,null,null,null,null,null,null,null,null,null,null,null,null,"Adjoints territoriaux d'animation",{"$f":"'[1]IND 1.1.1'!$I$373","v":0},{"$f":"'[1]IND 1.2.1'!$K$88","v":0},0,{"$f":"RANK(AF64,$AF$7:$AF$66,0)+COUNTIF(AF$7:AF64,AF64)-1","v":57},57,0,"Adjoints territoriaux d'animation","C",0,0,0,null,null,"Adjoints territoriaux d'animation",{"$f":"SUM('[1]IND 3.4.3'!B82:E82)","v":0},0,"0",{"$f":"RANK(AT64,$AT$8:$AT$66,0)+COUNTIF(AT$8:AT64,AT64)-1","v":56},"0","Adjoints territoriaux d'animation",null,null,null,null,null,null,null,null,9,"Midi-Pyrénées","Centre de Gestion de l'Ariège",null,null,null,null,null,"Sous-officiers",null,{"$f":"'[1]IND 4.2.1'!C89","v":0},{"$f":"'[1]IND 4.2.1'!D89","v":0},{"$f":"'[1]IND 4.2.1'!E89","v":0},{"$f":"'[1]IND 4.2.1'!F89","v":0},{"$f":"'[1]IND 4.2.1'!G89","v":0},{"$f":"'[1]IND 4.2.1'!H89","v":0},{"$f":"'[1]IND 4.2.1'!I89","v":0},{"$f":"'[1]IND 4.2.1'!J89","v":0},0,0,"0",{"$f":"RANK(BZ64,$BZ$11:$BZ$70,0)+COUNTIF(BZ$11:BZ64,BZ64)-1","v":{"$error":"#N/A"}},"0","Sous-officiers",null,null,null,null,null,null,null,null,null,null,null,null,null,0,0,0,0]
[null,null,null,null,null,1,"Arrivées de titulaires ou de stagiaires \n- Recrutement direct\n- Voie de concours\n- Intégration directe\n- Voie de mutation autres coll\n- Voie de détachement\n- Transfert de compétence",{"$f":"'[1]IND 1.5.2'!$B$97+'[1]IND 1.5.2'!$F$97+'[1]IND 1.5.2'!$I$97+'[1]IND 1.5.2'!$J$97+'[1]IND 1.5.2'!$K$97+'[1]IND 1.5.2'!$L$97+'[1]IND 1.5.2'!$M$97+'[1]IND 1.5.2'!$N$97+'[1]IND 1.5.2'!$O$97","v":0},null,null,null,null,null,{"$f":"((K67+K68)/2)/((D66+D67)/2)","v":{"$error":"#DIV/0!"}},null,null,null,null,null,null,null,null,null,null,null,null,null,null,"Agent territorial de Mayotte",{"$f":"'[1]IND 1.1.1'!$I$379","v":0},{"$f":"'[1]IND 1.2.1'!$K$93","v":0},0,{"$f":"RANK(AF65,$AF$7:$AF$66,0)+COUNTIF(AF$7:AF65,AF65)-1","v":58},58,0,"Agent territorial de Mayotte",null,0,0,0,null,null,"Agent territorial de Mayotte",{"$f":"SUM('[1]IND 3.4.3'!B85:E85)","v":0},0,"0",{"$f":"RANK(AT65,$AT$8:$AT$66,0)+COUNTIF(AT$8:AT65,AT65)-1","v":57},"0","Agent territorial de Mayotte",null,null,null,null,null,null,null,null,12,"Midi-Pyrénées","Centre de Gestion de l'Aveyron",null,null,null,null,null,"Sapeurs et caporaux",null,{"$f":"'[1]IND 4.2.1'!C90","v":0},{"$f":"'[1]IND 4.2.1'!D90","v":0},{"$f":"'[1]IND 4.2.1'!E90","v":0},{"$f":"'[1]IND 4.2.1'!F90","v":0},{"$f":"'[1]IND 4.2.1'!G90","v":0},{"$f":"'[1]IND 4.2.1'!H90","v":0},{"$f":"'[1]IND 4.2.1'!I90","v":0},{"$f":"'[1]IND 4.2.1'!J90","v":0},0,0,"0",{"$f":"RANK(BZ65,$BZ$11:$BZ$70,0)+COUNTIF(BZ$11:BZ65,BZ65)-1","v":{"$error":"#N/A"}},"0","Sapeurs et caporaux",null,null,null,null,null,null,null,null,null,null,null,null,null,0,694,0,0]
["Effectif rémunéré de la collectivité au 31/12/2018",null,null,{"$f":"'[1]IND 1.1.1'!$I$382+'[1]IND 1.2.1'!$K$96","v":0},null,"1bis","Stagiairisation de contractuels de la collectivité + art 38",{"$f":"'[1]IND 1.5.2'!$H$97+'[1]IND 1.5.2'!$G$97+'[1]IND 1.5.2'!$D$97","v":0},null,"Emploi permanent",null,null,null,null,null,null,null,null,null,null,null,null,null,null,null,null,null,null,"Ouvrier territorial de Mayotte",{"$f":"'[1]IND 1.1.1'!$I$380","v":0},{"$f":"'[1]IND 1.2.1'!$K$94","v":0},0,{"$f":"RANK(AF66,$AF$7:$AF$66,0)+COUNTIF(AF$7:AF66,AF66)-1","v":59},59,0,"Ouvrier territorial de Mayotte",null,0,0,0,null,null,"Ouvrier territorial de Mayotte",{"$f":"SUM('[1]IND 3.4.3'!B86:E86)","v":0},0,"0",{"$f":"RANK(AT66,$AT$8:$AT$66,0)+COUNTIF(AT$8:AT66,AT66)-1","v":58},"0","Ouvrier territorial de Mayotte",null,null,null,null,null,null,null,null,31,"Midi-Pyrénées","Centre de Gestion de Haute-Garonne",null,null,null,null,null,"Animateurs",null,{"$f":"'[1]IND 4.2.1'!C93","v":0},{"$f":"'[1]IND 4.2.1'!D93","v":0},{"$f":"'[1]IND 4.2.1'!E93","v":0},{"$f":"'[1]IND 4.2.1'!F93","v":0},{"$f":"'[1]IND 4.2.1'!G93","v":0},{"$f":"'[1]IND 4.2.1'!H93","v":0},{"$f":"'[1]IND 4.2.1'!I93","v":0},{"$f":"'[1]IND 4.2.1'!J93","v":0},0,0,"0",{"$f":"RANK(BZ66,$BZ$11:$BZ$70,0)+COUNTIF(BZ$11:BZ66,BZ66)-1","v":{"$error":"#N/A"}},"0","Animateurs",null,null,null,null,null,null,null,null,null,null,null,null,null,31,0,0.90322580645161288,1]
["Effectif rémunéré de la collectivité au 31/12/2017",null,null,{"$f":"D66-(H65+H67+H70+H73+(H66-E96))+(H68+H69+H71+H72)","v":0},null,2,"Arrivées de contractuels",{"$f":"'[1]IND 1.5.3'!$F$11+'[1]IND 1.5.3'!$F$101","v":0},null,"Arrivées :",{"$f":"(H65+H67+H70+H73+(H66-E96))","v":0},null,null,null,null,null,null,null,null,null,null,null,null,{"$f":"IF(X66=\"Oui\",\"La collectivité cotise auprès de Pôle Emploi pour l'assurance chômage de ses agents contractuels\",IF(X66=\"non\",\"La collectivité ne cotise pas auprès de Pôle Emploi pour l'assurance chômage de ses agents contractuels\",\" \"))","v":" "},null,null,null,null,null,{"$f":"SUM(AD8:AD66)","v":0},{"$f":"SUM(AE8:AE66)","v":0},{"$f":"SUM(AF8:AF66)","v":0},null,null,null,null,null,null,null,null,null,null,"SOMME",{"$f":"SUM(AR8:AR66)","v":0},0,"0",{"$f":"RANK(AT67,$N$2:$N$55,0)+COUNTIF(AT$2:AT67,AT67)-1","v":{"$error":"#DIV/0!"}},"0","SOMME",null,null,null,null,null,null,null,null,32,"Midi-Pyrénées","Centre de Gestion du Gers",null,null,null,null,null,"Adjoints d'animation",null,{"$f":"'[1]IND 4.2.1'!C94","v":0},{"$f":"'[1]IND 4.2.1'!D94","v":0},{"$f":"'[1]IND 4.2.1'!E94","v":0},{"$f":"'[1]IND 4.2.1'!F94","v":0},{"$f":"'[1]IND 4.2.1'!G94","v":0},{"$f":"'[1]IND 4.2.1'!H94","v":0},{"$f":"'[1]IND 4.2.1'!I94","v":0},{"$f":"'[1]IND 4.2.1'!J94","v":0},0,0,"0",{"$f":"RANK(BZ67,$BZ$11:$BZ$70,0)+COUNTIF(BZ$11:BZ67,BZ67)-1","v":{"$error":"#N/A"}},"0","Adjoints d'animation"]
[null,null,null,{"$f":"IF(D67=0,0,(D66-D67)/D67)","v":0},null,3,"Départ définitifs de titulaires ou de stagaires",{"$f":"SUM(D85:D96)","v":0},null,"Départs :",{"$f":"+(H68+H69+H71+H72)","v":0},null,null,null,null,null,null,null,null,null,null,null,null,null,null,null,null,null,null,null,null,null,null,null,null,null,null,null,null,null,null,null,null,null,null,null,null,null,null,null,null,null,null,null,null,null,null,46,"Midi-Pyrénées","Centre de Gestion du Lot",null,null,null,null,null,"Agent territorial de Mayotte",null,{"$f":"'[1]IND 4.2.1'!C99","v":0},{"$f":"'[1]IND 4.2.1'!D99","v":0},{"$f":"'[1]IND 4.2.1'!E99","v":0},{"$f":"'[1]IND 4.2.1'!F99","v":0},{"$f":"'[1]IND 4.2.1'!G99","v":0},{"$f":"'[1]IND 4.2.1'!H99","v":0},{"$f":"'[1]IND 4.2.1'!I99","v":0},{"$f":"'[1]IND 4.2.1'!J99","v":0},0,0,"0",{"$f":"RANK(BZ68,$BZ$11:$BZ$70,0)+COUNTIF(BZ$11:BZ68,BZ68)-1","v":{"$error":"#N/A"}},"0","Agent territorial de Mayotte"]
["Fonctionnaire 31/12/2017",{"$f":"('[1]IND 1.1.1'!$I$382+H68+H69-H65-H66-H70)","v":0},null,null,null,"3bis","Départ temporaires de titulaires ou de stagires",{"$f":"SUM(D77:D84)","v":0},null,null,null,null,null,null,null,null,null,null,null,null,null,null,null,null,null,null,null,null,null,null,null,null,null,null,null,null,null,null,null,null,null,null,null,null,null,null,null,null,null,null,null,null,null,null,null,null,null,65,"Midi-Pyrénées","Centre de Gestion des Hautes-Pyrénées",null,null,null,null,null,"Ouvrier territorial de Mayotte",null,{"$f":"'[1]IND 4.2.1'!C100","v":0},{"$f":"'[1]IND 4.2.1'!D100","v":0},{"$f":"'[1]IND 4.2.1'!E100","v":0},{"$f":"'[1]IND 4.2.1'!F100","v":0},{"$f":"'[1]IND 4.2.1'!G100","v":0},{"$f":"'[1]IND 4.2.1'!H100","v":0},{"$f":"'[1]IND 4.2.1'!I100","v":0},{"$f":"'[1]IND 4.2.1'!J100","v":0},0,0,"0",{"$f":"RANK(BZ69,$BZ$11:$BZ$70,0)+COUNTIF(BZ$11:BZ69,BZ69)-1","v":{"$error":"#N/A"}},"0","Ouvrier territorial de Mayotte"]
["Contractuels 31/12/2017",{"$f":"('[1]IND 1.2.1'!$K$96+H71+H72+H66-H67-H73)","v":0},null,null,null,"3ter","Retours de titulaires stagiaires",{"$f":"'[1]IND 1.5.2'!$P$97+'[1]IND 1.5.2'!$Q$97","v":0},null,null,null,null,null,null,null,null,null,null,null,null,null,null,null,null,null,null,null,null,null,null,null,null,null,null,null,null,null,null,null,null,null,null,null,null,null,null,null,null,null,null,null,null,null,null,null,null,null,81,"Midi-Pyrénées","Centre de Gestion du Tarn",null,null,null,null,null,"Hors filières (pour les agents non permanents)",null,{"$f":"'[1]IND 4.2.1'!C101","v":0},{"$f":"'[1]IND 4.2.1'!D101","v":0},{"$f":"'[1]IND 4.2.1'!E101","v":0},{"$f":"'[1]IND 4.2.1'!F101","v":0},{"$f":"'[1]IND 4.2.1'!G101","v":0},{"$f":"'[1]IND 4.2.1'!H101","v":0},{"$f":"'[1]IND 4.2.1'!I101","v":0},{"$f":"'[1]IND 4.2.1'!J101","v":0},0,0,"0",{"$f":"RANK(BZ70,$BZ$11:$BZ$70,0)+COUNTIF(BZ$11:BZ70,BZ70)-1","v":{"$error":"#N/A"}},"0","Hors filières (pour les agents non permanents)"]
[null,null,null,null,null,4,"Départs définitifs de contractuels",{"$f":"SUM(E85:E95)","v":0},null,null,null,null,null,null,null,null,null,null,null,null,null,null,null,null,null,null,null,null,null,null,null,null,null,null,null,null,null,null,null,null,null,null,null,null,null,null,null,null,null,null,null,null,null,null,null,null,null,82,"Midi-Pyrénées","Centre de Gestion du Tarn-et-Garonne",null,null,null,null,null,"TOTAL",null,{"$f":"'[1]IND 4.2.1'!C102","v":0},{"$f":"'[1]IND 4.2.1'!D102","v":0},{"$f":"'[1]IND 4.2.1'!E102","v":0},{"$f":"'[1]IND 4.2.1'!F102","v":0},{"$f":"'[1]IND 4.2.1'!G102","v":0},{"$f":"'[1]IND 4.2.1'!H102","v":0},{"$f":"'[1]IND 4.2.1'!I102","v":0},{"$f":"'[1]IND 4.2.1'!J102","v":0},{"$f":"BP71+BQ71+BT71+BU71","v":0},0,{"$f":"IF($BX$71=0,\"0\",BX71/$BX$71)","v":"0"},null,{"$f":"IF($BX$71=0,\"0\",BX71/$BX$71)","v":"0"}]
[null,null,null,null,null,"4bis","Départs temporaires de contractuels",{"$f":"SUM(E77:E84)","v":0},null,null,null,null,null,null,null,null,null,null,null,null,null,null,null,null,null,null,null,null,null,null,null,null,null,null,null,null,null,null,null,null,null,null,null,null,null,null,null,null,null,null,null,null,null,null,null,null,null,59,"Nord","Centre de Gestion du Nord"]
[null,null,null,null,null,"4ter","Retours de contractuels",{"$f":"'[1]IND 1.5.3'!$F$12+'[1]IND 1.5.3'!$F$13","v":0},null,null,null,null,null,null,null,null,null,null,null,null,null,null,null,null,null,null,null,null,null,null,null,null,null,null,null,null,null,null,null,null,null,null,null,null,null,null,null,null,null,null,null,null,null,null,null,null,null,62,"Nord","Centre de Gestion du Pas-de-Calais"]
[null,null,null,null,null,null,null,null,null,null,null,null,null,null,null,null,null,null,null,null,null,null,null,null,null,null,null,null,null,null,null,null,null,null,null,null,null,null,null,null,null,null,null,null,null,null,null,null,null,null,null,null,null,null,null,null,null,50,"Normandie","Centre de Gestion de la Manche"]
["Départs",null,null,null,null,null,null,null,null,null,null,null,null,null,null,null,null,null,null,null,null,null,null,null,null,null,null,null,null,null,null,null,null,null,null,null,null,null,null,null,null,null,null,null,null,null,null,null,null,null,null,null,null,null,null,null,null,44,"Pays-de-la-Loire","Centre de Gestion de Loire-Atlantique"]
[null,null,null,"Fonctionnaires","Contractuels",null,null,null,null,null,null,null,null,null,null,null,null,null,null,null,null,null,null,null,null,null,null,null,null,null,null,null,null,null,null,null,null,null,null,null,null,null,null,null,null,null,null,null,null,null,null,null,null,null,null,null,null,49,"Pays-de-la-Loire","Centre de Gestion de Maine-et-Loire"]
["Départs \"temporaires\"","Mise à disposition",null,{"$f":"'[1]IND 1.5.0'!G21+'[1]IND 1.5.0'!L21","v":0},{"$f":"'[1]IND 1.5.0'!$G$45+'[1]IND 1.5.0'!$L$45","v":0},null,null,null,null,null,null,null,null,null,null,null,null,null,null,null,null,null,null,null,null,null,null,null,null,null,null,null,null,null,null,null,null,null,null,null,null,null,null,null,null,null,null,null,null,null,null,null,null,null,null,null,null,53,"Pays-de-la-Loire","Centre de Gestion de la Mayenne"]
[null,"Décharge de service",null,{"$f":"'[1]IND 1.5.0'!G22+'[1]IND 1.5.0'!L22","v":0},null,null,null,null,null,null,null,null,null,null,null,null,null,null,null,null,null,null,null,null,null,null,null,null,null,null,null,null,null,null,null,null,null,null,null,null,null,null,null,null,null,null,null,null,null,null,null,null,null,null,null,null,null,72,"Pays-de-la-Loire","Centre de Gestion de la Sarthe"]
[null,"Congé formation rémunéré",null,{"$f":"'[1]IND 1.5.0'!G23+'[1]IND 1.5.0'!L23","v":0},{"$f":"'[1]IND 1.5.0'!G46+'[1]IND 1.5.0'!L46","v":0},null,null,null,null,null,null,null,null,null,null,null,null,null,null,null,null,null,null,null,null,null,null,null,null,null,null,null,null,null,null,null,null,null,null,null,null,null,null,null,null,null,null,null,null,null,null,null,null,null,null,null,null,85,"Pays-de-la-Loire","Centre de Gestion de la Vendée"]
[null,"Congé formation > à un an",null,{"$f":"'[1]IND 1.5.0'!G24+'[1]IND 1.5.0'!L24","v":0},{"$f":"'[1]IND 1.5.0'!G47+'[1]IND 1.5.0'!L47","v":0},null,null,null,null,null,null,null,null,null,null,null,null,null,null,null,null,null,null,null,null,null,null,null,null,null,null,null,null,null,null,null,null,null,null,null,null,null,null,null,null,null,null,null,null,null,null,null,null,null,null,null,null,2,"Picardie","Centre de Gestion de l'Aisne"]
[null,"Détachement",null,{"$f":"'[1]IND 1.5.0'!G25+'[1]IND 1.5.0'!L25","v":0},null,null,null,null,null,null,null,null,null,null,null,null,null,null,null,null,null,null,null,null,null,null,null,null,null,null,null,null,null,null,null,null,null,null,null,null,null,null,null,null,null,null,null,null,null,null,null,null,null,null,null,null,null,60,"Picardie","Centre de Gestion de l'Oise"]
[null,"Mise en disponibilité",null,{"$f":"'[1]IND 1.5.0'!G26+'[1]IND 1.5.0'!L26","v":0},null,null,null,null,null,null,null,null,null,null,null,null,null,null,null,null,null,null,null,null,null,null,null,null,null,null,null,null,null,null,null,null,null,null,null,null,null,null,null,null,null,null,null,null,null,null,null,null,null,null,null,null,null,80,"Picardie","Centre de Gestion de la Somme"]
[null,"Congé parental",null,{"$f":"'[1]IND 1.5.0'!G27+'[1]IND 1.5.0'!L27","v":0},{"$f":"'[1]IND 1.5.0'!G48+'[1]IND 1.5.0'!L48","v":0},null,null,null,null,null,null,{"$f":"IF('[1]IND 3.1.1-3.4.2'!B67=0,\" \",\nIF('[1]IND 3.1.1-3.4.2'!B67=1,\"En 2018, \"&'[1]IND 3.1.1-3.4.2'!B67&\" allocataire a bénéficié de l'indemnisation du chômage\",\nIF('[1]IND 3.1.1-3.4.2'!B67>1,\"En 2018, \"&'[1]IND 3.1.1-3.4.2'!B67&\" allocataires ont bénéficié de l'indemnisation du chômage\")))","v":" "},null,null,null,null,null,null,null,null,null,null,null,null,null,null,null,null,null,null,null,null,null,null,null,null,null,null,null,null,null,null,null,null,null,null,null,null,null,null,null,null,null,null,null,null,null,16,"Poitou-Charente","Centre de Gestion de la Charente"]
[null,"Congés sans traitement",null,null,{"$f":"'[1]IND 1.5.0'!G49+'[1]IND 1.5.0'!L49","v":0},null,null,null,null,null,null,null,null,null,null,null,null,null,null,null,null,null,null,null,null,null,null,null,null,null,null,null,null,null,null,null,null,null,null,null,null,null,null,null,null,null,null,null,null,null,null,null,null,null,null,null,null,17,"Poitou-Charente","Centre de Gestion de la Charente Maritime"]
["Départs  \"définitifs\"","Mutation",null,{"$f":"'[1]IND 1.5.0'!G28+'[1]IND 1.5.0'!L28","v":0},null,null,null,null,null,null,null,null,null,null,null,null,null,null,null,null,null,null,null,null,null,null,null,null,null,null,null,null,null,null,null,null,null,null,null,null,null,null,null,null,null,null,null,null,null,null,null,null,null,null,null,null,null,79,"Poitou-Charente","Centre de Gestion des Deux-Sèvres"]
[null,"Fin de détachement ",null,{"$f":"'[1]IND 1.5.0'!G29+'[1]IND 1.5.0'!L29","v":0},null,null,null,null,null,null,null,null,null,null,null,null,null,null,null,null,null,null,null,null,null,null,null,null,null,null,null,null,null,null,null,null,null,null,null,null,null,null,null,null,null,null,null,null,null,null,null,null,null,null,null,null,null,86,"Poitou-Charente","Centre de Gestion de la Vienne"]
[null,"Décharge d'emploi et de fonction",null,{"$f":"'[1]IND 1.5.0'!G30+'[1]IND 1.5.0'!L30","v":0},null,null,null,null,null,null,null,null,null,null,null,null,null,null,null,null,null,null,null,null,null,null,null,null,null,null,null,null,null,null,null,null,null,null,null,null,null,null,null,null,null,null,null,null,null,null,null,null,null,null,null,null,null,4,"Provence-Alpes-Côte d'Azur","Centre de Gestion des Alpes de Haute-Provence"]
[null,"Agent pris en charge par le CNFPT ou le CDG",null,{"$f":"'[1]IND 1.5.0'!G31+'[1]IND 1.5.0'!L31","v":0},null,null,null,null,null,null,null,null,null,null,null,null,null,null,null,null,null,null,null,null,null,null,null,null,null,null,null,null,null,null,null,null,null,null,null,null,null,null,null,null,null,null,null,null,null,null,null,null,null,null,null,null,null,5,"Provence-Alpes-Côte d'Azur","Centre de Gestion des Hautes-Alpes"]
[null,"Démission",null,{"$f":"'[1]IND 1.5.0'!G32+'[1]IND 1.5.0'!L32","v":0},{"$f":"'[1]IND 1.5.0'!G50+'[1]IND 1.5.0'!L50","v":0},null,null,null,null,null,null,null,null,null,null,null,null,null,null,null,null,null,null,null,null,null,null,null,null,null,null,null,null,null,null,null,null,null,null,null,null,null,null,null,null,null,null,null,null,null,null,null,null,null,null,null,null,6,"Provence-Alpes-Côte d'Azur","Centre de Gestion des Alpes-Maritimes"]
[null,"Fin de contrats",null,null,{"$f":"'[1]IND 1.5.0'!G51+'[1]IND 1.5.0'!L51","v":0},null,null,null,null,null,null,null,null,null,null,null,null,null,null,null,null,null,null,null,null,null,null,null,null,null,null,null,null,null,null,null,null,null,null,null,null,null,null,null,null,null,null,null,null,null,null,null,null,null,null,null,null,13,"Provence-Alpes-Côte d'Azur","Centre de Gestion des Bouches du Rhône"]
[null,"Départ à la retraite",null,{"$f":"'[1]IND 1.5.0'!G33+'[1]IND 1.5.0'!L33","v":0},{"$f":"'[1]IND 1.5.0'!G52+'[1]IND 1.5.0'!L52","v":0},null,null,null,null,null,null,null,null,null,null,null,null,null,null,null,null,null,null,null,null,null,null,null,null,null,null,null,null,null,null,null,null,null,null,null,null,null,null,null,null,null,null,null,null,null,null,null,null,null,null,null,null,83,"Provence-Alpes-Côte d'Azur","Centre de Gestion du Var"]
[null,"Licenciement",null,{"$f":"'[1]IND 1.5.0'!G34+'[1]IND 1.5.0'!L34","v":0},{"$f":"'[1]IND 1.5.0'!G53+'[1]IND 1.5.0'!L53","v":0},null,null,null,null,null,null,null,null,null,null,null,null,null,null,null,null,null,null,null,null,null,null,null,null,null,null,null,null,null,null,null,null,null,null,null,null,null,null,null,null,null,null,null,null,null,null,null,null,null,null,null,null,84,"Provence-Alpes-Côte d'Azur","Centre de Gestion du Vaucluse"]
[null,"Décès",null,{"$f":"'[1]IND 1.5.0'!G35+'[1]IND 1.5.0'!L35","v":0},{"$f":"'[1]IND 1.5.0'!G54+'[1]IND 1.5.0'!L54","v":0},null,null,null,null,null,null,null,null,null,null,null,null,null,null,null,null,null,null,null,null,null,null,null,null,null,null,null,null,null,null,null,null,null,null,null,null,null,null,null,null,null,null,null,null,null,null,null,null,null,null,null,null,1,"Rhône-Alpes","Centre de Gestion de l'Ain"]
[null,"Autres cas",null,{"$f":"'[1]IND 1.5.0'!G36+'[1]IND 1.5.0'!L36","v":0},{"$f":"'[1]IND 1.5.0'!G55+'[1]IND 1.5.0'!L55","v":0},null,null,null,null,null,null,null,null,null,null,null,null,null,null,null,null,null,null,null,null,null,null,null,null,null,null,null,null,null,null,null,null,null,null,null,null,null,null,null,null,null,null,null,null,null,null,null,null,null,null,null,null,7,"Rhône-Alpes","Centre de Gestion de l'Ardèche"]
[null,"Transfert de compétence",null,{"$f":"'[1]IND 1.5.0'!G37+'[1]IND 1.5.0'!L37","v":0},{"$f":"'[1]IND 1.5.0'!$G$56+'[1]IND 1.5.0'!$L$56","v":0},null,null,null,null,null,null,null,null,null,null,null,null,null,null,null,null,null,null,null,null,null,null,null,null,null,null,null,null,null,null,null,null,null,null,null,null,null,null,null,null,null,null,null,null,null,null,null,null,null,null,null,null,26,"Rhône-Alpes","Centre de Gestion de la Drôme"]
[null,"Nomimation stagiaire au sein de la collectivité",null,null,{"$f":"'[1]IND 1.5.0'!$G$57+'[1]IND 1.5.0'!$L$57","v":0},null,null,null,null,null,null,null,null,null,null,null,null,null,null,null,null,null,null,null,null,null,null,null,null,null,null,null,null,null,null,null,null,null,null,null,null,null,null,null,null,null,null,null,null,null,null,null,null,null,null,null,null,38,"Rhône-Alpes","Centre de Gestion de l'Isère"]
[null,"Totaux",null,{"$f":"SUM(D77:D96)","v":0},{"$f":"SUM(E77:E96)","v":0},null,null,null,null,null,null,null,null,null,null,null,null,null,null,null,null,null,null,null,null,null,null,null,null,null,null,null,null,null,null,null,null,null,null,null,null,null,null,null,null,null,null,null,null,null,null,null,null,null,null,null,null,42,"Rhône-Alpes","Centre de Gestion de la Loire"]
[null,null,null,{"$f":"SUM(D77:D95)","v":0},{"$f":"SUM(E77:E95)","v":0},null,null,null,null,null,null,null,null,null,null,null,null,null,null,null,null,null,null,null,null,null,null,null,null,null,null,null,null,null,null,null,null,null,null,null,null,null,null,null,null,null,null,null,null,null,null,null,null,null,null,null,null,69,"Rhône-Alpes","Centre de Gestion du Rhône"]
[null,null,null,null,null,null,null,null,null,null,null,null,null,null,null,null,null,null,null,null,null,null,null,null,null,null,null,null,null,null,null,null,null,null,null,null,null,null,null,null,null,null,null,null,null,null,null,null,null,null,null,null,null,null,null,null,null,73,"Rhône-Alpes","Centre de Gestion de la Savoie"]
["Arrivées hors conctractuels déjà présents",null,null,null,null,null,null,null,null,null,null,null,null,null,null,null,null,null,null,null,null,null,null,null,null,null,null,null,null,null,null,null,null,null,null,null,null,null,null,null,null,null,null,null,null,null,null,null,null,null,null,null,null,null,null,null,null,74,"Rhône-Alpes","Centre de Gestion de la Haute-Savoie"]
["Rang",null,"% FC + C","Fonctionnaires","Contractuels"]
[{"$f":"IF(C102=0,\"\",RANK(C102,$C$101:$C$111,0)+COUNTIF($C$101:C102,C102)-1)","v":{"$error":"#DIV/0!"}},"Recrutement direct",{"$f":"(D102+E102)/(D112+E112)","v":{"$error":"#DIV/0!"}},{"$f":"'[1]IND 1.5.2'!B97","v":0}]
[{"$f":"IF(C103=0,\"\",RANK(C103,$C$101:$C$111,0)+COUNTIF($C$101:C103,C103)-1)","v":{"$error":"#DIV/0!"}},"Voie de concours, sélection professionnelle",{"$f":"(D103+E103)/(D112+E112)","v":{"$error":"#DIV/0!"}},{"$f":"'[1]IND 1.5.2'!F97","v":0}]
[{"$f":"IF(C104=0,\"\",RANK(C104,$C$101:$C$111,0)+COUNTIF($C$101:C104,C104)-1)","v":""}]
[{"$f":"IF(C105=0,\"\",RANK(C105,$C$101:$C$111,0)+COUNTIF($C$101:C105,C105)-1)","v":{"$error":"#DIV/0!"}},"Intégration directe ",{"$f":"(D105+E105)/(D112+E112)","v":{"$error":"#DIV/0!"}},{"$f":"'[1]IND 1.5.2'!I97","v":0}]
[{"$f":"IF(C106=0,\"\",RANK(C106,$C$101:$C$111,0)+COUNTIF($C$101:C106,C106)-1)","v":{"$error":"#DIV/0!"}},"Voie de mutation",{"$f":"(D106+E106)/(D112+E112)","v":{"$error":"#DIV/0!"}},{"$f":"'[1]IND 1.5.2'!J97","v":0}]
[{"$f":"IF(C107=0,\"\",RANK(C107,$C$101:$C$111,0)+COUNTIF($C$101:C107,C107)-1)","v":{"$error":"#DIV/0!"}},"Voie de détachement",{"$f":"(D107+E107)/(D112+E112)","v":{"$error":"#DIV/0!"}},{"$f":"SUM('[1]IND 1.5.2'!K97:N97)","v":0}]
[{"$f":"IF(C108=0,\"\",RANK(C108,$C$101:$C$111,0)+COUNTIF($C$101:C108,C108)-1)","v":{"$error":"#DIV/0!"}},"Transfert de compétence",{"$f":"(D108+E108)/(D112+E112)","v":{"$error":"#DIV/0!"}},{"$f":"'[1]IND 1.5.2'!O97","v":0}]
[{"$f":"IF(C109=0,\"\",RANK(C109,$C$101:$C$111,0)+COUNTIF($C$101:C109,C109)-1)","v":{"$error":"#DIV/0!"}},"Réintégration et retour",{"$f":"(D109+E109)/(D112+E112)","v":{"$error":"#DIV/0!"}},{"$f":"SUM('[1]IND 1.5.2'!P97:Q97)","v":0},{"$f":"'[1]IND 1.5.3'!F12+'[1]IND 1.5.3'!F13","v":0}]
[{"$f":"IF(C110=0,\"\",RANK(C110,$C$101:$C$111,0)+COUNTIF($C$101:C110,C110)-1)","v":{"$error":"#DIV/0!"}},"Arrivées de contractuels",{"$f":"(D110+E110)/(D112+E112)","v":{"$error":"#DIV/0!"}},null,{"$f":"'[1]IND 1.5.3'!F101","v":0}]
[{"$f":"IF(C111=0,\"\",RANK(C111,$C$101:$C$111,0)+COUNTIF($C$101:C111,C111)-1)","v":{"$error":"#DIV/0!"}},"Remplacements (contractuels)",{"$f":"(D111+E111)/(D112+E112)","v":{"$error":"#DIV/0!"}},null,{"$f":"'[1]IND 1.5.3'!F11","v":0}]
[null,null,"Total",{"$f":"SUM(D102:D109)","v":0},{"$f":"SUM(E109:E111)","v":0}]
[]
["Formation"]
[]
["Jours de formations liés à la précvention",{"$f":"'[1]IND 4.1.1-4.1.2'!$C$23+'[1]IND 4.1.1-4.1.2'!$C$24+'[1]IND 4.1.1-4.1.2'!$C$25","v":0}]
["Dépense liés à la prévention",{"$f":"'[1]IND 4.1.1-4.1.2'!$B$26+'[1]IND 4.1.1-4.1.2'!$B$27","v":0},null,null,null,null,null,"Nomvre de visites médicales pour 100 agents",{"$f":"(('[1]IND 4.1.3'!$C$8)/('Synthèse RPS'!E28))*100","v":{"$error":"#DIV/0!"}}]